Department Family,Entity,Date,Expense Type,Expense Area,Supplier,Transaction Number,Amount,Vat No
Department of Health,CT Revenue Funds,06/07/2016,Car Parking,Rapid Response (T&W),SHREWSBURY AND TELFORD HOSPITAL NHS TRUST,A PASKIN DN59FLC,60,
Department of Health,CT Revenue Funds,06/07/2016,Court Order Payment,Payables,CHESHIRE WEST & CHESHIRE COUNCIL,JUN16 SALARY DEDUCTION,34.01,
Department of Health,CT Revenue Funds,06/07/2016,Furniture & Fittings,Dudley School Nurses,SOVEREIGN OFFICE EQUIPMENT CO LTD,SCRN00018530,-58,
Department of Health,CT Revenue Funds,06/07/2016,Furniture & Fittings,Dudley School Nurses,SOVEREIGN OFFICE EQUIPMENT CO LTD,SCRN00018530,-290,
Department of Health,CT Revenue Funds,06/07/2016,Furniture & Fittings,Dudley School Nurses,SOVEREIGN OFFICE EQUIPMENT CO LTD,SINV00285719,58,
Department of Health,CT Revenue Funds,06/07/2016,Furniture & Fittings,Dudley School Nurses,SOVEREIGN OFFICE EQUIPMENT CO LTD,SINV00285719,290,
Department of Health,CT Revenue Funds,06/07/2016,Home Management daily Living Aids Miscellaneous Appliances,Oswestry Minor Injuries Unit,PROSPECT DIAGNOSTICS LTD,PRO160616,117,
Department of Health,CT Revenue Funds,06/07/2016,Home Management daily Living Aids Miscellaneous Appliances,Oswestry Minor Injuries Unit,PROSPECT DIAGNOSTICS LTD,PRO160616,10.5,
Department of Health,CT Revenue Funds,06/07/2016,Home Management daily Living Aids Miscellaneous Appliances,Oswestry Minor Injuries Unit,PROSPECT DIAGNOSTICS LTD,PRO160616,23.4,
Department of Health,CT Revenue Funds,06/07/2016,Home Management daily Living Aids Miscellaneous Appliances,Oswestry Minor Injuries Unit,PROSPECT DIAGNOSTICS LTD,PRO160616,2.1,
Department of Health,CT Revenue Funds,06/07/2016,Meeting Expenses/Room Hire,South Shropshire Health Visitors,BURFORD PARISH HALL,62 1.7.16,72,
Department of Health,CT Revenue Funds,06/07/2016,Miscellaneous Expenditure,Finance Directorate Management,HM REVENUE AND CUSTOMS,120PY00311519 COMP SALARY SACRIFICE - CLASS1A NIC,241.44,
Department of Health,CT Revenue Funds,06/07/2016,Postage Stamps Stock,Cash & Cash Equivalents,POST OFFICE LTD,WFH STAMPS / 30/6/16,705,
Department of Health,CT Revenue Funds,06/07/2016,Staff Lottery,Payables,STAFF LOTTERY,LOTTERY JUNE 2016,25,
Department of Health,CT Revenue Funds,06/07/2016,Staff Lottery,Payables,STAFF LOTTERY,LOTTERY JUNE 2016,25,
Department of Health,CT Revenue Funds,06/07/2016,Staff Lottery,Payables,STAFF LOTTERY,LOTTERY JUNE 2016,25,
Department of Health,CT Revenue Funds,06/07/2016,Staff Lottery,Payables,STAFF LOTTERY,LOTTERY JUNE 2016,25,
Department of Health,CT Revenue Funds,06/07/2016,Staff Lottery,Payables,STAFF LOTTERY,LOTTERY JUNE 2016,25,
Department of Health,CT Revenue Funds,06/07/2016,Staff Lottery,Payables,STAFF LOTTERY,LOTTERY JUNE 2016,100,
Department of Health,CT Revenue Funds,06/07/2016,Staff Lottery,Payables,STAFF LOTTERY,LOTTERY JUNE 2016,500,
Department of Health,CT Revenue Funds,06/07/2016,Staff Lottery,Payables,STAFF LOTTERY,LOTTERY JUNE 2016,25,
Department of Health,CT Revenue Funds,06/07/2016,Staff Lottery,Payables,STAFF LOTTERY,LOTTERY JUNE 2016,25,
Department of Health,CT Revenue Funds,06/07/2016,Staff Lottery,Payables,STAFF LOTTERY,LOTTERY JUNE 2016,25,
Department of Health,CT Revenue Funds,06/07/2016,Staff Lottery,Payables,STAFF LOTTERY,LOTTERY JUNE 2016,25,
Department of Health,CT Revenue Funds,06/07/2016,Staff Lottery,Payables,STAFF LOTTERY,LOTTERY JUNE 2016,25,
Department of Health,CT Revenue Funds,06/07/2016,Staff Lottery,Payables,STAFF LOTTERY,LOTTERY JUNE 2016,250,
Department of Health,CT Revenue Funds,06/07/2016,Staff Lottery,Payables,STAFF LOTTERY,LOTTERY JUNE 2016,50,
Department of Health,CT Revenue Funds,06/07/2016,Staff Lottery,Payables,STAFF LOTTERY,LOTTERY JUNE 2016,25,
Department of Health,CT Revenue Funds,06/07/2016,Staff Lottery,Payables,STAFF LOTTERY,LOTTERY JUNE 2016,25,
Department of Health,CT Revenue Funds,06/07/2016,Staff Lottery,Payables,STAFF LOTTERY,LOTTERY MAY 16,25,
Department of Health,CT Revenue Funds,07/07/2016,Accomodation Insurance,Progress Point Dudley School Nurses,LCP ESTATES LTD,545900,66.67,
Department of Health,CT Revenue Funds,07/07/2016,Accomodation Insurance,Progress Point Dudley School Nurses,LCP ESTATES LTD,545900,333.37,
Department of Health,CT Revenue Funds,07/07/2016,Accomodation Insurance,Charlesworth Court Unit B,RYMINSTER LTD,CWC/0169,22.35,
Department of Health,CT Revenue Funds,07/07/2016,Accomodation Insurance,Madeley GP Premises,MADELEY MEDICAL PRACTICE,RENT/INSURANCE JUN16,218.5,
Department of Health,CT Revenue Funds,07/07/2016,Additions - Assets Under Construction,Balance Sheet Suspense IT Uninterrupted Power Supply,DACOLL LTD,1808653,336.35,
Department of Health,CT Revenue Funds,07/07/2016,Additions - Assets Under Construction,Balance Sheet Suspense IT Uninterrupted Power Supply,DACOLL LTD,1808653,0.01,
Department of Health,CT Revenue Funds,07/07/2016,Additions - Assets Under Construction,Balance Sheet Suspense IT Uninterrupted Power Supply,DACOLL LTD,1808653,1681.77,
Department of Health,CT Revenue Funds,07/07/2016,Additions - Assets Under Construction,Balance Sheet Suspense Whitchurch Boilers,TAYLORS MECHANICAL HEATING & PLUMBING SERVICES LTD,TM8118,4597.4,
Department of Health,CT Revenue Funds,07/07/2016,Additions - Assets Under Construction,Balance Sheet Suspense Whitchurch Boilers,TAYLORS MECHANICAL HEATING & PLUMBING SERVICES LTD,TM8118,22987,
Department of Health,CT Revenue Funds,07/07/2016,Agency Admin & Clerical,MSK Management & Admin,PERTEMPS,P715609,414.75,844 2788 00
Department of Health,CT Revenue Funds,07/07/2016,Agency Admin & Clerical,MSK Management & Admin,PERTEMPS,P715609,82.95,844 2788 00
Department of Health,CT Revenue Funds,07/07/2016,Agency Admin & Clerical,MSK Management & Admin,PERTEMPS,P715610,403.92,844 2788 00
Department of Health,CT Revenue Funds,07/07/2016,Agency Admin & Clerical,MSK Management & Admin,PERTEMPS,P715610,80.78,844 2788 00
Department of Health,CT Revenue Funds,07/07/2016,Agency Admin & Clerical,MSK Management & Admin,PERTEMPS,P715611,220.44,844 2788 00
Department of Health,CT Revenue Funds,07/07/2016,Agency Admin & Clerical,MSK Management & Admin,PERTEMPS,P715611,44.09,844 2788 00
Department of Health,CT Revenue Funds,07/07/2016,Agency Admin & Clerical,MSK Management & Admin,PERTEMPS,P715612,376.24,844 2788 00
Department of Health,CT Revenue Funds,07/07/2016,Agency Admin & Clerical,MSK Management & Admin,PERTEMPS,P715612,75.25,844 2788 00
Department of Health,CT Revenue Funds,07/07/2016,Agency Consultants,Shropshire Community Paediatric Medical Staff,HEALTHMEDIX LTD,4182,4440,
Department of Health,CT Revenue Funds,07/07/2016,Agency Consultants,Shropshire Community Paediatric Medical Staff,HEALTHMEDIX LTD,4182,888,
Department of Health,CT Revenue Funds,07/07/2016,Agency Consultants,Shropshire Community Paediatric Medical Staff,HEALTHMEDIX LTD,4257,800,
Department of Health,CT Revenue Funds,07/07/2016,Agency Consultants,Shropshire Community Paediatric Medical Staff,HEALTHMEDIX LTD,4257,4000,
Department of Health,CT Revenue Funds,07/07/2016,Agency Consultants,Shropshire Child Psychiatry,PSYCHIATRY PEOPLE,PP140866,4546.02,
Department of Health,CT Revenue Funds,07/07/2016,Agency Consultants,Shropshire Child Psychiatry,PSYCHIATRY PEOPLE,PP140866,909.2,
Department of Health,CT Revenue Funds,07/07/2016,Agency Consultants,Shropshire Child Psychiatry,PSYCHIATRY PEOPLE,PP140867,817.31,
Department of Health,CT Revenue Funds,07/07/2016,Agency Consultants,Shropshire Child Psychiatry,PSYCHIATRY PEOPLE,PP140867,4086.53,
Department of Health,CT Revenue Funds,07/07/2016,Agency Hlthcare Assistants & Support Staff,Ludlow Hospital Inpatient Wards,ACTONBANKS HEALTHCARE RECRUITMENT SPECIALISTS,00096221,322,909 8550 90
Department of Health,CT Revenue Funds,07/07/2016,Agency Hlthcare Assistants & Support Staff,Ludlow Hospital Inpatient Wards,ACTONBANKS HEALTHCARE RECRUITMENT SPECIALISTS,00096222,227.38,909 8550 90
Department of Health,CT Revenue Funds,07/07/2016,Agency Hlthcare Assistants & Support Staff,Bridgnorth Hospital Inpatient Ward,ACTONBANKS HEALTHCARE RECRUITMENT SPECIALISTS,00096223,136.43,909 8550 90
Department of Health,CT Revenue Funds,07/07/2016,Agency Hlthcare Assistants & Support Staff,Bishops Castle Hospital Inpatient Ward,ACTONBANKS HEALTHCARE RECRUITMENT SPECIALISTS,00096224,234,909 8550 90
Department of Health,CT Revenue Funds,07/07/2016,Agency Hlthcare Assistants & Support Staff,Bishops Castle Hospital Inpatient Ward,ACTONBANKS HEALTHCARE RECRUITMENT SPECIALISTS,00096225,225,909 8550 90
Department of Health,CT Revenue Funds,07/07/2016,Agency Hlthcare Assistants & Support Staff,Bridgnorth Hospital Inpatient Ward,ACTONBANKS HEALTHCARE RECRUITMENT SPECIALISTS,00096802,236.47,909 8550 90
Department of Health,CT Revenue Funds,07/07/2016,Agency Hlthcare Assistants & Support Staff,Bridgnorth Hospital Inpatient Ward,ACTONBANKS HEALTHCARE RECRUITMENT SPECIALISTS,00096803,236.47,909 8550 90
Department of Health,CT Revenue Funds,07/07/2016,Agency Hlthcare Assistants & Support Staff,Ludlow Hospital Inpatient Wards,ACTONBANKS HEALTHCARE RECRUITMENT SPECIALISTS,00096804,236.47,909 8550 90
Department of Health,CT Revenue Funds,07/07/2016,Agency Hlthcare Assistants & Support Staff,Bishops Castle Hospital Inpatient Ward,MERCO MEDICAL STAFFING LTD,01-65423,120.45,
Department of Health,CT Revenue Funds,07/07/2016,Agency Hlthcare Assistants & Support Staff,Bishops Castle Hospital Inpatient Ward,MERCO MEDICAL STAFFING LTD,01-65423,24.09,
Department of Health,CT Revenue Funds,07/07/2016,Agency Hlthcare Assistants & Support Staff,Bishops Castle Hospital Inpatient Ward,MERCO MEDICAL STAFFING LTD,01-65423,-120.45,
Department of Health,CT Revenue Funds,07/07/2016,Agency Hlthcare Assistants & Support Staff,Bishops Castle Hospital Inpatient Ward,MERCO MEDICAL STAFFING LTD,01-65423,24.09,
Department of Health,CT Revenue Funds,07/07/2016,Agency Hlthcare Assistants & Support Staff,Bishops Castle Hospital Inpatient Ward,MERCO MEDICAL STAFFING LTD,01-65423,-24.09,
Department of Health,CT Revenue Funds,07/07/2016,Agency Hlthcare Assistants & Support Staff,Bishops Castle Hospital Inpatient Ward,MERCO MEDICAL STAFFING LTD,01-65423,120.45,
Department of Health,CT Revenue Funds,07/07/2016,Agency Hlthcare Assistants & Support Staff,Bishops Castle Hospital Inpatient Ward,MERCO MEDICAL STAFFING LTD,01-65424,147.75,
Department of Health,CT Revenue Funds,07/07/2016,Agency Hlthcare Assistants & Support Staff,Bishops Castle Hospital Inpatient Ward,MERCO MEDICAL STAFFING LTD,01-65424,-147.75,
Department of Health,CT Revenue Funds,07/07/2016,Agency Hlthcare Assistants & Support Staff,Bishops Castle Hospital Inpatient Ward,MERCO MEDICAL STAFFING LTD,01-65424,29.55,
Department of Health,CT Revenue Funds,07/07/2016,Agency Hlthcare Assistants & Support Staff,Bishops Castle Hospital Inpatient Ward,MERCO MEDICAL STAFFING LTD,01-65424,147.75,
Department of Health,CT Revenue Funds,07/07/2016,Agency Hlthcare Assistants & Support Staff,Bishops Castle Hospital Inpatient Ward,MERCO MEDICAL STAFFING LTD,01-65424,-29.55,
Department of Health,CT Revenue Funds,07/07/2016,Agency Hlthcare Assistants & Support Staff,Bishops Castle Hospital Inpatient Ward,MERCO MEDICAL STAFFING LTD,01-65424,29.55,
Department of Health,CT Revenue Funds,07/07/2016,Agency Hlthcare Assistants & Support Staff,Ludlow Hospital Inpatient Wards,MERCO MEDICAL STAFFING LTD,01-65495,29.55,
Department of Health,CT Revenue Funds,07/07/2016,Agency Hlthcare Assistants & Support Staff,Ludlow Hospital Inpatient Wards,MERCO MEDICAL STAFFING LTD,01-65495,147.75,
Department of Health,CT Revenue Funds,07/07/2016,Agency Hlthcare Assistants & Support Staff,Ludlow Hospital Inpatient Wards,MERCO MEDICAL STAFFING LTD,01-65498,180.68,
Department of Health,CT Revenue Funds,07/07/2016,Agency Hlthcare Assistants & Support Staff,Ludlow Hospital Inpatient Wards,MERCO MEDICAL STAFFING LTD,01-65498,36.14,
Department of Health,CT Revenue Funds,07/07/2016,Agency Hlthcare Assistants & Support Staff,Stoke Heath Prison Healthcare,AMG NURSING & CARE SERVICES,10001091,689.39,909 7863 74
Department of Health,CT Revenue Funds,07/07/2016,Agency Hlthcare Assistants & Support Staff,Stoke Heath Prison Healthcare,AMG NURSING & CARE SERVICES,10001126,492.42,909 7863 74
Department of Health,CT Revenue Funds,07/07/2016,Agency Hlthcare Assistants & Support Staff,Whitchurch Hospital Inpatient Ward,CORDANT CARE,21199,171.9,
Department of Health,CT Revenue Funds,07/07/2016,Agency Hlthcare Assistants & Support Staff,Ludlow Hospital Inpatient Wards,THORNBURY NURSING SERVICES LTD,3520175,385.43,676 2854 93
Department of Health,CT Revenue Funds,07/07/2016,Agency Hlthcare Assistants & Support Staff,Ludlow Hospital Inpatient Wards,THORNBURY NURSING SERVICES LTD,3520176,331.33,676 2854 93
Department of Health,CT Revenue Funds,07/07/2016,Agency Hlthcare Assistants & Support Staff,Bishops Castle Hospital Inpatient Ward,ID MEDICAL,442007,174.34,733 7385 18
Department of Health,CT Revenue Funds,07/07/2016,Agency Hlthcare Assistants & Support Staff,Bishops Castle Hospital Inpatient Ward,ID MEDICAL,442007,34.87,733 7385 18
Department of Health,CT Revenue Funds,07/07/2016,Agency Hlthcare Assistants & Support Staff,Bishops Castle Hospital Inpatient Ward,ID MEDICAL,442008,199.97,733 7385 18
Department of Health,CT Revenue Funds,07/07/2016,Agency Hlthcare Assistants & Support Staff,Bishops Castle Hospital Inpatient Ward,ID MEDICAL,442008,39.99,733 7385 18
Department of Health,CT Revenue Funds,07/07/2016,Agency Hlthcare Assistants & Support Staff,Bridgnorth Hospital Inpatient Ward,ID MEDICAL,442009,591.01,733 7385 18
Department of Health,CT Revenue Funds,07/07/2016,Agency Hlthcare Assistants & Support Staff,Bridgnorth Hospital Inpatient Ward,ID MEDICAL,442009,118.2,733 7385 18
Department of Health,CT Revenue Funds,07/07/2016,Agency Hlthcare Assistants & Support Staff,Bridgnorth Hospital Inpatient Ward,ID MEDICAL,442010,51,733 7385 18
Department of Health,CT Revenue Funds,07/07/2016,Agency Hlthcare Assistants & Support Staff,Bridgnorth Hospital Inpatient Ward,ID MEDICAL,442010,255,733 7385 18
Department of Health,CT Revenue Funds,07/07/2016,Agency Hlthcare Assistants & Support Staff,Bridgnorth Hospital Inpatient Ward,ID MEDICAL,442011,358.02,733 7385 18
Department of Health,CT Revenue Funds,07/07/2016,Agency Hlthcare Assistants & Support Staff,Bridgnorth Hospital Inpatient Ward,ID MEDICAL,442011,-71.6,733 7385 18
Department of Health,CT Revenue Funds,07/07/2016,Agency Hlthcare Assistants & Support Staff,Bridgnorth Hospital Minor Injuries Unit,ID MEDICAL,442011,358.02,733 7385 18
Department of Health,CT Revenue Funds,07/07/2016,Agency Hlthcare Assistants & Support Staff,Bridgnorth Hospital Inpatient Ward,ID MEDICAL,442011,-358.02,733 7385 18
Department of Health,CT Revenue Funds,07/07/2016,Agency Hlthcare Assistants & Support Staff,Bridgnorth Hospital Inpatient Ward,ID MEDICAL,442011,71.6,733 7385 18
Department of Health,CT Revenue Funds,07/07/2016,Agency Hlthcare Assistants & Support Staff,Bridgnorth Hospital Minor Injuries Unit,ID MEDICAL,442011,71.6,733 7385 18
Department of Health,CT Revenue Funds,07/07/2016,Agency Hlthcare Assistants & Support Staff,Ludlow Hospital Inpatient Wards,ID MEDICAL,442012,430.71,733 7385 18
Department of Health,CT Revenue Funds,07/07/2016,Agency Hlthcare Assistants & Support Staff,Ludlow Hospital Inpatient Wards,ID MEDICAL,442012,86.14,733 7385 18
Department of Health,CT Revenue Funds,07/07/2016,Agency Hlthcare Assistants & Support Staff,Bridgnorth Hospital Inpatient Ward,THE CARE BUREAU,523274,230.13,
Department of Health,CT Revenue Funds,07/07/2016,Agency Hlthcare Assistants & Support Staff,Whitchurch Hospital Inpatient Ward,THE CARE BUREAU,523275,382.84,
Department of Health,CT Revenue Funds,07/07/2016,Agency Hlthcare Assistants & Support Staff,Bishops Castle Hospital Inpatient Ward,MEDACS HEALTHCARE SERVICES PLC,604-899550,136.1,745 7310 30
Department of Health,CT Revenue Funds,07/07/2016,Agency Hlthcare Assistants & Support Staff,Bishops Castle Hospital Inpatient Ward,MEDACS HEALTHCARE SERVICES PLC,604-899550,27.22,745 7310 30
Department of Health,CT Revenue Funds,07/07/2016,Agency Nursing,Bishops Castle Hospital Inpatient Ward,ACTONBANKS HEALTHCARE RECRUITMENT SPECIALISTS,00096805,525,909 8550 90
Department of Health,CT Revenue Funds,07/07/2016,Agency Nursing,Ludlow Hospital Minor Injuries Unit,MERCO MEDICAL STAFFING LTD,01-65510,555.24,
Department of Health,CT Revenue Funds,07/07/2016,Agency Nursing,Stoke Heath Prison Healthcare,AMG NURSING & CARE SERVICES,10001091,827.78,909 7863 74
Department of Health,CT Revenue Funds,07/07/2016,Agency Nursing,Stoke Heath Prison Healthcare,AMG NURSING & CARE SERVICES,10001126,1241.67,909 7863 74
Department of Health,CT Revenue Funds,07/07/2016,Agency Nursing,Whitchurch Hospital Inpatient Ward,CORDANT CARE,21199,302.48,
Department of Health,CT Revenue Funds,07/07/2016,Agency Nursing,Ludlow Hospital Inpatient Wards,THORNBURY NURSING SERVICES LTD,3517462,693.66,676 2854 93
Department of Health,CT Revenue Funds,07/07/2016,Agency Nursing,Bishops Castle Hospital Inpatient Ward,THORNBURY NURSING SERVICES LTD,3519878,746.94,676 2854 93
Department of Health,CT Revenue Funds,07/07/2016,Agency Nursing,Oswestry Minor Injuries Unit,THORNBURY NURSING SERVICES LTD,3522200,1128.9,676 2854 93
Department of Health,CT Revenue Funds,07/07/2016,Agency Nursing,Bridgnorth Hospital Inpatient Ward,THORNBURY NURSING SERVICES LTD,3525887,544.65,676 2854 93
Department of Health,CT Revenue Funds,07/07/2016,Agency Nursing,Ludlow Hospital Inpatient Wards,ID MEDICAL,442013,655.2,733 7385 18
Department of Health,CT Revenue Funds,07/07/2016,Agency Nursing,Ludlow Hospital Inpatient Wards,ID MEDICAL,442014,1151.64,733 7385 18
Department of Health,CT Revenue Funds,07/07/2016,Agency Nursing,Whitchurch Hospital Inpatient Ward,MEDACS HEALTHCARE SERVICES PLC,604-898843,303.3,745 7310 30
Department of Health,CT Revenue Funds,07/07/2016,Agency Nursing,Shropshire Primary CAMHS Service,HCL SOCIAL CARE,HSOC5584102,1514.3,
Department of Health,CT Revenue Funds,07/07/2016,Agency Nursing,Shropshire Primary CAMHS Service,HCL SOCIAL CARE,HSOC5584102,302.86,
Department of Health,CT Revenue Funds,07/07/2016,Agency Nursing,CAMHS Team (T&W),HCL SOCIAL CARE,HSOC5584930,168.17,
Department of Health,CT Revenue Funds,07/07/2016,Agency Nursing,CAMHS Team (T&W),HCL SOCIAL CARE,HSOC5584930,840.87,
Department of Health,CT Revenue Funds,07/07/2016,Agency Nursing,CAMHS Team (T&W),HCL SOCIAL CARE,HSOC5584931,30.82,
Department of Health,CT Revenue Funds,07/07/2016,Agency Nursing,CAMHS Team (T&W),HCL SOCIAL CARE,HSOC5584931,6.16,
Department of Health,CT Revenue Funds,07/07/2016,Agency Nursing,Shropshire CAMHS Team,HCL SOCIAL CARE,HSOC5584932,1419,
Department of Health,CT Revenue Funds,07/07/2016,Agency Nursing,Shropshire CAMHS Team,HCL SOCIAL CARE,HSOC5584933,3.08,
Department of Health,CT Revenue Funds,07/07/2016,Agency Nursing,Shropshire CAMHS Team,HCL SOCIAL CARE,HSOC5584933,15.41,
Department of Health,CT Revenue Funds,07/07/2016,Agency Nursing,Shropshire Primary CAMHS Service,HCL SOCIAL CARE,HSOC5584934,1494.38,
Department of Health,CT Revenue Funds,07/07/2016,Agency Nursing,Shropshire Primary CAMHS Service,HCL SOCIAL CARE,HSOC5584934,298.88,
Department of Health,CT Revenue Funds,07/07/2016,Agency Nursing,CAMHS Team (T&W),HCL SOCIAL CARE,HSOC5586499,136.89,
Department of Health,CT Revenue Funds,07/07/2016,Agency Nursing,CAMHS Team (T&W),HCL SOCIAL CARE,HSOC5586499,684.43,
Department of Health,CT Revenue Funds,07/07/2016,Agency Nursing,CAMHS Learning Disabilities,REMEDY RECRUITMENT GROUP LTD,RP123899,1597.05,
Department of Health,CT Revenue Funds,07/07/2016,Agency Nursing,CAMHS Learning Disabilities,REMEDY RECRUITMENT GROUP LTD,RP123899,319.41,
Department of Health,CT Revenue Funds,07/07/2016,Agency Nursing,Ludlow Hospital Minor Injuries Unit,YOUR WORLD NURSING,SOF-191981,251.22,
Department of Health,CT Revenue Funds,07/07/2016,Agency Nursing,Ludlow Hospital Minor Injuries Unit,YOUR WORLD NURSING,SOF-191983,251.22,
Department of Health,CT Revenue Funds,07/07/2016,Agency Nursing,Ludlow Hospital Minor Injuries Unit,YOUR WORLD NURSING,SOF-191985,512.91,
Department of Health,CT Revenue Funds,07/07/2016,Agency Nursing,Ludlow Hospital Minor Injuries Unit,YOUR WORLD NURSING,SOF-191988,251.22,
Department of Health,CT Revenue Funds,07/07/2016,Agency Nursing,Ludlow Hospital Minor Injuries Unit,YOUR WORLD NURSING,SOF-191990,481.51,
Department of Health,CT Revenue Funds,07/07/2016,Agency Nursing,Ludlow Hospital Minor Injuries Unit,YOUR WORLD NURSING,SOF-191993,460.57,
Department of Health,CT Revenue Funds,07/07/2016,Agency Nursing,Ludlow Hospital Minor Injuries Unit,YOUR WORLD NURSING,SOF-192716,502.44,
Department of Health,CT Revenue Funds,07/07/2016,Agency Nursing,Shropshire CAMHS Team,JCJ LTD,SWP5584969,300,
Department of Health,CT Revenue Funds,07/07/2016,Agency Nursing,Shropshire CAMHS Team,JCJ LTD,SWP5584969,1500,
Department of Health,CT Revenue Funds,07/07/2016,Agency PAMs,Community Neuro Rehabilitation Team (CNRT),PULSE,3512226,258.24,676 2854 93
Department of Health,CT Revenue Funds,07/07/2016,Agency PAMs,Community Neuro Rehabilitation Team (CNRT),PULSE,3512226,1291.2,676 2854 93
Department of Health,CT Revenue Funds,07/07/2016,Agency PAMs,Shropshire CAMHS Team,PULSE,3521325,283.58,676 2854 93
Department of Health,CT Revenue Funds,07/07/2016,Agency PAMs,Shropshire CAMHS Team,PULSE,3521325,1417.88,676 2854 93
Department of Health,CT Revenue Funds,07/07/2016,Agency PAMs,ICS South East,RIG MEDICAL RECRUIT LTD,5096631,85.6,928 2047 24
Department of Health,CT Revenue Funds,07/07/2016,Agency PAMs,ICS South East,RIG MEDICAL RECRUIT LTD,5096631,428.02,928 2047 24
Department of Health,CT Revenue Funds,07/07/2016,Agency PAMs,ICS South East,RIG MEDICAL RECRUIT LTD,5096643,155.22,928 2047 24
Department of Health,CT Revenue Funds,07/07/2016,Agency PAMs,ICS South East,RIG MEDICAL RECRUIT LTD,5096643,776.09,928 2047 24
Department of Health,CT Revenue Funds,07/07/2016,Agency PAMs,ICS South East,RIG MEDICAL RECRUIT LTD,5096657,663.03,928 2047 24
Department of Health,CT Revenue Funds,07/07/2016,Agency PAMs,ICS South East,RIG MEDICAL RECRUIT LTD,5096657,132.61,928 2047 24
Department of Health,CT Revenue Funds,07/07/2016,Agency PAMs,ICS North West,LONDON TEACHING POOL LTD,547724,168.86,
Department of Health,CT Revenue Funds,07/07/2016,Agency PAMs,ICS North West,LONDON TEACHING POOL LTD,547724,844.3,
Department of Health,CT Revenue Funds,07/07/2016,Agency PAMs,ICS North West,LONDON TEACHING POOL LTD,547725,179.34,
Department of Health,CT Revenue Funds,07/07/2016,Agency PAMs,ICS North West,LONDON TEACHING POOL LTD,547725,896.71,
Department of Health,CT Revenue Funds,07/07/2016,Agency PAMs,ICS Central,YOUR WORLD RECRUITMENT LTD,PIN-2073956,11.78,
Department of Health,CT Revenue Funds,07/07/2016,Agency PAMs,ICS Central,YOUR WORLD RECRUITMENT LTD,PIN-2073956,58.91,
Department of Health,CT Revenue Funds,07/07/2016,Agency PAMs,ICS Central,YOUR WORLD RECRUITMENT LTD,PIN-2073975,114.17,
Department of Health,CT Revenue Funds,07/07/2016,Agency PAMs,ICS Central,YOUR WORLD RECRUITMENT LTD,PIN-2073975,570.86,
Department of Health,CT Revenue Funds,07/07/2016,Agency PAMs,ICS Central,YOUR WORLD RECRUITMENT LTD,PIN-2074135,11,
Department of Health,CT Revenue Funds,07/07/2016,Agency PAMs,ICS Central,YOUR WORLD RECRUITMENT LTD,PIN-2074135,55,
Department of Health,CT Revenue Funds,07/07/2016,Agency PAMs,ICS Central,YOUR WORLD RECRUITMENT LTD,PIN-2074143,33.32,
Department of Health,CT Revenue Funds,07/07/2016,Agency PAMs,ICS Central,YOUR WORLD RECRUITMENT LTD,PIN-2074143,6.66,
Department of Health,CT Revenue Funds,07/07/2016,Agency PAMs,ICS South West,YOUR WORLD RECRUITMENT LTD,PIN-2074213,1170.39,
Department of Health,CT Revenue Funds,07/07/2016,Agency PAMs,ICS South West,YOUR WORLD RECRUITMENT LTD,PIN-2074213,234.08,
Department of Health,CT Revenue Funds,07/07/2016,Agency PAMs,ICS Central,YOUR WORLD RECRUITMENT LTD,PIN-2074255,225.19,
Department of Health,CT Revenue Funds,07/07/2016,Agency PAMs,ICS Central,YOUR WORLD RECRUITMENT LTD,PIN-2074255,1125.94,
Department of Health,CT Revenue Funds,07/07/2016,Agency PAMs,ICS North West,YOUR WORLD RECRUITMENT LTD,PIN-2074433,1088.93,
Department of Health,CT Revenue Funds,07/07/2016,Agency PAMs,ICS North West,YOUR WORLD RECRUITMENT LTD,PIN-2074433,217.79,
Department of Health,CT Revenue Funds,07/07/2016,AMICUS,Payables,UNITE THE UNION,0801177-QTR END JUN16,123.5,
Department of Health,CT Revenue Funds,07/07/2016,Audit Fees : Statutory,Finance Directorate Management,GRANT THORNTON,8560585,1687.4,
Department of Health,CT Revenue Funds,07/07/2016,Audit Fees : Statutory,Finance Directorate Management,GRANT THORNTON,8560585,8437,
Department of Health,CT Revenue Funds,07/07/2016,Bed Accessories,Community Equipment Stores,ERGO IKE LTD,16181,49.2,
Department of Health,CT Revenue Funds,07/07/2016,Bed Accessories,Community Equipment Stores,ERGO IKE LTD,16181,-32,
Department of Health,CT Revenue Funds,07/07/2016,Bed Accessories,Community Equipment Stores,ERGO IKE LTD,16181,246,
Department of Health,CT Revenue Funds,07/07/2016,Bed Accessories,Community Equipment Stores,ERGO IKE LTD,16181,-6.4,
Department of Health,CT Revenue Funds,07/07/2016,Bed Accessories,Community Equipment Stores,FRONTIER THERAPEUTICS,426521,207.08,700 8536 57
Department of Health,CT Revenue Funds,07/07/2016,Bed Accessories,Community Equipment Stores,FRONTIER THERAPEUTICS,426521,1035.4,700 8536 57
Department of Health,CT Revenue Funds,07/07/2016,Bed Accessories,Community Equipment Stores,PARNELL PRODUCTS LTD,PP3437,350,
Department of Health,CT Revenue Funds,07/07/2016,Bed Accessories,Community Equipment Stores,PARNELL PRODUCTS LTD,PP3437,1750,
Department of Health,CT Revenue Funds,07/07/2016,Bed Accessories,Community Equipment Stores,HANDICARE LTD,SIN472261,78.74,
Department of Health,CT Revenue Funds,07/07/2016,Bed Accessories,Community Equipment Stores,HANDICARE LTD,SIN472261,15.75,
Department of Health,CT Revenue Funds,07/07/2016,Bedpans & Urinals,Bridgnorth Hospital Inpatient Ward,VERNACARE LTD,OP/I384440,23.6,498 0975 81
Department of Health,CT Revenue Funds,07/07/2016,Bedpans & Urinals,Bridgnorth Hospital Inpatient Ward,VERNACARE LTD,OP/I384440,117.98,498 0975 81
Department of Health,CT Revenue Funds,07/07/2016,"Books, Journals & Subscriptions",CAMHS Team (T&W),BLACKWELLS BOOKSHOP,00156695,28.92,532 5855 39
Department of Health,CT Revenue Funds,07/07/2016,"Books, Journals & Subscriptions",South Shropshire Health Visitors,UNICEF UK BABY FRIENDLY INITATIVE,SI0007127,-88,
Department of Health,CT Revenue Funds,07/07/2016,"Books, Journals & Subscriptions",South Shropshire Health Visitors,UNICEF UK BABY FRIENDLY INITATIVE,SI0007127,88,
Department of Health,CT Revenue Funds,07/07/2016,"Books, Journals & Subscriptions",South Shropshire Health Visitors,UNICEF UK BABY FRIENDLY INITATIVE,SI0007127,440,
Department of Health,CT Revenue Funds,07/07/2016,Building & Engineering Equipment Maintenance/Repairs,Oswestry Primary Care Centre,CARESTREAM HEALTH UK LIMITED,138055260,5726,
Department of Health,CT Revenue Funds,07/07/2016,Building & Engineering Equipment Maintenance/Repairs,Oswestry Primary Care Centre,CARESTREAM HEALTH UK LIMITED,138055260,-1145.2,
Department of Health,CT Revenue Funds,07/07/2016,Building & Engineering Equipment Maintenance/Repairs,Oswestry Primary Care Centre,CARESTREAM HEALTH UK LIMITED,138055260,1145.2,
Department of Health,CT Revenue Funds,07/07/2016,Car Parking,SpecialCare and Access,PATERSON ENTERPRISES LTD,NHS005,65,
Department of Health,CT Revenue Funds,07/07/2016,Car Parking,Dental Central Admin,PATERSON ENTERPRISES LTD,NHS005,195,
Department of Health,CT Revenue Funds,07/07/2016,Car Parking,SpecialCare and Access,PATERSON ENTERPRISES LTD,NHS005,325,
Department of Health,CT Revenue Funds,07/07/2016,Car Parking,Dental Central Admin,PATERSON ENTERPRISES LTD,NHS005,39,
Department of Health,CT Revenue Funds,07/07/2016,Catering Equipment - Leases,William Farr House,HORIZON SOFT DRINKS LTD,113430,25.06,377 5375 11
Department of Health,CT Revenue Funds,07/07/2016,Catering Equipment - Leases,William Farr House,HORIZON SOFT DRINKS LTD,113430,5.01,377 5375 11
Department of Health,CT Revenue Funds,07/07/2016,Catering Provisions,Whitchurch Hospital Catering,OLLECO CYMRU,366859,89.7,909 9860 70
Department of Health,CT Revenue Funds,07/07/2016,Catering Provisions,Whitchurch Hospital Catering,BRAKE BROS FOODSERVICE LTD,5505149648,-47.58,202 9353 88
Department of Health,CT Revenue Funds,07/07/2016,Catering Provisions,Whitchurch Hospital Catering,BIDVEST FOODSERVICE,68095482,140.15,643 9946 92
Department of Health,CT Revenue Funds,07/07/2016,Catering Provisions,Whitchurch Hospital Catering,BIDVEST FOODSERVICE,68095482,307.33,643 9946 92
Department of Health,CT Revenue Funds,07/07/2016,Catering Provisions,Whitchurch Hospital Catering,BIDVEST FOODSERVICE,68095482,28.03,643 9946 92
Department of Health,CT Revenue Funds,07/07/2016,Catering Provisions,Bridgnorth Hospital Catering,BIDVEST FOODSERVICE,68156622,8,643 9946 92
Department of Health,CT Revenue Funds,07/07/2016,Catering Provisions,Bridgnorth Hospital Catering,BIDVEST FOODSERVICE,68156622,598.67,643 9946 92
Department of Health,CT Revenue Funds,07/07/2016,Catering Provisions,Bridgnorth Hospital Catering,BIDVEST FOODSERVICE,68156622,39.99,643 9946 92
Department of Health,CT Revenue Funds,07/07/2016,Catering Provisions,Whitchurch Hospital Catering,BIDVEST FOODSERVICE,68196993,16.9,643 9946 92
Department of Health,CT Revenue Funds,07/07/2016,Catering Provisions,Whitchurch Hospital Catering,BIDVEST FOODSERVICE,68196993,296.79,643 9946 92
Department of Health,CT Revenue Funds,07/07/2016,Catering Provisions,Whitchurch Hospital Catering,BIDVEST FOODSERVICE,68196993,84.5,643 9946 92
Department of Health,CT Revenue Funds,07/07/2016,Catering Provisions,Whitchurch Hospital Catering,BIDVEST FOODSERVICE,68196993,100.4,643 9946 92
Department of Health,CT Revenue Funds,07/07/2016,Catering Provisions,Whitchurch Hospital Catering,BIDVEST FOODSERVICE,68196993,-100.4,643 9946 92
Department of Health,CT Revenue Funds,07/07/2016,Catering Provisions,Bridgnorth Hospital Catering,JOHAL DAIRIES LTD,745802,114.43,101 3075 37
Department of Health,CT Revenue Funds,07/07/2016,Catering Provisions,Ludlow Hospital Catering,BRAKE BROS FOODSERVICE LTD,9231163064,213.45,202 9353 88
Department of Health,CT Revenue Funds,07/07/2016,Catering Provisions,Ludlow Hospital Catering,BRAKE BROS FOODSERVICE LTD,9231163064,145.18,202 9353 88
Department of Health,CT Revenue Funds,07/07/2016,Catering Provisions,Ludlow Hospital Catering,BRAKE BROS FOODSERVICE LTD,9231163064,29.04,202 9353 88
Department of Health,CT Revenue Funds,07/07/2016,Catering Provisions,Whitchurch Hospital Catering,BRAKE BROS FOODSERVICE LTD,9253285246,249.65,202 9353 88
Department of Health,CT Revenue Funds,07/07/2016,Catering Provisions,Whitchurch Hospital Catering,ROBERTS BAKERY,94988244,35.56,159 2440 59
Department of Health,CT Revenue Funds,07/07/2016,Catering Provisions,Whitchurch Hospital Catering,ROBERTS BAKERY,95001362,35.56,159 2440 59
Department of Health,CT Revenue Funds,07/07/2016,Catering Provisions,Whitchurch Hospital Catering,BIRCHALL FOODSERVICE,CIV0309090,34.98,
Department of Health,CT Revenue Funds,07/07/2016,Catering Provisions,Whitchurch Hospital Catering,BIRCHALL FOODSERVICE,CIV0310731,34.98,
Department of Health,CT Revenue Funds,07/07/2016,Catering Provisions,Ludlow Hospital Catering,TOTAL PRODUCE,HER-875364,105.69,896 5678 42
Department of Health,CT Revenue Funds,07/07/2016,Catering Provisions,Ludlow Hospital Catering,TOTAL PRODUCE,HER-875366,93.41,896 5678 42
Department of Health,CT Revenue Funds,07/07/2016,Catering Provisions,Whitchurch Hospital Catering,TOTAL PRODUCE,HER-878956,28.96,896 5678 42
Department of Health,CT Revenue Funds,07/07/2016,Catering Provisions,Whitchurch Hospital Catering,TOTAL PRODUCE,HER-879773,55.39,896 5678 42
Department of Health,CT Revenue Funds,07/07/2016,Catering Provisions,Whitchurch Hospital Catering,TOTAL PRODUCE,HER-880588,36.82,896 5678 42
Department of Health,CT Revenue Funds,07/07/2016,Catering Provisions,Whitchurch Hospital Catering,TOTAL PRODUCE,HER-881618,16.57,896 5678 42
Department of Health,CT Revenue Funds,07/07/2016,Catering Provisions,Ludlow Hospital Catering,JOHN SHEPPARD BUTCHERS LTD,SINV485427,112.52,
Department of Health,CT Revenue Funds,07/07/2016,Catering Provisions,Whitchurch Hospital Catering,JOHN SHEPPARD BUTCHERS LTD,SINV489466,187.96,
Department of Health,CT Revenue Funds,07/07/2016,Catering Provisions,Bridgnorth Hospital Catering,JOHN SHEPPARD BUTCHERS LTD,SINV491421,44.38,
Department of Health,CT Revenue Funds,07/07/2016,Catering Provisions,Bridgnorth Hospital Catering,JOHN SHEPPARD BUTCHERS LTD,SINV491819,11.11,
Department of Health,CT Revenue Funds,07/07/2016,Charity Donations,Payables,CHARITIES TRUST,JUNE16,30,
Department of Health,CT Revenue Funds,07/07/2016,Charity Donations,Payables,CHARITIES TRUST,MAR16,30,
Department of Health,CT Revenue Funds,07/07/2016,Computer Hardware & Software,MSK Management & Admin,MISCO COMPUTER SUPPLIES LTD,10826903,-12.28,494 1756 15
Department of Health,CT Revenue Funds,07/07/2016,Computer Hardware & Software,MSK Management & Admin,MISCO COMPUTER SUPPLIES LTD,10826903,417.12,494 1756 15
Department of Health,CT Revenue Funds,07/07/2016,Computer Hardware & Software,MSK Management & Admin,MISCO COMPUTER SUPPLIES LTD,10826903,-61.38,494 1756 15
Department of Health,CT Revenue Funds,07/07/2016,Computer Hardware & Software,MSK Management & Admin,MISCO COMPUTER SUPPLIES LTD,10826903,83.43,494 1756 15
Department of Health,CT Revenue Funds,07/07/2016,Computer Network Costs,Library & Knowledge Service,WEBEX COMMUNICATIONS UK LTD,7544854,26.07,815974302
Department of Health,CT Revenue Funds,07/07/2016,Computer Network Costs,Library & Knowledge Service,WEBEX COMMUNICATIONS UK LTD,7544854,130.34,815974302
Department of Health,CT Revenue Funds,07/07/2016,Computing & Phones Salary Sacrifice,Payables,SME HCI LTD,125546 DISPOSAL FEE,50,
Department of Health,CT Revenue Funds,07/07/2016,Computing & Phones Salary Sacrifice,Payables,SME HCI LTD,125546 DISPOSAL FEE,50,
Department of Health,CT Revenue Funds,07/07/2016,Computing & Phones Salary Sacrifice,Payables,SME HCI LTD,125546 DISPOSAL FEE,50,
Department of Health,CT Revenue Funds,07/07/2016,Computing & Phones Salary Sacrifice,Payables,SME HCI LTD,125546 DISPOSAL FEE,50,
Department of Health,CT Revenue Funds,07/07/2016,Computing & Phones Salary Sacrifice,Payables,SME HCI LTD,125546 DISPOSAL FEE,50,
Department of Health,CT Revenue Funds,07/07/2016,Confidential Waste Collection,Crown Business Park,PHS GROUP LTD,63868922,55.1,542 9514 38
Department of Health,CT Revenue Funds,07/07/2016,Confidential Waste Collection,Bishops Castle Hospital,PHS GROUP LTD,63899030,35.15,542 9514 38
Department of Health,CT Revenue Funds,07/07/2016,Confidential Waste Collection,Longbow Unit B,PHS GROUP LTD,63904642,8.42,542 9514 38
Department of Health,CT Revenue Funds,07/07/2016,Confidential Waste Collection,Dale Acre Way,PHS GROUP LTD,63913672,58.33,542 9514 38
Department of Health,CT Revenue Funds,07/07/2016,Confidential Waste Collection,William Farr House,PHS GROUP LTD,63928023,236.55,542 9514 38
Department of Health,CT Revenue Funds,07/07/2016,Contract : Photocopying Rental & Charges,Ludlow Hospital Inpatient Wards,KONICA BUSINESS MACHINES (UK) LTD,1124376342,62.47,974 9607 63
Department of Health,CT Revenue Funds,07/07/2016,Contract : Photocopying Rental & Charges,Ludlow Hospital Inpatient Wards,KONICA BUSINESS MACHINES (UK) LTD,1124387936,133.02,974 9607 63
Department of Health,CT Revenue Funds,07/07/2016,Contract : Photocopying Rental & Charges,Whitchurch Hospital Administration,XEROX UK,1605751965,93.06,232 3646 82
Department of Health,CT Revenue Funds,07/07/2016,Contract : Photocopying Rental & Charges,Community Equipment Stores,XEROX UK,1605751966,105.68,232 3646 82
Department of Health,CT Revenue Funds,07/07/2016,Contract : Photocopying Rental & Charges,Occupational Health Shropshire,XEROX FINANCE LTD,97041871,156.79,232 3646 82
Department of Health,CT Revenue Funds,07/07/2016,Course Fees,Shropshire Child Psychiatry,UNIVERSITY COLLEGE LONDON,3268,600,
Department of Health,CT Revenue Funds,07/07/2016,Course Fees,North Shropshire Health Visitors,THE UNIVERSITY OF WARWICK,90952638,150,
Department of Health,CT Revenue Funds,07/07/2016,Court Order Payment,Payables,TELFORD & WREKIN COUNCIL,13614546-JUN16,35.6,162 3321 00
Department of Health,CT Revenue Funds,07/07/2016,Court Order Payment,Payables,HEREFORDSHIRE COUNCIL,A18571317/70059 - JUN16,230.45,
Department of Health,CT Revenue Funds,07/07/2016,Court Order Payment,Payables,SHROPSHIRE COUNCIL,JUN16,236.18,162 3474 72
Department of Health,CT Revenue Funds,07/07/2016,Court Order Payment,Payables,CHILD SUPPORT AGENCY,NA832670D-JUN16,274.29,
Department of Health,CT Revenue Funds,07/07/2016,Cycle to Work Salary Sacrifice,Payables,SME HCI LTD,124441 PAYMENT 12 & 13,100,
Department of Health,CT Revenue Funds,07/07/2016,Cycle to Work Salary Sacrifice,Payables,SME HCI LTD,124441 PAYMENT 12 & 13,100.01,
Department of Health,CT Revenue Funds,07/07/2016,Cycle to Work Salary Sacrifice,Payables,SME HCI LTD,124441 PAYMENT 12 & 13,5.63,
Department of Health,CT Revenue Funds,07/07/2016,Cycle to Work Salary Sacrifice,Payables,SME HCI LTD,124441 PAYMENT 12 & 13,69.44,
Department of Health,CT Revenue Funds,07/07/2016,Cycle to Work Salary Sacrifice,Payables,SME HCI LTD,124441 PAYMENT 12 & 13,72.9,
Department of Health,CT Revenue Funds,07/07/2016,Cycle to Work Salary Sacrifice,Payables,SME HCI LTD,124441 PAYMENT 12 & 13,69.44,
Department of Health,CT Revenue Funds,07/07/2016,Cycle to Work Salary Sacrifice,Payables,SME HCI LTD,124441 PAYMENT 12 & 13,69.44,
Department of Health,CT Revenue Funds,07/07/2016,Cycle to Work Salary Sacrifice,Payables,SME HCI LTD,124441 PAYMENT 12 & 13,48.1,
Department of Health,CT Revenue Funds,07/07/2016,Cycle to Work Salary Sacrifice,Payables,SME HCI LTD,124441 PAYMENT 12 & 13,100,
Department of Health,CT Revenue Funds,07/07/2016,Cycle to Work Salary Sacrifice,Payables,SME HCI LTD,124441 PAYMENT 12 & 13,100,
Department of Health,CT Revenue Funds,07/07/2016,Cycle to Work Salary Sacrifice,Payables,SME HCI LTD,124441 PAYMENT 12 & 13,8,
Department of Health,CT Revenue Funds,07/07/2016,Cycle to Work Salary Sacrifice,Payables,SME HCI LTD,124441 PAYMENT 12 & 13,69.44,
Department of Health,CT Revenue Funds,07/07/2016,Cycle to Work Salary Sacrifice,Payables,SME HCI LTD,124767 PAYMENT 9,36.83,
Department of Health,CT Revenue Funds,07/07/2016,Cycle to Work Salary Sacrifice,Payables,SME HCI LTD,124767 PAYMENT 9,40.08,
Department of Health,CT Revenue Funds,07/07/2016,Cycle to Work Salary Sacrifice,Payables,SME HCI LTD,124767 PAYMENT 9,33.37,
Department of Health,CT Revenue Funds,07/07/2016,Cycle to Work Salary Sacrifice,Payables,SME HCI LTD,124767 PAYMENT 9,69.45,
Department of Health,CT Revenue Funds,07/07/2016,Cycle to Work Salary Sacrifice,Payables,SME HCI LTD,124767 PAYMENT 9,29.57,
Department of Health,CT Revenue Funds,07/07/2016,Cycle to Work Salary Sacrifice,Payables,SME HCI LTD,124900 PAYMENT 8,33.37,
Department of Health,CT Revenue Funds,07/07/2016,Cycle to Work Salary Sacrifice,Payables,SME HCI LTD,125256 PAYMENT 4,18.09,
Department of Health,CT Revenue Funds,07/07/2016,Cycle to Work Salary Sacrifice,Payables,SME HCI LTD,125469 PAYMENT 2,36.51,
Department of Health,CT Revenue Funds,07/07/2016,Cycle to Work Salary Sacrifice,Payables,SME HCI LTD,125469 PAYMENT 2,45.17,
Department of Health,CT Revenue Funds,07/07/2016,Cycle to Work Salary Sacrifice,Payables,SME HCI LTD,125469 PAYMENT 2,48.64,
Department of Health,CT Revenue Funds,07/07/2016,Cycle to Work Salary Sacrifice,Payables,SME HCI LTD,125469 PAYMENT 2,68.48,
Department of Health,CT Revenue Funds,07/07/2016,Cycle to Work Salary Sacrifice,Payables,SME HCI LTD,125469 PAYMENT 2,38.67,
Department of Health,CT Revenue Funds,07/07/2016,Cycle to Work Salary Sacrifice,Payables,SME HCI LTD,125572 PAYMENT 1,48.32,
Department of Health,CT Revenue Funds,07/07/2016,Dental Officer,PDS Out of Hours,MARK WARD,OOHS JUN16,658.56,
Department of Health,CT Revenue Funds,07/07/2016,Dental Surgery Equipment,SpecialCare and Access,LG DAVIS (STATIONERS) LTD,086916,159.6,110 6445 14
Department of Health,CT Revenue Funds,07/07/2016,Dental Surgery Equipment,SpecialCare and Access,DENTAL PRACTICE SYSTEMS,21142,27,
Department of Health,CT Revenue Funds,07/07/2016,Dental Surgery Equipment,SpecialCare and Access,DENTAL PRACTICE SYSTEMS,21142,135,
Department of Health,CT Revenue Funds,07/07/2016,Dental Surgery Equipment,SpecialCare and Access,DENTAL PRACTICE SYSTEMS,21142,-4.5,
Department of Health,CT Revenue Funds,07/07/2016,Dental Surgery Equipment,SpecialCare and Access,DENTAL PRACTICE SYSTEMS,21142,-22.5,
Department of Health,CT Revenue Funds,07/07/2016,Dental Surgery Equipment,SpecialCare and Access,OFFICE DEPOT,301505,3.2,
Department of Health,CT Revenue Funds,07/07/2016,Dental Surgery Equipment,SpecialCare and Access,OFFICE DEPOT,301505,16,
Department of Health,CT Revenue Funds,07/07/2016,Dental Surgery Equipment,Dental Central Admin,WRIGHT COTTRELL,92251505,-150,
Department of Health,CT Revenue Funds,07/07/2016,Dental Surgery Equipment,Dental Central Admin,WRIGHT COTTRELL,92251505,-30,
Department of Health,CT Revenue Funds,07/07/2016,Dental Surgery Equipment,Dental Central Admin,WRIGHT COTTRELL,92251505,150,
Department of Health,CT Revenue Funds,07/07/2016,Dental Surgery Equipment,Dental Central Admin,WRIGHT COTTRELL,92251505,30,
Department of Health,CT Revenue Funds,07/07/2016,Dental Surgery Equipment,Dental Central Admin,WRIGHT COTTRELL,92251505,-30,
Department of Health,CT Revenue Funds,07/07/2016,Dental Surgery Equipment,Dental Central Admin,WRIGHT COTTRELL,92251505,30,
Department of Health,CT Revenue Funds,07/07/2016,Dental Surgery Equipment,Dental Central Admin,WRIGHT COTTRELL,92251505,150,
Department of Health,CT Revenue Funds,07/07/2016,Dental Surgery Equipment,Dental Central Admin,WRIGHT COTTRELL,92261364,24.8,
Department of Health,CT Revenue Funds,07/07/2016,Dental Surgery Equipment,Dental Central Admin,WRIGHT COTTRELL,92261364,-24.8,
Department of Health,CT Revenue Funds,07/07/2016,Dental Surgery Equipment,Dental Central Admin,WRIGHT COTTRELL,92261364,24.8,
Department of Health,CT Revenue Funds,07/07/2016,Dental Surgery Equipment,Dental Central Admin,WRIGHT COTTRELL,92261364,-24.8,
Department of Health,CT Revenue Funds,07/07/2016,Dental Surgery Equipment,Dental Central Admin,WRIGHT COTTRELL,92261364,124,
Department of Health,CT Revenue Funds,07/07/2016,Dental Surgery Equipment,Dental Central Admin,WRIGHT COTTRELL,92269374,-24.8,
Department of Health,CT Revenue Funds,07/07/2016,Dental Surgery Equipment,Dental Central Admin,WRIGHT COTTRELL,92269374,124,
Department of Health,CT Revenue Funds,07/07/2016,Dental Surgery Equipment,Dental Central Admin,WRIGHT COTTRELL,92269374,24.8,
Department of Health,CT Revenue Funds,07/07/2016,Dental Surgery Instruments,SpecialCare and Access,MISCO COMPUTER SUPPLIES LTD,10939182,-0.36,494 1756 15
Department of Health,CT Revenue Funds,07/07/2016,Dental Surgery Instruments,SpecialCare and Access,MISCO COMPUTER SUPPLIES LTD,10939182,3.87,494 1756 15
Department of Health,CT Revenue Funds,07/07/2016,Dental Surgery Instruments,SpecialCare and Access,MISCO COMPUTER SUPPLIES LTD,10939182,19.35,494 1756 15
Department of Health,CT Revenue Funds,07/07/2016,Dental Surgery Instruments,SpecialCare and Access,MISCO COMPUTER SUPPLIES LTD,10939182,-1.8,494 1756 15
Department of Health,CT Revenue Funds,07/07/2016,Dental Surgery Sundries,C Arms Dental Practice,AURORA CBA LTD,120184,16.5,
Department of Health,CT Revenue Funds,07/07/2016,Dental Surgery Sundries,SpecialCare and Access,AURORA CBA LTD,120220,27.25,
Department of Health,CT Revenue Funds,07/07/2016,Dental Surgery Sundries,SpecialCare and Access,AURORA CBA LTD,120421,18.25,
Department of Health,CT Revenue Funds,07/07/2016,Dental Surgery Sundries,SpecialCare and Access,OSWESTRY DENTAL LAB,1474-JUN16,61.5,
Department of Health,CT Revenue Funds,07/07/2016,Dental Surgery Sundries,SpecialCare and Access,OSWESTRY DENTAL LAB,510-JUN16,208,
Department of Health,CT Revenue Funds,07/07/2016,Dental Surgery Sundries,M Drayton Dental Practice,HENRY SCHEIN MINERVA - CONSUMABLES,RI66014874,5.7,573 7789 79
Department of Health,CT Revenue Funds,07/07/2016,Dental Surgery Sundries,M Drayton Dental Practice,HENRY SCHEIN MINERVA - CONSUMABLES,RI66014874,28.5,573 7789 79
Department of Health,CT Revenue Funds,07/07/2016,Dental Surgery Sundries,ICS North East,HENRY SCHEIN MINERVA - CONSUMABLES,RI66048702,22.31,573 7789 79
Department of Health,CT Revenue Funds,07/07/2016,Dental Surgery Sundries,ICS North East,HENRY SCHEIN MINERVA - CONSUMABLES,RI66048702,4.46,573 7789 79
Department of Health,CT Revenue Funds,07/07/2016,Dental Surgery Sundries,SpecialCare and Access,S4 DENTAL LABORATORY,SEAGDAWLEY-JUN16,188,
Department of Health,CT Revenue Funds,07/07/2016,Dental Surgery Sundries,SpecialCare and Access,S4 DENTAL LABORATORY,SEAGSHREW-JUN16,84.5,
Department of Health,CT Revenue Funds,07/07/2016,Dental Surgery Sundries,SpecialCare and Access,S4 DENTAL LABORATORY,SHR01-JUN16,182.5,
Department of Health,CT Revenue Funds,07/07/2016,Dental Surgery Sundries,SpecialCare and Access,S4 DENTAL LABORATORY,ZUBKO1-JUN16,305,
Department of Health,CT Revenue Funds,07/07/2016,Disclosure & Barring Service Checks,HR and Workforce,CAPITA RESOURCING LTD,R0033974,136.5,
Department of Health,CT Revenue Funds,07/07/2016,Disclosure & Barring Service Checks,HR and Workforce,CAPITA RESOURCING LTD,R0033974,1330,
Department of Health,CT Revenue Funds,07/07/2016,Drugs,Oswestry Minor Injuries Unit,AAH PHARMACEUTICALS,87768223S,65,546 5733 22
Department of Health,CT Revenue Funds,07/07/2016,Drugs,Oswestry Minor Injuries Unit,AAH PHARMACEUTICALS,87768223S,13,546 5733 22
Department of Health,CT Revenue Funds,07/07/2016,Drugs,Oswestry Minor Injuries Unit,AAH PHARMACEUTICALS,87768224K,8.08,546 5733 22
Department of Health,CT Revenue Funds,07/07/2016,Drugs,Oswestry Minor Injuries Unit,AAH PHARMACEUTICALS,87768224K,1.62,546 5733 22
Department of Health,CT Revenue Funds,07/07/2016,Drugs,Oswestry Minor Injuries Unit,LEXON UK LTD,SO10516414,65.2,661 2658 33
Department of Health,CT Revenue Funds,07/07/2016,Drugs,Oswestry Minor Injuries Unit,LEXON UK LTD,SO10516414,13.04,661 2658 33
Department of Health,CT Revenue Funds,07/07/2016,Drugs,Stoke Heath Prison Healthcare,LEXON UK LTD,SO10589958,6.72,661 2658 33
Department of Health,CT Revenue Funds,07/07/2016,Drugs,Stoke Heath Prison Healthcare,LEXON UK LTD,SO10589958,33.6,661 2658 33
Department of Health,CT Revenue Funds,07/07/2016,Drugs,Stoke Heath Prison Healthcare,LEXON UK LTD,SO10638462,171.4,661 2658 33
Department of Health,CT Revenue Funds,07/07/2016,Drugs,Stoke Heath Prison Healthcare,LEXON UK LTD,SO10638462,34.28,661 2658 33
Department of Health,CT Revenue Funds,07/07/2016,DWP Direct Earnings Attachment,Payables,SHROPSHIRE COUNCIL,JUNE16,209.14,162 3474 72
Department of Health,CT Revenue Funds,07/07/2016,DWP Direct Earnings Attachment,Payables,DEPARTMENT FOR WORK AND PENSIONS,NP042517C/YY434806B/JN254791D,66,
Department of Health,CT Revenue Funds,07/07/2016,Electrical Maintenance/Repairs,Shrewsbury and Atcham North Interdisciplinary Teams,TOPS TYPEWRITER SERVICES,2016171,45,
Department of Health,CT Revenue Funds,07/07/2016,Electricity,Lady Forrester Much Wenlock,BRITISH GAS BUSINESS,9517457198-986111325,4.55,684 9667 62
Department of Health,CT Revenue Funds,07/07/2016,Electricity,Lady Forrester Much Wenlock,BRITISH GAS BUSINESS,9517457198-986111325,90.97,684 9667 62
Department of Health,CT Revenue Funds,07/07/2016,Electricity,Castle Foregate 71,BRITISH GAS BUSINESS,9517457198-986111326,355.6,684 9667 62
Department of Health,CT Revenue Funds,07/07/2016,Electricity,Castle Foregate 71,BRITISH GAS BUSINESS,9517457198-986111326,71.12,684 9667 62
Department of Health,CT Revenue Funds,07/07/2016,Electricity,Whitchurch Hospital,BRITISH GAS BUSINESS,9517457198-986111327,2471.3,684 9667 62
Department of Health,CT Revenue Funds,07/07/2016,Electricity,Whitchurch Hospital,BRITISH GAS BUSINESS,9517457198-986111327,494.26,684 9667 62
Department of Health,CT Revenue Funds,07/07/2016,Electricity,Hadley GP Premises,BRITISH GAS BUSINESS,9517457198-986111328,0.96,684 9667 62
Department of Health,CT Revenue Funds,07/07/2016,Electricity,Hadley GP Premises,BRITISH GAS BUSINESS,9517457198-986111328,19.25,684 9667 62
Department of Health,CT Revenue Funds,07/07/2016,Electricity,Oakengates GPs Premises,BRITISH GAS BUSINESS,9517457198-986111329,26.08,684 9667 62
Department of Health,CT Revenue Funds,07/07/2016,Electricity,Oakengates GPs Premises,BRITISH GAS BUSINESS,9517457198-986111329,130.4,684 9667 62
Department of Health,CT Revenue Funds,07/07/2016,Electricity,Madeley GP Premises,BRITISH GAS BUSINESS,9517457198-986111330,76.67,684 9667 62
Department of Health,CT Revenue Funds,07/07/2016,Electricity,Madeley GP Premises,BRITISH GAS BUSINESS,9517457198-986111330,3.83,684 9667 62
Department of Health,CT Revenue Funds,07/07/2016,Electricity,Sutton Hill GP Premises,BRITISH GAS BUSINESS,9517457198-986111331,35.38,684 9667 62
Department of Health,CT Revenue Funds,07/07/2016,Electricity,Sutton Hill GP Premises,BRITISH GAS BUSINESS,9517457198-986111331,1.77,684 9667 62
Department of Health,CT Revenue Funds,07/07/2016,Electricity,Crown Business Park,BRITISH GAS BUSINESS,959115991,231.37,684 9667 62
Department of Health,CT Revenue Funds,07/07/2016,Electricity,Crown Business Park,BRITISH GAS BUSINESS,959115991,1156.85,684 9667 62
Department of Health,CT Revenue Funds,07/07/2016,Electromedical Equipment Instruments,Community Physiotherapy (T&W),PATTERSON MEDICAL LTD,5144102206,29.7,945 7652 83
Department of Health,CT Revenue Funds,07/07/2016,Electromedical Equipment Instruments,Community Physiotherapy (T&W),PATTERSON MEDICAL LTD,5144102206,5.94,945 7652 83
Department of Health,CT Revenue Funds,07/07/2016,Electromedical Equipment Instruments,North East Shropshire Physiotherapy Clinics,PATTERSON MEDICAL LTD,5144109927,8.43,945 7652 83
Department of Health,CT Revenue Funds,07/07/2016,Electromedical Equipment Instruments,North East Shropshire Physiotherapy Clinics,PATTERSON MEDICAL LTD,5144109927,75,945 7652 83
Department of Health,CT Revenue Funds,07/07/2016,Electromedical Equipment Instruments,North East Shropshire Physiotherapy Clinics,PATTERSON MEDICAL LTD,5144109927,7.52,945 7652 83
Department of Health,CT Revenue Funds,07/07/2016,Electromedical Equipment Instruments,North East Shropshire Physiotherapy Clinics,PATTERSON MEDICAL LTD,5144109927,5.62,945 7652 83
Department of Health,CT Revenue Funds,07/07/2016,Electromedical Equipment Instruments,North East Shropshire Physiotherapy Clinics,PATTERSON MEDICAL LTD,5144109927,42.15,945 7652 83
Department of Health,CT Revenue Funds,07/07/2016,Electromedical Equipment Instruments,North East Shropshire Physiotherapy Clinics,PATTERSON MEDICAL LTD,5144109927,28.09,945 7652 83
Department of Health,CT Revenue Funds,07/07/2016,Electromedical Equipment Instruments,North East Shropshire Physiotherapy Clinics,PATTERSON MEDICAL LTD,5144109927,15,945 7652 83
Department of Health,CT Revenue Funds,07/07/2016,Electromedical Equipment Instruments,North East Shropshire Physiotherapy Clinics,PATTERSON MEDICAL LTD,5144109927,37.62,945 7652 83
Department of Health,CT Revenue Funds,07/07/2016,Enteral Feeding,Community Childrens Nurses,GB UK HEALTHCARE LTD,0000066268,19.6,933 1964 16
Department of Health,CT Revenue Funds,07/07/2016,Enteral Feeding,Community Childrens Nurses,GB UK HEALTHCARE LTD,0000066268,98,933 1964 16
Department of Health,CT Revenue Funds,07/07/2016,Enteral Feeding,Community Childrens Nurses,GB UK HEALTHCARE LTD,0000066292,8,933 1964 16
Department of Health,CT Revenue Funds,07/07/2016,Enteral Feeding,Community Childrens Nurses,GB UK HEALTHCARE LTD,0000066292,9,933 1964 16
Department of Health,CT Revenue Funds,07/07/2016,Enteral Feeding,Community Childrens Nurses,GB UK HEALTHCARE LTD,0000066292,40,933 1964 16
Department of Health,CT Revenue Funds,07/07/2016,Enteral Feeding,Community Childrens Nurses,GB UK HEALTHCARE LTD,0000066292,45,933 1964 16
Department of Health,CT Revenue Funds,07/07/2016,Enteral Feeding,Community Childrens Nurses,GB UK HEALTHCARE LTD,0000066307,21.6,933 1964 16
Department of Health,CT Revenue Funds,07/07/2016,Enteral Feeding,Community Childrens Nurses,GB UK HEALTHCARE LTD,0000066307,108,933 1964 16
Department of Health,CT Revenue Funds,07/07/2016,Enteral Feeding,Community Childrens Nurses,GB UK HEALTHCARE LTD,0000066317,98,933 1964 16
Department of Health,CT Revenue Funds,07/07/2016,Enteral Feeding,Community Childrens Nurses,GB UK HEALTHCARE LTD,0000066317,19.6,933 1964 16
Department of Health,CT Revenue Funds,07/07/2016,Enteral Feeding,Community Childrens Nurses,GB UK HEALTHCARE LTD,0000066756,10.6,933 1964 16
Department of Health,CT Revenue Funds,07/07/2016,Enteral Feeding,Community Childrens Nurses,GB UK HEALTHCARE LTD,0000066756,53,933 1964 16
Department of Health,CT Revenue Funds,07/07/2016,Enteral Feeding,Community Childrens Nurses,GB UK HEALTHCARE LTD,0000066768,183,933 1964 16
Department of Health,CT Revenue Funds,07/07/2016,Enteral Feeding,Community Childrens Nurses,GB UK HEALTHCARE LTD,0000066768,36.6,933 1964 16
Department of Health,CT Revenue Funds,07/07/2016,Enteral Feeding,Community Childrens Nurses,GB UK HEALTHCARE LTD,0000066830,17,933 1964 16
Department of Health,CT Revenue Funds,07/07/2016,Enteral Feeding,Community Childrens Nurses,GB UK HEALTHCARE LTD,0000066830,85,933 1964 16
Department of Health,CT Revenue Funds,07/07/2016,Enteral Feeding,Community Childrens Nurses,GB UK HEALTHCARE LTD,0000067007,19.6,933 1964 16
Department of Health,CT Revenue Funds,07/07/2016,Enteral Feeding,Community Childrens Nurses,GB UK HEALTHCARE LTD,0000067007,98,933 1964 16
Department of Health,CT Revenue Funds,07/07/2016,Equipment Maintenance Contracts,Wheelchair Services,DISABLED AIDS (CANNOCK),78601,90,
Department of Health,CT Revenue Funds,07/07/2016,Equipment Maintenance Contracts,Community Neuro Rehabilitation Team (CNRT),DISABLED AIDS (CANNOCK),78602,60,
Department of Health,CT Revenue Funds,07/07/2016,External Contracts : Catering,Bishops Castle Hospital Management,COVERAGE CARE LTD,PSI104417,2971.73,
Department of Health,CT Revenue Funds,07/07/2016,External Contracts : Domestics,Mercian House,AFRESH CLEANING SERVICE,619,534,
Department of Health,CT Revenue Funds,07/07/2016,External Contracts : Domestics,Lancaster Road Estates,SHROPSHIRE COUNCIL,CBX002063,514,162 3474 72
Department of Health,CT Revenue Funds,07/07/2016,External Contracts : Domestics,South Hermitage Medical Practice,RYMINSTER LTD,CWC/0169,114.21,
Department of Health,CT Revenue Funds,07/07/2016,External Contracts : Domestics,Community Equipment Stores,FRESH HOUSE PROFESSIONAL OFFICE & DOMESTIC CLEANING,FH000149,84,
Department of Health,CT Revenue Funds,07/07/2016,External Contracts : Domestics,Tissue Viability Nurses (T&W),FRESH HOUSE PROFESSIONAL OFFICE & DOMESTIC CLEANING,FH000150,24,
Department of Health,CT Revenue Funds,07/07/2016,External Contracts : Domestics,Community Equipment Stores,FRESH HOUSE PROFESSIONAL OFFICE & DOMESTIC CLEANING,FH000160,84,
Department of Health,CT Revenue Funds,07/07/2016,Fair Share Credit Union,Payables,FAIRSHARE CREDIT UNION LTD,JUN16,540,
Department of Health,CT Revenue Funds,07/07/2016,Fire/Security/Alarm Equipment,Lancaster Road Estates,SECURITY WISE LTD,124742,65,434 0423 89
Department of Health,CT Revenue Funds,07/07/2016,Fire/Security/Alarm Equipment,MSK Rheumatology,ADT FIRE & SECURITY,32809719-02,74,
Department of Health,CT Revenue Funds,07/07/2016,"Forms, Record Cards & Booklets",Telford School Nurses,LG DAVIS (STATIONERS) LTD,086268,69,110 6445 14
Department of Health,CT Revenue Funds,07/07/2016,"Forms, Record Cards & Booklets",Community Childrens Nurses,LG DAVIS (STATIONERS) LTD,086915,279,110 6445 14
Department of Health,CT Revenue Funds,07/07/2016,Furniture & Fittings,Dudley School Nurses,EMERGENT CROWN OFFICE,123393,42.39,516 1639 55
Department of Health,CT Revenue Funds,07/07/2016,Furniture & Fittings,Dudley School Nurses,EMERGENT CROWN OFFICE,123393,211.95,516 1639 55
Department of Health,CT Revenue Funds,07/07/2016,Furniture & Fittings,Dudley School Nurses,EMERGENT CROWN OFFICE,123394,13.99,516 1639 55
Department of Health,CT Revenue Funds,07/07/2016,Furniture & Fittings,Dudley School Nurses,EMERGENT CROWN OFFICE,123394,69.96,516 1639 55
Department of Health,CT Revenue Funds,07/07/2016,Furniture & Fittings,Organisational Development,POSTURITE (UK) LTD,INV0346078,-0.3,
Department of Health,CT Revenue Funds,07/07/2016,Furniture & Fittings,Organisational Development,POSTURITE (UK) LTD,INV0346078,-1.5,
Department of Health,CT Revenue Funds,07/07/2016,Furniture & Fittings,Organisational Development,POSTURITE (UK) LTD,INV0346078,90,
Department of Health,CT Revenue Funds,07/07/2016,Furniture & Fittings,Organisational Development,POSTURITE (UK) LTD,INV0346078,18,
Department of Health,CT Revenue Funds,07/07/2016,Gas,14 Deercote Hollinswood Premises,SEVERN TRENT WATER LTD,8770026563-660155738,145.86,486 9855 65
Department of Health,CT Revenue Funds,07/07/2016,General Practitioners,APCS Dermatology,MARYSVILLE MEDICAL PRACTICE,01743-193,3943.64,
Department of Health,CT Charitable Funds,07/07/2016,Grants re Patients Welfare,SCW1 Whitchurch Hospital Patient Welfare,PMB LANDSCAPES LTD,2187,1166.17,
Department of Health,CT Charitable Funds,07/07/2016,Grants re Patients Welfare,SCW1 Whitchurch Hospital Patient Welfare,PMB LANDSCAPES LTD,2187,233.23,
Department of Health,CT Revenue Funds,07/07/2016,Hoists/Slings,Community Equipment Stores,OSPREY HEALTHCARE LTD,12960,169,
Department of Health,CT Revenue Funds,07/07/2016,Hoists/Slings,Community Equipment Stores,OSPREY HEALTHCARE LTD,12960,15,
Department of Health,CT Revenue Funds,07/07/2016,Hoists/Slings,Community Equipment Stores,OSPREY HEALTHCARE LTD,12960,33.8,
Department of Health,CT Revenue Funds,07/07/2016,Hoists/Slings,Community Equipment Stores,OSPREY HEALTHCARE LTD,12960,3,
Department of Health,CT Revenue Funds,07/07/2016,Hoists/Slings,Community Equipment Stores,OSPREY HEALTHCARE LTD,13050,170,
Department of Health,CT Revenue Funds,07/07/2016,Hoists/Slings,Community Equipment Stores,OSPREY HEALTHCARE LTD,13050,3,
Department of Health,CT Revenue Funds,07/07/2016,Hoists/Slings,Community Equipment Stores,OSPREY HEALTHCARE LTD,13050,34,
Department of Health,CT Revenue Funds,07/07/2016,Hoists/Slings,Community Equipment Stores,OSPREY HEALTHCARE LTD,13050,15,
Department of Health,CT Revenue Funds,07/07/2016,Hoists/Slings,Community Equipment Stores,OSPREY SLING COMPANY LTD,15104,696,
Department of Health,CT Revenue Funds,07/07/2016,Hoists/Slings,Community Equipment Stores,OSPREY SLING COMPANY LTD,15104,139.2,
Department of Health,CT Revenue Funds,07/07/2016,Hoists/Slings,Community Equipment Stores,AIDSERVICE,90759,150.3,
Department of Health,CT Revenue Funds,07/07/2016,Hoists/Slings,Community Equipment Stores,AIDSERVICE,90759,751.5,
Department of Health,CT Revenue Funds,07/07/2016,Home Management daily Living Aids Miscellaneous Appliances,Community Equipment Stores,ACCORA,034687,172,
Department of Health,CT Revenue Funds,07/07/2016,Home Management daily Living Aids Miscellaneous Appliances,Community Equipment Stores,ACCORA,034687,34.4,
Department of Health,CT Revenue Funds,07/07/2016,Home Management daily Living Aids Miscellaneous Appliances,Whitchurch Hospital Minor Injuries Unit,BSN MEDICAL LTD,121371386,43.67,834 8456 02
Department of Health,CT Revenue Funds,07/07/2016,Home Management daily Living Aids Miscellaneous Appliances,Whitchurch Hospital Minor Injuries Unit,BSN MEDICAL LTD,121371386,218.36,834 8456 02
Department of Health,CT Revenue Funds,07/07/2016,Home Management daily Living Aids Miscellaneous Appliances,Community Equipment Stores,OSPREY HEALTHCARE LTD,13062,3,
Department of Health,CT Revenue Funds,07/07/2016,Home Management daily Living Aids Miscellaneous Appliances,Community Equipment Stores,OSPREY HEALTHCARE LTD,13062,15,
Department of Health,CT Revenue Funds,07/07/2016,Home Management daily Living Aids Miscellaneous Appliances,Community Equipment Stores,OSPREY HEALTHCARE LTD,13062,31.8,
Department of Health,CT Revenue Funds,07/07/2016,Home Management daily Living Aids Miscellaneous Appliances,Community Equipment Stores,OSPREY HEALTHCARE LTD,13062,159,
Department of Health,CT Revenue Funds,07/07/2016,Home Management daily Living Aids Miscellaneous Appliances,Community Equipment Stores,THERAPOSTURE LTD,131623,77,
Department of Health,CT Revenue Funds,07/07/2016,Home Management daily Living Aids Miscellaneous Appliances,Community Equipment Stores,THERAPOSTURE LTD,131623,15.4,
Department of Health,CT Revenue Funds,07/07/2016,Home Management daily Living Aids Miscellaneous Appliances,Community Equipment Stores,HEALTHCARE MATTERS,68398,140,862 9754 77
Department of Health,CT Revenue Funds,07/07/2016,Home Management daily Living Aids Miscellaneous Appliances,Community Equipment Stores,HEALTHCARE MATTERS,68399,70,862 9754 77
Department of Health,CT Revenue Funds,07/07/2016,Home Management daily Living Aids Miscellaneous Appliances,Community Equipment Stores,HEALTHCARE MATTERS,68400,57.5,862 9754 77
Department of Health,CT Revenue Funds,07/07/2016,Home Management daily Living Aids Miscellaneous Appliances,Community Equipment Stores,HEALTHCARE MATTERS,68401,66.25,862 9754 77
Department of Health,CT Revenue Funds,07/07/2016,Home Management daily Living Aids Miscellaneous Appliances,Community Equipment Stores,HEALTHCARE MATTERS,68402,265.37,862 9754 77
Department of Health,CT Revenue Funds,07/07/2016,Home Management daily Living Aids Miscellaneous Appliances,Community Equipment Stores,HEALTHCARE MATTERS,68403,41.9,862 9754 77
Department of Health,CT Revenue Funds,07/07/2016,Home Management daily Living Aids Miscellaneous Appliances,Community Equipment Stores,HEALTHCARE MATTERS,68404,57.5,862 9754 77
Department of Health,CT Revenue Funds,07/07/2016,Home Management daily Living Aids Miscellaneous Appliances,Community Equipment Stores,HEALTHCARE MATTERS,68405,146.4,862 9754 77
Department of Health,CT Revenue Funds,07/07/2016,Home Management daily Living Aids Miscellaneous Appliances,Community Equipment Stores,HEALTHCARE MATTERS,68406,14,862 9754 77
Department of Health,CT Revenue Funds,07/07/2016,Home Management daily Living Aids Miscellaneous Appliances,Community Equipment Stores,HEALTHCARE MATTERS,68406,70,862 9754 77
Department of Health,CT Revenue Funds,07/07/2016,Home Management daily Living Aids Miscellaneous Appliances,Community Equipment Stores,HEALTHCARE MATTERS,68431,234.09,862 9754 77
Department of Health,CT Revenue Funds,07/07/2016,Home Management daily Living Aids Miscellaneous Appliances,Community Equipment Stores,HEALTHCARE MATTERS,68432,92.5,862 9754 77
Department of Health,CT Revenue Funds,07/07/2016,Home Management daily Living Aids Miscellaneous Appliances,Community Equipment Stores,HEALTHCARE MATTERS,68435,117.5,862 9754 77
Department of Health,CT Revenue Funds,07/07/2016,Home Management daily Living Aids Miscellaneous Appliances,Community Equipment Stores,HEALTHCARE MATTERS,68437,57.5,862 9754 77
Department of Health,CT Revenue Funds,07/07/2016,Home Management daily Living Aids Miscellaneous Appliances,Community Equipment Stores,HEALTHCARE MATTERS,68440,118.75,862 9754 77
Department of Health,CT Revenue Funds,07/07/2016,Home Management daily Living Aids Miscellaneous Appliances,Community Equipment Stores,HEALTHCARE MATTERS,68444,140,862 9754 77
Department of Health,CT Revenue Funds,07/07/2016,Home Management daily Living Aids Miscellaneous Appliances,Community Equipment Stores,HEALTHCARE MATTERS,68444,28,862 9754 77
Department of Health,CT Revenue Funds,07/07/2016,Home Management daily Living Aids Miscellaneous Appliances,Community Equipment Stores,HEALTHCARE MATTERS,68448,156.12,862 9754 77
Department of Health,CT Revenue Funds,07/07/2016,Home Management daily Living Aids Miscellaneous Appliances,Community Equipment Stores,HEALTHCARE MATTERS,68450,112.28,862 9754 77
Department of Health,CT Revenue Funds,07/07/2016,Home Management daily Living Aids Miscellaneous Appliances,Community Equipment Stores,HEALTHCARE MATTERS,68502,135,862 9754 77
Department of Health,CT Revenue Funds,07/07/2016,Home Management daily Living Aids Miscellaneous Appliances,Community Equipment Stores,HEALTHCARE MATTERS,68503,217.82,862 9754 77
Department of Health,CT Revenue Funds,07/07/2016,Home Management daily Living Aids Miscellaneous Appliances,Community Equipment Stores,HEALTHCARE MATTERS,68504,101.79,862 9754 77
Department of Health,CT Revenue Funds,07/07/2016,Home Management daily Living Aids Miscellaneous Appliances,Community Equipment Stores,HEALTHCARE MATTERS,68524,169.3,862 9754 77
Department of Health,CT Revenue Funds,07/07/2016,Home Management daily Living Aids Miscellaneous Appliances,Community Equipment Stores,HEALTHCARE MATTERS,68529,165.3,862 9754 77
Department of Health,CT Revenue Funds,07/07/2016,Home Management daily Living Aids Miscellaneous Appliances,Community Equipment Stores,HEALTHCARE MATTERS,68588,250,862 9754 77
Department of Health,CT Revenue Funds,07/07/2016,Home Management daily Living Aids Miscellaneous Appliances,Community Equipment Stores,HEALTHCARE MATTERS,68588,50,862 9754 77
Department of Health,CT Revenue Funds,07/07/2016,Home Management daily Living Aids Miscellaneous Appliances,Community Equipment Stores,HEALTHCARE MATTERS,68631,190.8,862 9754 77
Department of Health,CT Revenue Funds,07/07/2016,Home Management daily Living Aids Miscellaneous Appliances,Community Equipment Stores,HEALTHCARE MATTERS,68644,70,862 9754 77
Department of Health,CT Revenue Funds,07/07/2016,Home Management daily Living Aids Miscellaneous Appliances,Community Equipment Stores,HEALTHCARE MATTERS,68644,14,862 9754 77
Department of Health,CT Revenue Funds,07/07/2016,Home Management daily Living Aids Miscellaneous Appliances,Community Equipment Stores,HEALTHCARE MATTERS,68645,57.5,862 9754 77
Department of Health,CT Revenue Funds,07/07/2016,Home Management daily Living Aids Miscellaneous Appliances,Community Equipment Stores,HEALTHCARE MATTERS,68649,92.5,862 9754 77
Department of Health,CT Revenue Funds,07/07/2016,Home Management daily Living Aids Miscellaneous Appliances,Community Equipment Stores,HEALTHCARE MATTERS,68651,87.5,862 9754 77
Department of Health,CT Revenue Funds,07/07/2016,Home Management daily Living Aids Miscellaneous Appliances,Community Equipment Stores,HEALTHCARE MATTERS,68656,92.5,862 9754 77
Department of Health,CT Revenue Funds,07/07/2016,Home Management daily Living Aids Miscellaneous Appliances,Community Equipment Stores,HEALTHCARE MATTERS,68660,146.5,862 9754 77
Department of Health,CT Revenue Funds,07/07/2016,Home Management daily Living Aids Miscellaneous Appliances,Community Equipment Stores,HEALTHCARE MATTERS,68667,187.52,862 9754 77
Department of Health,CT Revenue Funds,07/07/2016,Home Management daily Living Aids Miscellaneous Appliances,Community Equipment Stores,HEALTHCARE MATTERS,68668,57.5,862 9754 77
Department of Health,CT Revenue Funds,07/07/2016,Home Management daily Living Aids Miscellaneous Appliances,Community Equipment Stores,HEALTHCARE MATTERS,68669,368.5,862 9754 77
Department of Health,CT Revenue Funds,07/07/2016,Home Management daily Living Aids Miscellaneous Appliances,Community Equipment Stores,HEALTHCARE MATTERS,68670,124.75,862 9754 77
Department of Health,CT Revenue Funds,07/07/2016,Home Management daily Living Aids Miscellaneous Appliances,Community Equipment Stores,HEALTHCARE MATTERS,68671,268.5,862 9754 77
Department of Health,CT Revenue Funds,07/07/2016,Home Management daily Living Aids Miscellaneous Appliances,Community Equipment Stores,HEALTHCARE MATTERS,68672,57.5,862 9754 77
Department of Health,CT Revenue Funds,07/07/2016,Home Management daily Living Aids Miscellaneous Appliances,Community Equipment Stores,HEALTHCARE MATTERS,68673,134.75,862 9754 77
Department of Health,CT Revenue Funds,07/07/2016,Home Management daily Living Aids Miscellaneous Appliances,Community Equipment Stores,IKA MOBILITY,IN0901,25,971 5578 82
Department of Health,CT Revenue Funds,07/07/2016,Home Management daily Living Aids Miscellaneous Appliances,Community Equipment Stores,IKA MOBILITY,IN0901,-25,971 5578 82
Department of Health,CT Revenue Funds,07/07/2016,Home Management daily Living Aids Miscellaneous Appliances,Community Equipment Stores,IKA MOBILITY,IN0901,125,971 5578 82
Department of Health,CT Revenue Funds,07/07/2016,Home Management daily Living Aids Miscellaneous Appliances,Community Equipment Stores,IKA MOBILITY,IN0902,185.61,971 5578 82
Department of Health,CT Revenue Funds,07/07/2016,Home Management daily Living Aids Miscellaneous Appliances,Community Equipment Stores,IKA MOBILITY,IN0902,-37.12,971 5578 82
Department of Health,CT Revenue Funds,07/07/2016,Home Management daily Living Aids Miscellaneous Appliances,Community Equipment Stores,IKA MOBILITY,IN0902,37.12,971 5578 82
Department of Health,CT Revenue Funds,07/07/2016,Home Management daily Living Aids Miscellaneous Appliances,Community Equipment Stores,IKA MOBILITY,IN0904,125,971 5578 82
Department of Health,CT Revenue Funds,07/07/2016,Home Management daily Living Aids Miscellaneous Appliances,Community Equipment Stores,IKA MOBILITY,IN0904,25,971 5578 82
Department of Health,CT Revenue Funds,07/07/2016,Home Management daily Living Aids Miscellaneous Appliances,Community Equipment Stores,IKA MOBILITY,IN0904,-25,971 5578 82
Department of Health,CT Revenue Funds,07/07/2016,Home Management daily Living Aids Miscellaneous Appliances,Community Equipment Stores,IKA MOBILITY,IN0906,46.82,971 5578 82
Department of Health,CT Revenue Funds,07/07/2016,Home Management daily Living Aids Miscellaneous Appliances,Community Equipment Stores,IKA MOBILITY,IN0906,-46.82,971 5578 82
Department of Health,CT Revenue Funds,07/07/2016,Home Management daily Living Aids Miscellaneous Appliances,Community Equipment Stores,IKA MOBILITY,IN0906,234.09,971 5578 82
Department of Health,CT Revenue Funds,07/07/2016,Home Management daily Living Aids Miscellaneous Appliances,Community Equipment Stores,KENWAY MOBILITY,KS0010112,134.75,
Department of Health,CT Revenue Funds,07/07/2016,Home Management daily Living Aids Miscellaneous Appliances,Community Equipment Stores,KENWAY MOBILITY,KS0010114,154,
Department of Health,CT Revenue Funds,07/07/2016,Home Management daily Living Aids Miscellaneous Appliances,Community Equipment Stores,KENWAY MOBILITY,KS0010115,115.5,
Department of Health,CT Revenue Funds,07/07/2016,Home Management daily Living Aids Miscellaneous Appliances,Community Equipment Stores,KENWAY MOBILITY,KS0010116,198.45,
Department of Health,CT Revenue Funds,07/07/2016,Home Management daily Living Aids Miscellaneous Appliances,Community Equipment Stores,KENWAY MOBILITY,KS0010117,115.5,
Department of Health,CT Revenue Funds,07/07/2016,Home Management daily Living Aids Miscellaneous Appliances,Community Equipment Stores,KENWAY MOBILITY,KS0010118,154,
Department of Health,CT Revenue Funds,07/07/2016,Home Management daily Living Aids Miscellaneous Appliances,Community Equipment Stores,KENWAY MOBILITY,KS0010119,154,
Department of Health,CT Revenue Funds,07/07/2016,Home Management daily Living Aids Miscellaneous Appliances,Community Equipment Stores,KENWAY MOBILITY,KS001121,154,
Department of Health,CT Revenue Funds,07/07/2016,Home Management daily Living Aids Miscellaneous Appliances,Community Equipment Stores,KENWAY MOBILITY,KS001122,135.75,
Department of Health,CT Revenue Funds,07/07/2016,Home Management daily Living Aids Miscellaneous Appliances,Community Equipment Stores,KENWAY MOBILITY,KS001123,236.95,
Department of Health,CT Revenue Funds,07/07/2016,Home Management daily Living Aids Miscellaneous Appliances,Community Equipment Stores,KENWAY MOBILITY,KS001124,154,
Department of Health,CT Revenue Funds,07/07/2016,Home Management daily Living Aids Miscellaneous Appliances,Community Equipment Stores,KENWAY MOBILITY,KS001125,96.25,
Department of Health,CT Revenue Funds,07/07/2016,Home Management daily Living Aids Miscellaneous Appliances,Community Equipment Stores,KENWAY MOBILITY,KS00120,154,
Department of Health,CT Revenue Funds,07/07/2016,Home Management daily Living Aids Miscellaneous Appliances,Community Equipment Stores,KENWAY MOBILITY,KS010111,115.5,
Department of Health,CT Revenue Funds,07/07/2016,Hospital Saturday Fund,Payables,BIRMINGHAM HOSPITAL SATURDAY FUND,JUN16,132.45,
Department of Health,CT Revenue Funds,07/07/2016,Hospitality,Governance and Strategy Management,KARENZ CATERING,LT15,40,
Department of Health,CT Revenue Funds,07/07/2016,Hospitality,Telford LAC Nurses,ALISON WOOD,REFUND/RETIREMENT COSTS,48.5,
Department of Health,CT Revenue Funds,07/07/2016,Hospitality,Infection Prevention & Control,LIZ WATKINS,RETIREMENT CAKE,120,
Department of Health,CT Revenue Funds,07/07/2016,Interpreting Services,School Nursing Enuresis,ABSOLUTE INTERPRETING AND TRANSLATIONS LTD,114219,38.5,
Department of Health,CT Revenue Funds,07/07/2016,Interpreting Services,South Shropshire Health Visitors,ABSOLUTE INTERPRETING AND TRANSLATIONS LTD,118403,31,
Department of Health,CT Revenue Funds,07/07/2016,Interpreting Services,Shropshire School Nurses,ABSOLUTE INTERPRETING AND TRANSLATIONS LTD,118525,-38.5,
Department of Health,CT Revenue Funds,07/07/2016,Interpreting Services,Universal Child Health,ABSOLUTE INTERPRETING AND TRANSLATIONS LTD,118525,38.5,
Department of Health,CT Revenue Funds,07/07/2016,Interpreting Services,Shropshire School Nurses,ABSOLUTE INTERPRETING AND TRANSLATIONS LTD,118525,38.5,
Department of Health,CT Revenue Funds,07/07/2016,Interpreting Services,School Nursing Enuresis,ABSOLUTE INTERPRETING AND TRANSLATIONS LTD,118525,38.5,
Department of Health,CT Revenue Funds,07/07/2016,Interpreting Services,Universal Child Health,ABSOLUTE INTERPRETING AND TRANSLATIONS LTD,118525,-38.5,
Department of Health,CT Revenue Funds,07/07/2016,Interpreting Services,Shrewsbury and Atcham Physiotherapy Clinics,ABSOLUTE INTERPRETING AND TRANSLATIONS LTD,118526,38.5,
Department of Health,CT Revenue Funds,07/07/2016,Interpreting Services,Monkmoor CDC,ABSOLUTE INTERPRETING AND TRANSLATIONS LTD,118527,77,
Department of Health,CT Revenue Funds,07/07/2016,Interpreting Services,North Shropshire Health Visitors,ABSOLUTE INTERPRETING AND TRANSLATIONS LTD,118528,38.5,
Department of Health,CT Revenue Funds,07/07/2016,Interpreting Services,Trainee Health Visitors,ABSOLUTE INTERPRETING AND TRANSLATIONS LTD,118529,38.5,
Department of Health,CT Revenue Funds,07/07/2016,Interpreting Services,Child Audiology Support Staff,ABSOLUTE INTERPRETING AND TRANSLATIONS LTD,118530,38.5,
Department of Health,CT Revenue Funds,07/07/2016,Interpreting Services,Telford North Cluster Health Visitors,ABSOLUTE INTERPRETING AND TRANSLATIONS LTD,118531,38.5,
Department of Health,CT Revenue Funds,07/07/2016,Interpreting Services,Monkmoor CDC,ABSOLUTE INTERPRETING AND TRANSLATIONS LTD,118829,134.75,
Department of Health,CT Revenue Funds,07/07/2016,Interpreting Services,Monkmoor CDC,ABSOLUTE INTERPRETING AND TRANSLATIONS LTD,118830,96.25,
Department of Health,CT Revenue Funds,07/07/2016,Interpreting Services,Telford North Cluster Health Visitors,ABSOLUTE INTERPRETING AND TRANSLATIONS LTD,119206,38.5,
Department of Health,CT Revenue Funds,07/07/2016,Interpreting Services,MSK Rheumatology,ABSOLUTE INTERPRETING AND TRANSLATIONS LTD,119211,38.5,
Department of Health,CT Revenue Funds,07/07/2016,Interpreting Services,Monkmoor CDC,ABSOLUTE INTERPRETING AND TRANSLATIONS LTD,119691,96.25,
Department of Health,CT Revenue Funds,07/07/2016,Interpreting Services,Monkmoor CDC,ABSOLUTE INTERPRETING AND TRANSLATIONS LTD,119692,96.25,
Department of Health,CT Revenue Funds,07/07/2016,Interpreting Services,Child Speech and Language Therapy,ABSOLUTE INTERPRETING AND TRANSLATIONS LTD,120042,57.75,
Department of Health,CT Revenue Funds,07/07/2016,Interpreting Services,MSK Rheumatology,ABSOLUTE INTERPRETING AND TRANSLATIONS LTD,120043,38.5,
Department of Health,CT Revenue Funds,07/07/2016,Interpreting Services,Telford North Cluster Health Visitors,ABSOLUTE INTERPRETING AND TRANSLATIONS LTD,120044,38.5,
Department of Health,CT Revenue Funds,07/07/2016,Interpreting Services,MSK Therapy,VISS SIGN LANGUAGE INTERPRETING SERVICE,5770,118.75,875 9280 71
Department of Health,CT Revenue Funds,07/07/2016,Interpreting Services,MSK Rheumatology,VISS SIGN LANGUAGE INTERPRETING SERVICE,5771,118.75,875 9280 71
Department of Health,CT Revenue Funds,07/07/2016,Interpreting Services,Podiatry Services,VISS SIGN LANGUAGE INTERPRETING SERVICE,5772,118.75,875 9280 71
Department of Health,CT Revenue Funds,07/07/2016,Interpreting Services,Podiatry Services,VISS SIGN LANGUAGE INTERPRETING SERVICE,5773,118.75,875 9280 71
Department of Health,CT Revenue Funds,07/07/2016,Interpreting Services,Podiatry Services,VISS SIGN LANGUAGE INTERPRETING SERVICE,5774,118.75,875 9280 71
Department of Health,CT Revenue Funds,07/07/2016,Laboratory External Tests,Occupational Health Shropshire,MIDLAND PATHOLOGY SERVICES LIMITED,OHSA A 7 2016,505.6,
Department of Health,CT Revenue Funds,07/07/2016,Laboratory External Tests,Occupational Health Shropshire,MIDLAND PATHOLOGY SERVICES LIMITED,OHSA C 6 2016,582.6,
Department of Health,CT Revenue Funds,07/07/2016,Laboratory External Tests,Occupational Health Shropshire,MIDLAND PATHOLOGY SERVICES LIMITED,OHSA D 6 2016,108.2,
Department of Health,CT Revenue Funds,07/07/2016,Laboratory External Tests,Occupational Health Stoke,MIDLAND PATHOLOGY SERVICES LIMITED,SCHA A 7 2016,252.2,
Department of Health,CT Revenue Funds,07/07/2016,Laboratory External Tests,Occupational Health Stoke,MIDLAND PATHOLOGY SERVICES LIMITED,SCHA C 6 2016,50.2,
Department of Health,CT Revenue Funds,07/07/2016,Laboratory External Tests,Occupational Health Stoke,MIDLAND PATHOLOGY SERVICES LIMITED,SCHA D 6 2016,311.8,
Department of Health,CT Revenue Funds,07/07/2016,Leased Cars : Contract,Telford North Community Nursing,AUTOCRAFT,11961,100,988 5486 38
Department of Health,CT Revenue Funds,07/07/2016,Leased Cars : Contract,Reaching Out Services,INCHCAPE FLEET SOLUTIONS,1872940,-747.73,
Department of Health,CT Revenue Funds,07/07/2016,Leased Cars : Contract,Reaching Out Services,INCHCAPE FLEET SOLUTIONS,1872940,3738.65,
Department of Health,CT Revenue Funds,07/07/2016,Leased Cars : Contract,Reaching Out Services,INCHCAPE FLEET SOLUTIONS,1872940,747.73,
Department of Health,CT Revenue Funds,07/07/2016,Leased Cars : Contract,North East Shropshire Interdisciplinary Teams,INCHCAPE FLEET SOLUTIONS,1874046,3086.51,
Department of Health,CT Revenue Funds,07/07/2016,Leased Cars : Contract,ICS Central,INCHCAPE FLEET SOLUTIONS,1874047,260.33,
Department of Health,CT Revenue Funds,07/07/2016,Leased Cars : Contract,Diabetes Specialist Nursing,TCH LEASING,201605003794,-360.17,
Department of Health,CT Revenue Funds,07/07/2016,Leased Cars : Contract,Diabetes Specialist Nursing,TCH LEASING,201605003794,1800.86,
Department of Health,CT Revenue Funds,07/07/2016,Leased Cars : Contract,Diabetes Specialist Nursing,TCH LEASING,201605003794,360.17,
Department of Health,CT Revenue Funds,07/07/2016,Leased Cars : Contract,Tissue Viability Nurses (T&W),TCH LEASING,201605003794,2734.18,
Department of Health,CT Revenue Funds,07/07/2016,Leased Cars : Contract,Community Physiotherapy (T&W),TCH LEASING,201605003794,626.67,
Department of Health,CT Revenue Funds,07/07/2016,Leased Cars : Contract,Community Physiotherapy (T&W),TCH LEASING,201605003794,3133.37,
Department of Health,CT Revenue Funds,07/07/2016,Leased Cars : Contract,Community Physiotherapy (T&W),TCH LEASING,201605003794,-626.67,
Department of Health,CT Revenue Funds,07/07/2016,Leased Cars : Contract,North West Shropshire Interdisciplinary Teams,TCH LEASING,201606001176,607.79,
Department of Health,CT Revenue Funds,07/07/2016,Leased Cars : Contract,North West Shropshire Interdisciplinary Teams,TCH LEASING,201606001177,-369.68,
Department of Health,CT Revenue Funds,07/07/2016,Leased Cars : Contract,Wheelchair Services,ENTERPRISE FLEX E RENT,352150,852.1,
Department of Health,CT Revenue Funds,07/07/2016,Leased Cars : Contract,Community Services Division Management,AUTOMOTIVE LEASING LTD,501457764,123.66,442 5587 39
Department of Health,CT Revenue Funds,07/07/2016,Leased Cars : Contract,HR and Workforce,AUTOMOTIVE LEASING LTD,501475144,118.5,442 5587 39
Department of Health,CT Revenue Funds,07/07/2016,Leased Cars : Contract,Telford School Nurses,AUTOMOTIVE LEASING LTD,501475145,191.68,442 5587 39
Department of Health,CT Revenue Funds,07/07/2016,Leased Cars : Contract,Reaching Out Services,AUTOMOTIVE LEASING LTD,501475146,144.4,442 5587 39
Department of Health,CT Revenue Funds,07/07/2016,Leased Cars : Contract,Community Matrons Telford,AUTOMOTIVE LEASING LTD,501475147,173.59,442 5587 39
Department of Health,CT Revenue Funds,07/07/2016,Leased Cars : Contract,ICS South East,AUTOMOTIVE LEASING LTD,501475148,145.63,442 5587 39
Department of Health,CT Revenue Funds,07/07/2016,Leased Cars : Contract,South East Interdisciplinary Teams,AUTOMOTIVE LEASING LTD,501475149,2246.37,442 5587 39
Department of Health,CT Revenue Funds,07/07/2016,Leased Cars : Contract,Rapid Response (T&W),AUTOMOTIVE LEASING LTD,501475150,1660.1,442 5587 39
Department of Health,CT Revenue Funds,07/07/2016,Leased Cars : Contract,Telford South Community Nursing,COLLISION REPAIR SPECIALISTS LTD,716315,100,
Department of Health,CT Revenue Funds,07/07/2016,Leased Cars : Contract,IM&T Support,ALPHABET (UK) FLEET MANAGEMENT LTD,80076305,40.59,572 4172 44
Department of Health,CT Revenue Funds,07/07/2016,Leased Cars : Contract,Shrewsbury and Atcham South Interdisciplinary Teams,ALPHABET (UK) FLEET MANAGEMENT LTD,80076306,70.07,572 4172 44
Department of Health,CT Revenue Funds,07/07/2016,Leased Cars : Contract,South West Interdisciplinary Teams,ALPHABET (UK) FLEET MANAGEMENT LTD,80078048,2294.56,572 4172 44
Department of Health,CT Revenue Funds,07/07/2016,Leased Cars : Contract,North East Shropshire Interdisciplinary Teams,ALPHABET (UK) FLEET MANAGEMENT LTD,89011336/A,150.77,572 4172 44
Department of Health,CT Revenue Funds,07/07/2016,Leased Cars : Contract,North East Shropshire Interdisciplinary Teams,ALPHABET (UK) FLEET MANAGEMENT LTD,89011336/B,-603.07,572 4172 44
Department of Health,CT Revenue Funds,07/07/2016,Leased Cars : Contract,North East Shropshire Interdisciplinary Teams,ALPHABET (UK) FLEET MANAGEMENT LTD,89011337,-62.85,572 4172 44
Department of Health,CT Revenue Funds,07/07/2016,Leased Cars : Contract,Diabetes Specialist Nursing,ENTERPRISE RENT A CAR,950014098406,51.3,
Department of Health,CT Revenue Funds,07/07/2016,Leased Cars : Contract,Shrewsbury and Atcham North Interdisciplinary Teams,ENTERPRISE RENT A CAR,950014175275,49,
Department of Health,CT Revenue Funds,07/07/2016,Leased Cars : Contract,South East Interdisciplinary Teams,LEX AUTOLEASE LTD,EXIN974049,327.63,
Department of Health,CT Revenue Funds,07/07/2016,Leased Cars : Contract,Shrewsbury and Atcham North Interdisciplinary Teams,LEX AUTOLEASE LTD,EXIN978224,111.68,
Department of Health,CT Revenue Funds,07/07/2016,Leased Cars : Contract,Shropshire CAMHS LAC,ARNOLD CLARK LTD,H00069243,342.02,334 3318 79
Department of Health,CT Revenue Funds,07/07/2016,Leased Cars : Contract,Telford South Community Nursing,ARNOLD CLARK LTD,I00231447,-443.78,334 3318 79
Department of Health,CT Revenue Funds,07/07/2016,Leased Cars : Contract,Telford South Community Nursing,ARNOLD CLARK LTD,I00231447,2218.92,334 3318 79
Department of Health,CT Revenue Funds,07/07/2016,Leased Cars : Contract,Telford South Community Nursing,ARNOLD CLARK LTD,I00231447,443.78,334 3318 79
Department of Health,CT Revenue Funds,07/07/2016,Leased Cars : Contract,ICS North East,ARNOLD CLARK LTD,I00231739,1753.68,334 3318 79
Department of Health,CT Revenue Funds,07/07/2016,Leased Cars : Contract,Rapid Response (T&W),VOLKSWAGEN GROUP LEASING,IN01625779,2010.4,
Department of Health,CT Revenue Funds,07/07/2016,Leased Cars : Contract,Shropshire CAMHS LAC,VOLKSWAGEN GROUP LEASING,IN01625780,1906.86,
Department of Health,CT Revenue Funds,07/07/2016,Leased Cars : Contract,Shropshire CAMHS LAC,VOLKSWAGEN GROUP LEASING,IN01625780,-1906.86,
Department of Health,CT Revenue Funds,07/07/2016,Leased Cars : Contract,Shropshire CAMHS LAC,VOLKSWAGEN GROUP LEASING,IN01625780,1836.72,
Department of Health,CT Revenue Funds,07/07/2016,Leased Cars : Contract,Shrewsbury and Atcham South Interdisciplinary Teams,ARNOLD CLARK LTD,K00080956,-506.75,334 3318 79
Department of Health,CT Revenue Funds,07/07/2016,Leased Cars : Contract,Occupational Health Shropshire,ARNOLD CLARK LTD,K00080972,-64.68,334 3318 79
Department of Health,CT Revenue Funds,07/07/2016,Leased Cars : Contract,Shrewsbury and Atcham South Interdisciplinary Teams,ARNOLD CLARK LTD,K00081421,-645.2,334 3318 79
Department of Health,CT Revenue Funds,07/07/2016,Leased Cars : Contract,Telford North Community Nursing,ARNOLD CLARK LTD,L01207159,2688,334 3318 79
Department of Health,CT Revenue Funds,07/07/2016,Leased Cars : Contract,South West Interdisciplinary Teams,ARNOLD CLARK LTD,L01211061,1956,334 3318 79
Department of Health,CT Revenue Funds,07/07/2016,Leased Cars : Contract,Community Childrens Nurses,ARNOLD CLARK LTD,L01211062,2760,334 3318 79
Department of Health,CT Revenue Funds,07/07/2016,Leased Cars : Contract,North West Shropshire Interdisciplinary Teams,ARNOLD CLARK LTD,L01211063,-387.79,334 3318 79
Department of Health,CT Revenue Funds,07/07/2016,Leased Cars : Contract,North West Shropshire Interdisciplinary Teams,ARNOLD CLARK LTD,L01211063,1938.96,334 3318 79
Department of Health,CT Revenue Funds,07/07/2016,Leased Cars : Contract,North West Shropshire Interdisciplinary Teams,ARNOLD CLARK LTD,L01211063,387.79,334 3318 79
Department of Health,CT Revenue Funds,07/07/2016,Leased Cars : Contract,Telford South Community Nursing,ARNOLD CLARK LTD,L01211064,2076,334 3318 79
Department of Health,CT Revenue Funds,07/07/2016,Leased Cars : Contract,Telford South Community Nursing,ARNOLD CLARK LTD,L01211064,415.2,334 3318 79
Department of Health,CT Revenue Funds,07/07/2016,Leased Cars : Contract,Telford South Community Nursing,ARNOLD CLARK LTD,L01211064,-415.2,334 3318 79
Department of Health,CT Revenue Funds,07/07/2016,Leased Cars : Contract,North West Shropshire Interdisciplinary Teams,ARNOLD CLARK LTD,L01211065,468,334 3318 79
Department of Health,CT Revenue Funds,07/07/2016,Leased Cars : Contract,North West Shropshire Interdisciplinary Teams,ARNOLD CLARK LTD,L01211065,2340,334 3318 79
Department of Health,CT Revenue Funds,07/07/2016,Leased Cars : Contract,North West Shropshire Interdisciplinary Teams,ARNOLD CLARK LTD,L01211065,-468,334 3318 79
Department of Health,CT Revenue Funds,07/07/2016,Leased Cars : Contract,South West Interdisciplinary Teams,ARNOLD CLARK LTD,L01211066,-376.8,334 3318 79
Department of Health,CT Revenue Funds,07/07/2016,Leased Cars : Contract,South West Interdisciplinary Teams,ARNOLD CLARK LTD,L01211066,376.8,334 3318 79
Department of Health,CT Revenue Funds,07/07/2016,Leased Cars : Contract,South West Interdisciplinary Teams,ARNOLD CLARK LTD,L01211066,1884,334 3318 79
Department of Health,CT Revenue Funds,07/07/2016,Leased Cars : Contract,South West Interdisciplinary Teams,ARNOLD CLARK LTD,L01211067,360,334 3318 79
Department of Health,CT Revenue Funds,07/07/2016,Leased Cars : Contract,South West Interdisciplinary Teams,ARNOLD CLARK LTD,L01211067,-360,334 3318 79
Department of Health,CT Revenue Funds,07/07/2016,Leased Cars : Contract,South West Interdisciplinary Teams,ARNOLD CLARK LTD,L01211067,1800,334 3318 79
Department of Health,CT Revenue Funds,07/07/2016,Leased Cars : Contract,Single Point of Referral,ARNOLD CLARK LTD,L01211068,1815.72,334 3318 79
Department of Health,CT Revenue Funds,07/07/2016,Leased Cars : Contract,North West Shropshire Interdisciplinary Teams,ARNOLD CLARK LTD,L01211069,388.8,334 3318 79
Department of Health,CT Revenue Funds,07/07/2016,Leased Cars : Contract,North West Shropshire Interdisciplinary Teams,ARNOLD CLARK LTD,L01211069,1944,334 3318 79
Department of Health,CT Revenue Funds,07/07/2016,Leased Cars : Contract,North West Shropshire Interdisciplinary Teams,ARNOLD CLARK LTD,L01211069,-388.8,334 3318 79
Department of Health,CT Revenue Funds,07/07/2016,Leased Cars : Contract,Bridgnorth Hospital Theatre,ARNOLD CLARK LTD,M00163912,222,334 3318 79
Department of Health,CT Revenue Funds,07/07/2016,Leased Cars : Contract,Shropshire Child Comm Physiotherapy,LEX AUTOLEASE LTD,MRI4282455,2009.28,
Department of Health,CT Revenue Funds,07/07/2016,Leased Cars : Contract,Shropshire Child Comm Physiotherapy,LEX AUTOLEASE LTD,MRI4282455,-401.86,
Department of Health,CT Revenue Funds,07/07/2016,Leased Cars : Contract,Shropshire Child Comm Physiotherapy,LEX AUTOLEASE LTD,MRI4282455,401.86,
Department of Health,CT Revenue Funds,07/07/2016,Leased Cars : Expenses Excl Rental,North Shropshire Health Visitors,GREENHOUS GROUP LTD,21519919,6.2,713 2418 68
Department of Health,CT Revenue Funds,07/07/2016,Leased Cars : Expenses Excl Rental,Occupational Health Shropshire,GREENHOUS GROUP LTD,21725446,100,713 2418 68
Department of Health,CT Revenue Funds,07/07/2016,Leased Cars : Expenses Excl Rental,Reaching Out Services,GREENHOUS GROUP LTD,21725479,100,713 2418 68
Department of Health,CT Revenue Funds,07/07/2016,Leased Cars : Expenses Excl Rental,Reaching Out Services,GREENHOUS GROUP LTD,21725480,14.09,713 2418 68
Department of Health,CT Revenue Funds,07/07/2016,Leased Cars : Expenses Excl Rental,Occupational Health Shropshire,GREENHOUS GROUP LTD,21725611,100,713 2418 68
Department of Health,CT Revenue Funds,07/07/2016,Leased Cars : Expenses Excl Rental,Community Childrens Nurses,GREENHOUS GROUP LTD,21725639,100,713 2418 68
Department of Health,CT Revenue Funds,07/07/2016,Leased Cars : Expenses Excl Rental,Shropshire Child Comm Physiotherapy,LEX AUTOLEASE LTD,RFIN372605,110,
Department of Health,CT Revenue Funds,07/07/2016,Legal/Professional Fees,Church Stretton Health Centre,MARSH ASSOCIATES HEALTHCARE LTD,MAH19608,750,
Department of Health,CT Revenue Funds,07/07/2016,Legal/Professional Fees,Church Stretton Health Centre,MARSH ASSOCIATES HEALTHCARE LTD,MAH19609,500,
Department of Health,CT Revenue Funds,07/07/2016,Locum GP,Whitchurch Hospital Inpatient Ward,EVERGOOD GENERAL PRACTITIONERS,53415,5537.996705,944 7347 94
Department of Health,CT Revenue Funds,07/07/2016,Locum GP,Whitchurch Hospital Inpatient Ward,EVERGOOD GENERAL PRACTITIONERS,53415,1107.603295,944 7347 94
Department of Health,CT Revenue Funds,07/07/2016,Locum GP,Whitchurch Hospital Inpatient Ward,EVERGOOD GENERAL PRACTITIONERS,53680,1079.28,944 7347 94
Department of Health,CT Revenue Funds,07/07/2016,Locum GP,Whitchurch Hospital Inpatient Ward,EVERGOOD GENERAL PRACTITIONERS,53680,5396.4,944 7347 94
Department of Health,CT Revenue Funds,07/07/2016,Locum GP,Oswestry DAART,DR LWIN MAUNG,DAART JUNE16,500,
Department of Health,CT Revenue Funds,07/07/2016,Locum GP,Oswestry DAART,DR PRASANTH KANDEPALLI,DAART JUNE16,375,
Department of Health,CT Revenue Funds,07/07/2016,Locum GP,Oswestry DAART,DR ALWASHASH,DAART JUNE16,500,
Department of Health,CT Revenue Funds,07/07/2016,Materials - Mechanical,Wheelchair Services,BOC LTD,3036534666,180.7,226 5565 55
Department of Health,CT Revenue Funds,07/07/2016,Materials - Mechanical,Wheelchair Services,BOC LTD,3036534666,36.14,226 5565 55
Department of Health,CT Revenue Funds,07/07/2016,Mattress Systems,Community Equipment Stores,FRONTIER THERAPEUTICS,426649,703.6,700 8536 57
Department of Health,CT Revenue Funds,07/07/2016,Mattress Systems,Community Equipment Stores,FRONTIER THERAPEUTICS,426649,3518,700 8536 57
Department of Health,CT Revenue Funds,07/07/2016,Mattress Systems,Community Equipment Stores,IKA MOBILITY,IN0905,714,971 5578 82
Department of Health,CT Revenue Funds,07/07/2016,Mattress Systems,Community Equipment Stores,IKA MOBILITY,IN0905,3570,971 5578 82
Department of Health,CT Revenue Funds,07/07/2016,Medical & Surgical Equipment : Disposable,Bridgnorth Hospital Minor Injuries Unit,BSN MEDICAL LTD,121353393,113.64,834 8456 02
Department of Health,CT Revenue Funds,07/07/2016,Medical & Surgical Equipment : Disposable,Bridgnorth Hospital Minor Injuries Unit,BSN MEDICAL LTD,121353393,22.73,834 8456 02
Department of Health,CT Revenue Funds,07/07/2016,Medical & Surgical Equipment : Disposable,Bridgnorth Hospital Minor Injuries Unit,BSN MEDICAL LTD,121370700,37.88,834 8456 02
Department of Health,CT Revenue Funds,07/07/2016,Medical & Surgical Equipment : Disposable,Bridgnorth Hospital Minor Injuries Unit,BSN MEDICAL LTD,121370700,7.58,834 8456 02
Department of Health,CT Revenue Funds,07/07/2016,Medical & Surgical Equipment : Disposable,Bridgnorth Hospital Minor Injuries Unit,DTR MEDICAL LTD,176328,40,800 4102 05
Department of Health,CT Revenue Funds,07/07/2016,Medical & Surgical Equipment : Disposable,Bridgnorth Hospital Minor Injuries Unit,DTR MEDICAL LTD,176328,8,800 4102 05
Department of Health,CT Revenue Funds,07/07/2016,Medical & Surgical Equipment : Disposable,Bridgnorth Hospital Minor Injuries Unit,DTR MEDICAL LTD,176328,40,800 4102 05
Department of Health,CT Revenue Funds,07/07/2016,Medical & Surgical Equipment : Disposable,Bridgnorth Hospital Minor Injuries Unit,DTR MEDICAL LTD,176328,8,800 4102 05
Department of Health,CT Revenue Funds,07/07/2016,Medical & Surgical Equipment : Disposable,Bridgnorth Hospital Minor Injuries Unit,STAMPS DIRECT LTD,LN249646,49.56,283 5042 63
Department of Health,CT Revenue Funds,07/07/2016,Medical & Surgical Equipment : Disposable,Bridgnorth Hospital Minor Injuries Unit,STAMPS DIRECT LTD,LN249646,9.91,283 5042 63
Department of Health,CT Revenue Funds,07/07/2016,Medical & Surgical Equipment : General,APCS Administration,MISTRY MEDICAL SUPPLIES,0000209985,50.56,
Department of Health,CT Revenue Funds,07/07/2016,Medical & Surgical Equipment : General,APCS Administration,MISTRY MEDICAL SUPPLIES,0000209985,10.11,
Department of Health,CT Revenue Funds,07/07/2016,Medical & Surgical Equipment : General,Whitchurch Hospital Management,FOREST FUELS,307219,584.06,
Department of Health,CT Revenue Funds,07/07/2016,Medical & Surgical Equipment : General,Whitchurch Hospital Management,FOREST FUELS,307219,2920.32,
Department of Health,CT Revenue Funds,07/07/2016,Medical & Surgical Equipment : General,APCS Administration,SHEFFMED TRADE SERVICES LTD,43095,47.4,
Department of Health,CT Revenue Funds,07/07/2016,Medical & Surgical Equipment : General,APCS Administration,SHEFFMED TRADE SERVICES LTD,43095,11,
Department of Health,CT Revenue Funds,07/07/2016,Medical & Surgical Equipment : General,APCS Administration,SHEFFMED TRADE SERVICES LTD,43095,237,
Department of Health,CT Revenue Funds,07/07/2016,Medical & Surgical Equipment : General,APCS Administration,SHEFFMED TRADE SERVICES LTD,43095,55,
Department of Health,CT Revenue Funds,07/07/2016,Medical & Surgical Equipment Maintenance / Repairs & Components,Telford North Community Nursing,MEDISAVE (UK) LTD,1067894,6.6,
Department of Health,CT Revenue Funds,07/07/2016,Medical & Surgical Equipment Maintenance / Repairs & Components,Telford North Community Nursing,MEDISAVE (UK) LTD,1067894,1.32,
Department of Health,CT Revenue Funds,07/07/2016,Medical & Surgical Equipment Maintenance / Repairs & Components,Ludlow Hospital Inpatient Wards,OSPREY SLING COMPANY LTD,15094,95.4,
Department of Health,CT Revenue Funds,07/07/2016,Medical & Surgical Equipment Maintenance / Repairs & Components,Ludlow Hospital Inpatient Wards,OSPREY SLING COMPANY LTD,15094,19.08,
Department of Health,CT Revenue Funds,07/07/2016,Medical & Surgical Equipment Maintenance / Repairs & Components,Community Neuro Rehabilitation Team (CNRT),ODSTOCK MEDICAL LTD,478,10.25,
Department of Health,CT Revenue Funds,07/07/2016,Medical & Surgical Equipment Maintenance / Repairs & Components,Community Neuro Rehabilitation Team (CNRT),ODSTOCK MEDICAL LTD,478,-0.51,
Department of Health,CT Revenue Funds,07/07/2016,Medical & Surgical Equipment Maintenance / Repairs & Components,Community Neuro Rehabilitation Team (CNRT),ODSTOCK MEDICAL LTD,478,10.25,
Department of Health,CT Revenue Funds,07/07/2016,Medical & Surgical Equipment Maintenance / Repairs & Components,Community Neuro Rehabilitation Team (CNRT),ODSTOCK MEDICAL LTD,478,-0.51,
Department of Health,CT Revenue Funds,07/07/2016,Medical & Surgical Equipment Maintenance / Repairs & Components,Community Neuro Rehabilitation Team (CNRT),ODSTOCK MEDICAL LTD,478,2.05,
Department of Health,CT Revenue Funds,07/07/2016,Medical & Surgical Equipment Maintenance / Repairs & Components,Community Neuro Rehabilitation Team (CNRT),ODSTOCK MEDICAL LTD,478,2.05,
Department of Health,CT Revenue Funds,07/07/2016,Medical & Surgical Equipment Maintenance / Repairs & Components,Community Neuro Rehabilitation Team (CNRT),ODSTOCK MEDICAL LTD,478,2.05,
Department of Health,CT Revenue Funds,07/07/2016,Medical & Surgical Equipment Maintenance / Repairs & Components,Community Neuro Rehabilitation Team (CNRT),ODSTOCK MEDICAL LTD,478,-0.1,
Department of Health,CT Revenue Funds,07/07/2016,Medical & Surgical Equipment Maintenance / Repairs & Components,Community Neuro Rehabilitation Team (CNRT),ODSTOCK MEDICAL LTD,478,-0.1,
Department of Health,CT Revenue Funds,07/07/2016,Medical & Surgical Equipment Maintenance / Repairs & Components,Community Neuro Rehabilitation Team (CNRT),ODSTOCK MEDICAL LTD,478,10.25,
Department of Health,CT Revenue Funds,07/07/2016,Medical & Surgical Equipment Maintenance / Repairs & Components,Community Neuro Rehabilitation Team (CNRT),ODSTOCK MEDICAL LTD,478,10.25,
Department of Health,CT Revenue Funds,07/07/2016,Medical & Surgical Equipment Maintenance / Repairs & Components,Community Neuro Rehabilitation Team (CNRT),ODSTOCK MEDICAL LTD,478,-0.51,
Department of Health,CT Revenue Funds,07/07/2016,Medical & Surgical Equipment Maintenance / Repairs & Components,Community Neuro Rehabilitation Team (CNRT),ODSTOCK MEDICAL LTD,478,2.05,
Department of Health,CT Revenue Funds,07/07/2016,Medical & Surgical Equipment Maintenance / Repairs & Components,Community Neuro Rehabilitation Team (CNRT),ODSTOCK MEDICAL LTD,478,-0.1,
Department of Health,CT Revenue Funds,07/07/2016,Medical & Surgical Equipment Maintenance / Repairs & Components,Community Neuro Rehabilitation Team (CNRT),ODSTOCK MEDICAL LTD,478,995,
Department of Health,CT Revenue Funds,07/07/2016,Medical & Surgical Equipment Maintenance / Repairs & Components,Community Neuro Rehabilitation Team (CNRT),ODSTOCK MEDICAL LTD,478,10.25,
Department of Health,CT Revenue Funds,07/07/2016,Medical & Surgical Equipment Maintenance / Repairs & Components,Community Neuro Rehabilitation Team (CNRT),ODSTOCK MEDICAL LTD,478,10.25,
Department of Health,CT Revenue Funds,07/07/2016,Medical & Surgical Equipment Maintenance / Repairs & Components,Community Neuro Rehabilitation Team (CNRT),ODSTOCK MEDICAL LTD,478,10.25,
Department of Health,CT Revenue Funds,07/07/2016,Medical & Surgical Equipment Maintenance / Repairs & Components,Community Neuro Rehabilitation Team (CNRT),ODSTOCK MEDICAL LTD,478,-0.51,
Department of Health,CT Revenue Funds,07/07/2016,Medical & Surgical Equipment Maintenance / Repairs & Components,Community Neuro Rehabilitation Team (CNRT),ODSTOCK MEDICAL LTD,478,-0.51,
Department of Health,CT Revenue Funds,07/07/2016,Medical & Surgical Equipment Maintenance / Repairs & Components,Community Neuro Rehabilitation Team (CNRT),ODSTOCK MEDICAL LTD,478,-0.51,
Department of Health,CT Revenue Funds,07/07/2016,Medical & Surgical Equipment Maintenance / Repairs & Components,Community Neuro Rehabilitation Team (CNRT),ODSTOCK MEDICAL LTD,478,-0.1,
Department of Health,CT Revenue Funds,07/07/2016,Medical & Surgical Equipment Maintenance / Repairs & Components,Community Neuro Rehabilitation Team (CNRT),ODSTOCK MEDICAL LTD,478,-0.51,
Department of Health,CT Revenue Funds,07/07/2016,Medical & Surgical Equipment Maintenance / Repairs & Components,Community Neuro Rehabilitation Team (CNRT),ODSTOCK MEDICAL LTD,478,2.05,
Department of Health,CT Revenue Funds,07/07/2016,Medical & Surgical Equipment Maintenance / Repairs & Components,Community Neuro Rehabilitation Team (CNRT),ODSTOCK MEDICAL LTD,478,-0.1,
Department of Health,CT Revenue Funds,07/07/2016,Medical & Surgical Equipment Maintenance / Repairs & Components,Community Neuro Rehabilitation Team (CNRT),ODSTOCK MEDICAL LTD,478,10.25,
Department of Health,CT Revenue Funds,07/07/2016,Medical & Surgical Equipment Maintenance / Repairs & Components,Community Neuro Rehabilitation Team (CNRT),ODSTOCK MEDICAL LTD,478,10.25,
Department of Health,CT Revenue Funds,07/07/2016,Medical & Surgical Equipment Maintenance / Repairs & Components,Community Neuro Rehabilitation Team (CNRT),ODSTOCK MEDICAL LTD,478,-0.51,
Department of Health,CT Revenue Funds,07/07/2016,Medical & Surgical Equipment Maintenance / Repairs & Components,Community Neuro Rehabilitation Team (CNRT),ODSTOCK MEDICAL LTD,478,-0.51,
Department of Health,CT Revenue Funds,07/07/2016,Medical & Surgical Equipment Maintenance / Repairs & Components,Community Neuro Rehabilitation Team (CNRT),ODSTOCK MEDICAL LTD,478,199,
Department of Health,CT Revenue Funds,07/07/2016,Medical & Surgical Equipment Maintenance / Repairs & Components,Community Neuro Rehabilitation Team (CNRT),ODSTOCK MEDICAL LTD,478,2.04,
Department of Health,CT Revenue Funds,07/07/2016,Medical & Surgical Equipment Maintenance / Repairs & Components,Community Neuro Rehabilitation Team (CNRT),ODSTOCK MEDICAL LTD,478,2.05,
Department of Health,CT Revenue Funds,07/07/2016,Medical & Surgical Equipment Maintenance / Repairs & Components,Community Neuro Rehabilitation Team (CNRT),ODSTOCK MEDICAL LTD,478,2.05,
Department of Health,CT Revenue Funds,07/07/2016,Medical & Surgical Equipment Maintenance / Repairs & Components,Community Neuro Rehabilitation Team (CNRT),ODSTOCK MEDICAL LTD,478,-0.1,
Department of Health,CT Revenue Funds,07/07/2016,Medical & Surgical Equipment Maintenance / Repairs & Components,Community Neuro Rehabilitation Team (CNRT),ODSTOCK MEDICAL LTD,478,-0.1,
Department of Health,CT Revenue Funds,07/07/2016,Medical & Surgical Equipment Maintenance / Repairs & Components,Community Neuro Rehabilitation Team (CNRT),ODSTOCK MEDICAL LTD,478,-0.1,
Department of Health,CT Revenue Funds,07/07/2016,Medical & Surgical Equipment Maintenance / Repairs & Components,Community Neuro Rehabilitation Team (CNRT),ODSTOCK MEDICAL LTD,478,10.27,
Department of Health,CT Revenue Funds,07/07/2016,Medical & Surgical Equipment Maintenance / Repairs & Components,Community Neuro Rehabilitation Team (CNRT),ODSTOCK MEDICAL LTD,478,-0.51,
Department of Health,CT Revenue Funds,07/07/2016,Medical & Surgical Equipment Maintenance / Repairs & Components,Community Neuro Rehabilitation Team (CNRT),ODSTOCK MEDICAL LTD,478,2.04,
Department of Health,CT Revenue Funds,07/07/2016,Medical & Surgical Equipment Maintenance / Repairs & Components,Community Neuro Rehabilitation Team (CNRT),ODSTOCK MEDICAL LTD,478,2.05,
Department of Health,CT Revenue Funds,07/07/2016,Medical & Surgical Equipment Maintenance / Repairs & Components,Community Neuro Rehabilitation Team (CNRT),ODSTOCK MEDICAL LTD,478,-0.1,
Department of Health,CT Revenue Funds,07/07/2016,Medical & Surgical Equipment Maintenance / Repairs & Components,Community Neuro Rehabilitation Team (CNRT),ODSTOCK MEDICAL LTD,478,-0.1,
Department of Health,CT Revenue Funds,07/07/2016,Medical & Surgical Equipment Maintenance / Repairs & Components,Ludlow Hospital Outpatients,BUNZL HEALTHCARE,OP/I833793,4.68,286 0142 66
Department of Health,CT Revenue Funds,07/07/2016,Medical & Surgical Equipment Maintenance / Repairs & Components,Ludlow Hospital Outpatients,BUNZL HEALTHCARE,OP/I833793,23.42,286 0142 66
Department of Health,CT Revenue Funds,07/07/2016,Medical Examination Reports,Occupational Health Stoke,DRS PILPEL AND TIGUTI,BB992/16,55,
Department of Health,CT Revenue Funds,07/07/2016,Medical Examination Reports,Occupational Health Stoke,DR MADHURI NANDAKUMAR,J BRADSHAW 20.9.65,120,
Department of Health,CT Revenue Funds,07/07/2016,Medical Gases,SpecialCare and Access,BOC LTD,3036391565,5.16,226 5565 55
Department of Health,CT Revenue Funds,07/07/2016,Medical Gases,SpecialCare and Access,BOC LTD,3036391565,25.82,226 5565 55
Department of Health,CT Revenue Funds,07/07/2016,Medical Gases,SpecialCare and Access,BOC LTD,3036417227,44.96,226 5565 55
Department of Health,CT Revenue Funds,07/07/2016,Medical Gases,SpecialCare and Access,BOC LTD,3036417227,8.99,226 5565 55
Department of Health,CT Revenue Funds,07/07/2016,Medical Gases,Whitchurch Hospital Inpatient Ward,BOC LTD,3036460328,300.64,226 5565 55
Department of Health,CT Revenue Funds,07/07/2016,Medical Gases,Whitchurch Hospital Inpatient Ward,BOC LTD,3036460328,60.13,226 5565 55
Department of Health,CT Revenue Funds,07/07/2016,Medical Gases,SpecialCare and Access,BOC LTD,3036460331,9.95,226 5565 55
Department of Health,CT Revenue Funds,07/07/2016,Medical Gases,SpecialCare and Access,BOC LTD,3036460331,1.99,226 5565 55
Department of Health,CT Revenue Funds,07/07/2016,Medical Gases,Bishops Castle Hospital Inpatient Ward,BOC LTD,3036460334,31.49,226 5565 55
Department of Health,CT Revenue Funds,07/07/2016,Medical Gases,Bishops Castle Hospital Inpatient Ward,BOC LTD,3036460334,157.44,226 5565 55
Department of Health,CT Revenue Funds,07/07/2016,Medical Gases,SpecialCare and Access,BOC LTD,3036460336,28.83,226 5565 55
Department of Health,CT Revenue Funds,07/07/2016,Medical Gases,SpecialCare and Access,BOC LTD,3036460336,5.77,226 5565 55
Department of Health,CT Revenue Funds,07/07/2016,Medical Gases,Bridgnorth Hospital Inpatient Ward,BOC LTD,3036460340,425.42,226 5565 55
Department of Health,CT Revenue Funds,07/07/2016,Medical Gases,Bridgnorth Hospital Inpatient Ward,BOC LTD,3036460340,85.08,226 5565 55
Department of Health,CT Revenue Funds,07/07/2016,Medical Gases,C Arms Dental Practice,BOC LTD,3036493277,17.83,226 5565 55
Department of Health,CT Revenue Funds,07/07/2016,Medical Gases,C Arms Dental Practice,BOC LTD,3036493277,3.57,226 5565 55
Department of Health,CT Revenue Funds,07/07/2016,Medical Gases,Oswestry Minor Injuries Unit,BOC LTD,3036518671,13.53,226 5565 55
Department of Health,CT Revenue Funds,07/07/2016,Medical Gases,Oswestry Minor Injuries Unit,BOC LTD,3036518671,67.64,226 5565 55
Department of Health,CT Revenue Funds,07/07/2016,Medical Gases,SpecialCare and Access,BOC LTD,3036522197,39.47,226 5565 55
Department of Health,CT Revenue Funds,07/07/2016,Medical Gases,SpecialCare and Access,BOC LTD,3036522197,7.89,226 5565 55
Department of Health,CT Revenue Funds,07/07/2016,Medical Gases,SpecialCare and Access,BOC LTD,3036560451,4.76,226 5565 55
Department of Health,CT Revenue Funds,07/07/2016,Medical Gases,SpecialCare and Access,BOC LTD,3036560451,23.79,226 5565 55
Department of Health,CT Revenue Funds,07/07/2016,Medical Gases,SpecialCare and Access,BOC LTD,3036571867,6.03,226 5565 55
Department of Health,CT Revenue Funds,07/07/2016,Medical Gases,SpecialCare and Access,BOC LTD,3036571867,30.16,226 5565 55
Department of Health,CT Revenue Funds,07/07/2016,Meeting Expenses/Room Hire,Diabetes Specialist Nursing,MARYSVILLE MEDICAL PRACTICE,01743-196,120,
Department of Health,CT Revenue Funds,07/07/2016,Meeting Expenses/Room Hire,Governance and Strategy Management,STIRCHLEY MEDICAL PRACTICE,120116,91.5,
Department of Health,CT Revenue Funds,07/07/2016,Meeting Expenses/Room Hire,Telford Central Cluster Health Visitors,WOMBRIDGE PARISH CENTRE,16.6.16 ROOM HIRE,24,
Department of Health,CT Revenue Funds,07/07/2016,Meeting Expenses/Room Hire,Trust Board,WHITCHURCH COMMINITY SERV.ASSOC.,2,342.6,
Department of Health,CT Revenue Funds,07/07/2016,Meeting Expenses/Room Hire,Governance and Strategy Management,WHITCHURCH COMMINITY SERV.ASSOC.,2,342.6,
Department of Health,CT Revenue Funds,07/07/2016,Meeting Expenses/Room Hire,Trust Board,WHITCHURCH COMMINITY SERV.ASSOC.,2,-342.6,
Department of Health,CT Revenue Funds,07/07/2016,Meeting Expenses/Room Hire,Governance and Strategy Management,STIRCHLEY MEDICAL PRACTICE,220116,30,
Department of Health,CT Revenue Funds,07/07/2016,Meeting Expenses/Room Hire,Governance and Strategy Management,STIRCHLEY MEDICAL PRACTICE,230216,30,
Department of Health,CT Revenue Funds,07/07/2016,Meeting Expenses/Room Hire,Telford Central Cluster Health Visitors,PARK LANE CENTRE,5128,27,
Department of Health,CT Revenue Funds,07/07/2016,Meeting Expenses/Room Hire,Shropshire CAMHS Team,DOGS TRUST,INV0007113,50,
Department of Health,CT Revenue Funds,07/07/2016,Meeting Expenses/Room Hire,Telford Central Cluster Health Visitors,SALVATION ARMY,SA1292,150,
Department of Health,CT Revenue Funds,07/07/2016,Minor Works,Monkmoor CDC,SHROPSHIRE COUNCIL,33470-TEA BOILER,1306,162 3474 72
Department of Health,CT Revenue Funds,07/07/2016,Miscellaneous Medical Tests,Stoke Heath Prison Healthcare,BROOMWELL HEALTHWATCH LIMITED,115941,40,
Department of Health,CT Revenue Funds,07/07/2016,Miscellaneous Medical Tests,Bridgnorth Hospital Outpatients,NUFFIELD HEALTH,232176,191,564 2911 37
Department of Health,CT Revenue Funds,07/07/2016,Miscellaneous Medical Tests,Bridgnorth Hospital Outpatients,NUFFIELD HEALTH,232177,109,564 2911 37
Department of Health,CT Revenue Funds,07/07/2016,Miscellaneous Medical Tests,Bridgnorth Hospital Outpatients,NUFFIELD HEALTH,232179,109,564 2911 37
Department of Health,CT Revenue Funds,07/07/2016,Miscellaneous Medical Tests,Bridgnorth Hospital Outpatients,NUFFIELD HEALTH,232378,191,564 2911 37
Department of Health,CT Revenue Funds,07/07/2016,Office Equipment & Materials : Purchase,South West Interdisciplinary Teams,ALTODIGITAL,4403187387,155,
Department of Health,CT Revenue Funds,07/07/2016,Other Agency Staff,Estates Management,HHFMC LTD,0009,8353.88,
Department of Health,CT Revenue Funds,07/07/2016,Other Agency Staff,Strategy & Business Development,RESOURCING GROUP,1050124,704.93,
Department of Health,CT Revenue Funds,07/07/2016,Other Agency Staff,Strategy & Business Development,RESOURCING GROUP,1050124,3524.64,
Department of Health,CT Revenue Funds,07/07/2016,Other Agency Staff,Strategy & Business Development,RESOURCING GROUP,1050125,703.36,
Department of Health,CT Revenue Funds,07/07/2016,Other Agency Staff,Strategy & Business Development,RESOURCING GROUP,1050125,3516.8,
Department of Health,CT Revenue Funds,07/07/2016,Other Agency Staff,Strategy & Business Development,RESOURCING GROUP,1050126,571.2,
Department of Health,CT Revenue Funds,07/07/2016,Other Agency Staff,Strategy & Business Development,RESOURCING GROUP,1050126,2856,
Department of Health,CT Revenue Funds,07/07/2016,Other Agency Staff,Strategy & Business Development,RESOURCING GROUP,1050127,427.84,
Department of Health,CT Revenue Funds,07/07/2016,Other Agency Staff,Strategy & Business Development,RESOURCING GROUP,1050127,2139.2,
Department of Health,CT Revenue Funds,07/07/2016,Packing & Storage,Bridgnorth Hospital Catering,HIRE THIS LIMITED,48977,52.8,
Department of Health,CT Revenue Funds,07/07/2016,Pain Services From Non-NHS Bodies,MSK Pain,PAIN MANAGEMENT SOLUTIONS,INV-1580,13595.2,
Department of Health,CT Revenue Funds,07/07/2016,Pain Services From Non-NHS Bodies,MSK Pain,PAIN MANAGEMENT SOLUTIONS,INV-1619,17067,
Department of Health,CT Revenue Funds,07/07/2016,Paper Items & General Stationery Sundries,Single Point of Referral,LG DAVIS (STATIONERS) LTD,087461,2417,110 6445 14
Department of Health,CT Revenue Funds,07/07/2016,Paper Items & General Stationery Sundries,Dudley School Nurses,HARLOW PRINTING LTD,666151,30,
Department of Health,CT Revenue Funds,07/07/2016,Paper Items & General Stationery Sundries,Dudley School Nurses,HARLOW PRINTING LTD,666151,6,
Department of Health,CT Revenue Funds,07/07/2016,Paper Items & General Stationery Sundries,Coral House,DYMO LABEL PRINTERS,DLP38944,13.79,
Department of Health,CT Revenue Funds,07/07/2016,Paper Items & General Stationery Sundries,Coral House,DYMO LABEL PRINTERS,DLP38944,68.94,
Department of Health,CT Revenue Funds,07/07/2016,Patient Aids/Appliances : Kitchen,Community Equipment Stores,SIMPLY MED UK LTD,55946,446,979 7837 26
Department of Health,CT Revenue Funds,07/07/2016,Patient Aids/Appliances : Kitchen,Community Equipment Stores,SIMPLY MED UK LTD,55946,89.2,979 7837 26
Department of Health,CT Revenue Funds,07/07/2016,Patient Aids/Appliances : Mobility,Community Equipment Stores,PATTERSON MEDICAL LTD,5144112095,150,945 7652 83
Department of Health,CT Revenue Funds,07/07/2016,Patient Aids/Appliances : Mobility,Community Equipment Stores,PATTERSON MEDICAL LTD,5144112095,150,945 7652 83
Department of Health,CT Revenue Funds,07/07/2016,Patient Aids/Appliances : Mobility,Community Equipment Stores,PATTERSON MEDICAL LTD,5144112095,750,945 7652 83
Department of Health,CT Revenue Funds,07/07/2016,Patient Aids/Appliances : Mobility,Community Equipment Stores,PATTERSON MEDICAL LTD,5144112095,750,945 7652 83
Department of Health,CT Revenue Funds,07/07/2016,Patient Aids/Appliances : Mobility,Community Equipment Stores,SIMPLY MED UK LTD,55947,700,979 7837 26
Department of Health,CT Revenue Funds,07/07/2016,Patient Aids/Appliances : Mobility,Community Equipment Stores,SIMPLY MED UK LTD,55947,140,979 7837 26
Department of Health,CT Revenue Funds,07/07/2016,Patient Aids/Appliances : Mobility,Community Equipment Stores,SIMPLY MED UK LTD,55948,140,979 7837 26
Department of Health,CT Revenue Funds,07/07/2016,Patient Aids/Appliances : Mobility,Community Equipment Stores,SIMPLY MED UK LTD,55948,700,979 7837 26
Department of Health,CT Revenue Funds,07/07/2016,Patient Aids/Appliances : Mobility,Community Equipment Stores,SIMPLY MED UK LTD,55949,130,979 7837 26
Department of Health,CT Revenue Funds,07/07/2016,Patient Aids/Appliances : Mobility,Community Equipment Stores,SIMPLY MED UK LTD,55949,650,979 7837 26
Department of Health,CT Revenue Funds,07/07/2016,Patient Aids/Appliances : Mobility,Community Equipment Stores,SIMPLY MED UK LTD,55950,129,979 7837 26
Department of Health,CT Revenue Funds,07/07/2016,Patient Aids/Appliances : Mobility,Community Equipment Stores,SIMPLY MED UK LTD,55950,645,979 7837 26
Department of Health,CT Revenue Funds,07/07/2016,Patient Aids/Appliances : Mobility,Community Equipment Stores,SIMPLY MED UK LTD,55951,130,979 7837 26
Department of Health,CT Revenue Funds,07/07/2016,Patient Aids/Appliances : Mobility,Community Equipment Stores,SIMPLY MED UK LTD,55951,650,979 7837 26
Department of Health,CT Revenue Funds,07/07/2016,Patient Aids/Appliances : Mobility,Community Equipment Stores,QUEST 88,80786,9.8,489 4541 95
Department of Health,CT Revenue Funds,07/07/2016,Patient Aids/Appliances : Mobility,Community Equipment Stores,QUEST 88,80786,49,489 4541 95
Department of Health,CT Revenue Funds,07/07/2016,Patient Aids/Appliances : Mobility,Community Equipment Stores,QUEST 88,80786,9.8,489 4541 95
Department of Health,CT Revenue Funds,07/07/2016,Patient Aids/Appliances : Mobility,Community Equipment Stores,QUEST 88,80786,11.5,489 4541 95
Department of Health,CT Revenue Funds,07/07/2016,Patient Aids/Appliances : Mobility,Community Equipment Stores,QUEST 88,80786,2.3,489 4541 95
Department of Health,CT Revenue Funds,07/07/2016,Patient Aids/Appliances : Mobility,Community Equipment Stores,QUEST 88,80786,49,489 4541 95
Department of Health,CT Revenue Funds,07/07/2016,Patient Aids/Appliances : Toileting,Community Equipment Stores,PATTERSON MEDICAL LTD,5144111388,68.04,945 7652 83
Department of Health,CT Revenue Funds,07/07/2016,Patient Aids/Appliances : Toileting,Community Equipment Stores,PATTERSON MEDICAL LTD,5144111388,13.61,945 7652 83
Department of Health,CT Revenue Funds,07/07/2016,Patient Aids/Appliances : Toileting,Community Equipment Stores,SIMPLY MED UK LTD,56074,40,979 7837 26
Department of Health,CT Revenue Funds,07/07/2016,Patient Aids/Appliances : Toileting,Community Equipment Stores,SIMPLY MED UK LTD,56074,508.5,979 7837 26
Department of Health,CT Revenue Funds,07/07/2016,Patient Aids/Appliances : Toileting,Community Equipment Stores,SIMPLY MED UK LTD,56074,28,979 7837 26
Department of Health,CT Revenue Funds,07/07/2016,Patient Aids/Appliances : Toileting,Community Equipment Stores,SIMPLY MED UK LTD,56074,101.7,979 7837 26
Department of Health,CT Revenue Funds,07/07/2016,Patient Aids/Appliances : Toileting,Community Equipment Stores,SIMPLY MED UK LTD,56074,8,979 7837 26
Department of Health,CT Revenue Funds,07/07/2016,Patient Aids/Appliances : Toileting,Community Equipment Stores,SIMPLY MED UK LTD,56074,140,979 7837 26
Department of Health,CT Revenue Funds,07/07/2016,Patient Aids/Appliances : Toileting,Community Equipment Stores,SIMPLY MED UK LTD,56094,101.7,979 7837 26
Department of Health,CT Revenue Funds,07/07/2016,Patient Aids/Appliances : Toileting,Community Equipment Stores,SIMPLY MED UK LTD,56094,-45,979 7837 26
Department of Health,CT Revenue Funds,07/07/2016,Patient Aids/Appliances : Toileting,Community Equipment Stores,SIMPLY MED UK LTD,56094,-9,979 7837 26
Department of Health,CT Revenue Funds,07/07/2016,Patient Aids/Appliances : Toileting,Community Equipment Stores,SIMPLY MED UK LTD,56094,508.5,979 7837 26
Department of Health,CT Revenue Funds,07/07/2016,Patient Aids/Appliances : Toileting,Community Equipment Stores,SUMED INTERNATIONAL (UK) LTD,91573,61.3,903 0612 73
Department of Health,CT Revenue Funds,07/07/2016,Patient Aids/Appliances : Toileting,Community Equipment Stores,SUMED INTERNATIONAL (UK) LTD,91573,306.5,903 0612 73
Department of Health,CT Revenue Funds,07/07/2016,Patients Aid,Payables,PAYCARE,JUN16,405.9,
Department of Health,CT Revenue Funds,07/07/2016,Pennies from Heaven,Payables,PENNIES FROM HEAVEN,JUNE16,14.72,
Department of Health,CT Revenue Funds,07/07/2016,Podiatry Products,Podiatry Services,DLT PODIATRY SUPPLIES,49707,302,721 2201 01
Department of Health,CT Revenue Funds,07/07/2016,Podiatry Products,Podiatry Services,DLT PODIATRY SUPPLIES,49707,60.4,721 2201 01
Department of Health,CT Revenue Funds,07/07/2016,Postage & Carriage,APCS Administration,MISTRY MEDICAL SUPPLIES,0000209985,5.75,
Department of Health,CT Revenue Funds,07/07/2016,Postage & Carriage,APCS Administration,MISTRY MEDICAL SUPPLIES,0000209985,1.15,
Department of Health,CT Revenue Funds,07/07/2016,Postage & Carriage,Telford North Community Nursing,MEDISAVE (UK) LTD,1067894,3.69,
Department of Health,CT Revenue Funds,07/07/2016,Postage & Carriage,Telford North Community Nursing,MEDISAVE (UK) LTD,1067894,0.74,
Department of Health,CT Revenue Funds,07/07/2016,Postage & Carriage,MSK Management & Admin,MISCO COMPUTER SUPPLIES LTD,10826903,13.45,494 1756 15
Department of Health,CT Revenue Funds,07/07/2016,Postage & Carriage,MSK Management & Admin,MISCO COMPUTER SUPPLIES LTD,10826903,2.69,494 1756 15
Department of Health,CT Revenue Funds,07/07/2016,Postage & Carriage,SpecialCare and Access,MISCO COMPUTER SUPPLIES LTD,10939182,4.99,494 1756 15
Department of Health,CT Revenue Funds,07/07/2016,Postage & Carriage,SpecialCare and Access,MISCO COMPUTER SUPPLIES LTD,10939182,1,494 1756 15
Department of Health,CT Revenue Funds,07/07/2016,Postage & Carriage,Bridgnorth Hospital Minor Injuries Unit,BSN MEDICAL LTD,121370700,25,834 8456 02
Department of Health,CT Revenue Funds,07/07/2016,Postage & Carriage,Bridgnorth Hospital Minor Injuries Unit,BSN MEDICAL LTD,121370700,5,834 8456 02
Department of Health,CT Revenue Funds,07/07/2016,Postage & Carriage,Ludlow Hospital Inpatient Wards,OSPREY SLING COMPANY LTD,15094,15,
Department of Health,CT Revenue Funds,07/07/2016,Postage & Carriage,Ludlow Hospital Inpatient Wards,OSPREY SLING COMPANY LTD,15094,3,
Department of Health,CT Revenue Funds,07/07/2016,Postage & Carriage,Community Equipment Stores,OSPREY SLING COMPANY LTD,15104,15,
Department of Health,CT Revenue Funds,07/07/2016,Postage & Carriage,Community Equipment Stores,OSPREY SLING COMPANY LTD,15104,3,
Department of Health,CT Revenue Funds,07/07/2016,Postage & Carriage,Bridgnorth Hospital Minor Injuries Unit,DTR MEDICAL LTD,176328,19.5,800 4102 05
Department of Health,CT Revenue Funds,07/07/2016,Postage & Carriage,Bridgnorth Hospital Minor Injuries Unit,DTR MEDICAL LTD,176328,3.9,800 4102 05
Department of Health,CT Revenue Funds,07/07/2016,Postage & Carriage,SpecialCare and Access,DENTAL PRACTICE SYSTEMS,21142,2.36,
Department of Health,CT Revenue Funds,07/07/2016,Postage & Carriage,SpecialCare and Access,DENTAL PRACTICE SYSTEMS,21142,11.8,
Department of Health,CT Revenue Funds,07/07/2016,Postage & Carriage,Coral House,NEOPOST LTD,246836 4.7.16,1000,597 2654 89
Department of Health,CT Revenue Funds,07/07/2016,Postage & Carriage,SpecialCare and Access,OFFICE DEPOT,301505,3.28,
Department of Health,CT Revenue Funds,07/07/2016,Postage & Carriage,SpecialCare and Access,OFFICE DEPOT,301505,0.66,
Department of Health,CT Revenue Funds,07/07/2016,Postage & Carriage,APCS Administration,SHEFFMED TRADE SERVICES LTD,43095,8,
Department of Health,CT Revenue Funds,07/07/2016,Postage & Carriage,APCS Administration,SHEFFMED TRADE SERVICES LTD,43095,1.6,
Department of Health,CT Revenue Funds,07/07/2016,Postage & Carriage,Family Nurse Programme,TRACEY RUSSELL,5328,1.25,
Department of Health,CT Revenue Funds,07/07/2016,Postage & Carriage,Family Nurse Programme,TRACEY RUSSELL,5328,6.25,
Department of Health,CT Revenue Funds,07/07/2016,Postage & Carriage,Dudley School Nurses,HARLOW PRINTING LTD,666151,1,
Department of Health,CT Revenue Funds,07/07/2016,Postage & Carriage,Dudley School Nurses,HARLOW PRINTING LTD,666151,5,
Department of Health,CT Revenue Funds,07/07/2016,Postage & Carriage,Therapy Services Administration,DYMO LABEL PRINTERS,DLP37503,5.95,
Department of Health,CT Revenue Funds,07/07/2016,Postage & Carriage,Therapy Services Administration,DYMO LABEL PRINTERS,DLP37503,1.19,
Department of Health,CT Revenue Funds,07/07/2016,Postage & Carriage,Shropshire School Nurses,STAMPS DIRECT LTD,LN249350,3,283 5042 63
Department of Health,CT Revenue Funds,07/07/2016,Postage & Carriage,Shropshire School Nurses,STAMPS DIRECT LTD,LN249350,0.6,283 5042 63
Department of Health,CT Revenue Funds,07/07/2016,Postage & Carriage,Dudley School Nurses,SYNERTEC LTD,QS121680,0.04,
Department of Health,CT Revenue Funds,07/07/2016,Postage & Carriage,Dudley School Nurses,SYNERTEC LTD,QS121680,0.21,
Department of Health,CT Revenue Funds,07/07/2016,Postage & Carriage,Dudley School Nurses,SYNERTEC LTD,QS121680,-0.04,
Department of Health,CT Revenue Funds,07/07/2016,Postage & Carriage,Dudley School Nurses,SYNERTEC LTD,QS121680,-0.04,
Department of Health,CT Revenue Funds,07/07/2016,Postage & Carriage,Dudley School Nurses,SYNERTEC LTD,QS121680,0.04,
Department of Health,CT Revenue Funds,07/07/2016,Postage & Carriage,Dudley School Nurses,SYNERTEC LTD,QS121680,680.64,
Department of Health,CT Revenue Funds,07/07/2016,Postage & Carriage,Dudley School Nurses,SYNERTEC LTD,QS121680,0.21,
Department of Health,CT Revenue Funds,07/07/2016,Postage & Carriage,Dudley School Nurses,SYNERTEC LTD,QS121680,0.21,
Department of Health,CT Revenue Funds,07/07/2016,Postage & Carriage,Dudley School Nurses,SYNERTEC LTD,QS121680,-136.13,
Department of Health,CT Revenue Funds,07/07/2016,Postage & Carriage,Dudley School Nurses,SYNERTEC LTD,QS121680,0.04,
Department of Health,CT Revenue Funds,07/07/2016,Postage & Carriage,Dudley School Nurses,SYNERTEC LTD,QS121680,-0.04,
Department of Health,CT Revenue Funds,07/07/2016,Postage & Carriage,Dudley School Nurses,SYNERTEC LTD,QS121680,136.13,
Department of Health,CT Revenue Funds,07/07/2016,Postage & Carriage,Dudley School Nurses,SYNERTEC LTD,QS121681,0.01,
Department of Health,CT Revenue Funds,07/07/2016,Postage & Carriage,Dudley School Nurses,SYNERTEC LTD,QS121681,-0.01,
Department of Health,CT Revenue Funds,07/07/2016,Postage & Carriage,Dudley School Nurses,SYNERTEC LTD,QS121681,97.03,
Department of Health,CT Revenue Funds,07/07/2016,Postage & Carriage,Dudley School Nurses,SYNERTEC LTD,QS121681,0.01,
Department of Health,CT Revenue Funds,07/07/2016,Postage & Carriage,Dudley School Nurses,SYNERTEC LTD,QS121681,19.41,
Department of Health,CT Revenue Funds,07/07/2016,Postage & Carriage,Dudley School Nurses,SYNERTEC LTD,QS121681,0.03,
Department of Health,CT Revenue Funds,07/07/2016,Postage & Carriage,Dudley School Nurses,SYNERTEC LTD,QS121681,-0.01,
Department of Health,CT Revenue Funds,07/07/2016,Postage & Carriage,Dudley School Nurses,SYNERTEC LTD,QS121681,-19.41,
Department of Health,CT Revenue Funds,07/07/2016,Postage & Carriage,Dudley School Nurses,SYNERTEC LTD,QS121681,-0.01,
Department of Health,CT Revenue Funds,07/07/2016,Postage & Carriage,Dudley School Nurses,SYNERTEC LTD,QS121681,0.01,
Department of Health,CT Revenue Funds,07/07/2016,Postage & Carriage,Dudley School Nurses,SYNERTEC LTD,QS121681,0.03,
Department of Health,CT Revenue Funds,07/07/2016,Postage & Carriage,Dudley School Nurses,SYNERTEC LTD,QS121681,0.03,
Department of Health,CT Revenue Funds,07/07/2016,Postage & Carriage,Dudley School Nurses,SYNERTEC LTD,QS121682,312.97,
Department of Health,CT Revenue Funds,07/07/2016,Postage & Carriage,Dudley School Nurses,SYNERTEC LTD,QS121682,-0.02,
Department of Health,CT Revenue Funds,07/07/2016,Postage & Carriage,Dudley School Nurses,SYNERTEC LTD,QS121682,0.1,
Department of Health,CT Revenue Funds,07/07/2016,Postage & Carriage,Dudley School Nurses,SYNERTEC LTD,QS121682,-0.02,
Department of Health,CT Revenue Funds,07/07/2016,Postage & Carriage,Dudley School Nurses,SYNERTEC LTD,QS121682,62.6,
Department of Health,CT Revenue Funds,07/07/2016,Postage & Carriage,Dudley School Nurses,SYNERTEC LTD,QS121682,0.02,
Department of Health,CT Revenue Funds,07/07/2016,Postage & Carriage,Dudley School Nurses,SYNERTEC LTD,QS121682,0.02,
Department of Health,CT Revenue Funds,07/07/2016,Postage & Carriage,Dudley School Nurses,SYNERTEC LTD,QS121682,0.02,
Department of Health,CT Revenue Funds,07/07/2016,Postage & Carriage,Dudley School Nurses,SYNERTEC LTD,QS121682,-62.6,
Department of Health,CT Revenue Funds,07/07/2016,Postage & Carriage,Dudley School Nurses,SYNERTEC LTD,QS121682,0.1,
Department of Health,CT Revenue Funds,07/07/2016,Postage & Carriage,Dudley School Nurses,SYNERTEC LTD,QS121682,0.1,
Department of Health,CT Revenue Funds,07/07/2016,Postage & Carriage,Dudley School Nurses,SYNERTEC LTD,QS121682,-0.02,
Department of Health,CT Revenue Funds,07/07/2016,Postage & Carriage,Ludlow Hospital Minor Injuries Unit,WILLIAMS MEDICAL SUPPLIES,WSI-1211710,1.12,902 9947 03
Department of Health,CT Revenue Funds,07/07/2016,Postage & Carriage,Ludlow Hospital Minor Injuries Unit,WILLIAMS MEDICAL SUPPLIES,WSI-1211710,5.6,902 9947 03
Department of Health,CT Revenue Funds,07/07/2016,Printing Costs,Ludlow Hospital Management,XEROX UK,2528559,3.42,232 3646 82
Department of Health,CT Revenue Funds,07/07/2016,Printing Costs,Therapy Services Administration,DYMO LABEL PRINTERS,DLP37503,188.16,
Department of Health,CT Revenue Funds,07/07/2016,Printing Costs,Therapy Services Administration,DYMO LABEL PRINTERS,DLP37503,37.63,
Department of Health,CT Revenue Funds,07/07/2016,Printing Costs,Coral House,DYMO LABEL PRINTERS,DLP39117,13.79,
Department of Health,CT Revenue Funds,07/07/2016,Printing Costs,Coral House,DYMO LABEL PRINTERS,DLP39117,68.94,
Department of Health,CT Revenue Funds,07/07/2016,Printing Costs,Estates Management,SYNERTEC LTD,QS120735,450.52,
Department of Health,CT Revenue Funds,07/07/2016,Printing Costs,Coral House,SYNERTEC LTD,QS121673,121.81,
Department of Health,CT Revenue Funds,07/07/2016,Printing Costs,Coral House,SYNERTEC LTD,QS121674,2.13,
Department of Health,CT Revenue Funds,07/07/2016,Printing Costs,Coral House,SYNERTEC LTD,QS121675,987.81,
Department of Health,CT Revenue Funds,07/07/2016,Printing Costs,Coral House,SYNERTEC LTD,QS121676,109.93,
Department of Health,CT Revenue Funds,07/07/2016,Printing Costs,Coral House,SYNERTEC LTD,QS121677,61.21,
Department of Health,CT Revenue Funds,07/07/2016,Printing Costs,Coral House,SYNERTEC LTD,QS121678,290.38,
Department of Health,CT Revenue Funds,07/07/2016,Printing Costs,Coral House,SYNERTEC LTD,QS121987,50,
Department of Health,CT Revenue Funds,07/07/2016,Printing Costs,Estates Management,SYNERTEC LTD,QS121988,50,
Department of Health,CT Revenue Funds,07/07/2016,Rates,Bridgnorth Hospital,SHROPSHIRE COUNCIL,2209014650005-16/17,7256,162 3474 72
Department of Health,CT Revenue Funds,07/07/2016,Rates,The Gateway,SHROPSHIRE COUNCIL,2400572340006-16/17,1205,162 3474 72
Department of Health,CT Revenue Funds,07/07/2016,Rates,Mercian House,SHROPSHIRE COUNCIL,2500000180023-16/07,1255,162 3474 72
Department of Health,CT Revenue Funds,07/07/2016,Rates,Princess House,SHROPSHIRE COUNCIL,2500000184482-16/17,2684,162 3474 72
Department of Health,CT Revenue Funds,07/07/2016,Rates,Whitchurch Hospital,SHROPSHIRE COUNCIL,2900653200002-16/17,3976,162 3474 72
Department of Health,CT Revenue Funds,07/07/2016,Rates,Princess House,SHROPSHIRE COUNCIL,324851-29/6/16,810,162 3474 72
Department of Health,CT Revenue Funds,07/07/2016,Refuse Collection,Crown Business Park,BIFFA WASTE SERVICES LTD,018T11965,29.56,537 9116 27
Department of Health,CT Revenue Funds,07/07/2016,Refuse Collection,Lady Forrester Much Wenlock,BIFFA WASTE SERVICES LTD,471T56671,34.48,537 9116 27
Department of Health,CT Revenue Funds,07/07/2016,Refuse Collection,Lancaster Road Estates,BIFFA WASTE SERVICES LTD,471T56672,63.04,537 9116 27
Department of Health,CT Revenue Funds,07/07/2016,Refuse Collection,Gains Park,BIFFA WASTE SERVICES LTD,471T56673,29.56,537 9116 27
Department of Health,CT Revenue Funds,07/07/2016,Refuse Collection,Castle Foregate 71,BIFFA WASTE SERVICES LTD,471T56674,63.04,537 9116 27
Department of Health,CT Revenue Funds,07/07/2016,Refuse Collection,Marysville Portacabin,BIFFA WASTE SERVICES LTD,471T56675,35.76,537 9116 27
Department of Health,CT Revenue Funds,07/07/2016,Refuse Collection,Lady Forrester Much Wenlock,BIFFA WASTE SERVICES LTD,471T56676,44.6,537 9116 27
Department of Health,CT Revenue Funds,07/07/2016,Refuse Collection,Lancaster Road Estates,BIFFA WASTE SERVICES LTD,612C50853,210.55,537 9116 27
Department of Health,CT Revenue Funds,07/07/2016,Refuse Collection,Dale Acre Way,BIFFA WASTE SERVICES LTD,612C50854,6.51,537 9116 27
Department of Health,CT Revenue Funds,07/07/2016,Refuse Collection,Dawley Dental,BIFFA WASTE SERVICES LTD,612C50855,13.65,537 9116 27
Department of Health,CT Revenue Funds,07/07/2016,Refuse Collection,Wellington GPs Estates,BIFFA WASTE SERVICES LTD,612T17597,128.68,537 9116 27
Department of Health,CT Revenue Funds,07/07/2016,Refuse Collection,Oakengates GPs Premises,BIFFA WASTE SERVICES LTD,612T17598,119.32,537 9116 27
Department of Health,CT Revenue Funds,07/07/2016,Refuse Collection,Hadley GP Premises,BIFFA WASTE SERVICES LTD,612T17599,63.04,537 9116 27
Department of Health,CT Revenue Funds,07/07/2016,Refuse Collection,Dale Acre Way,BIFFA WASTE SERVICES LTD,612T17600,62.76,537 9116 27
Department of Health,CT Revenue Funds,07/07/2016,Refuse Collection,Dawley Dental,BIFFA WASTE SERVICES LTD,612T17601,63.04,537 9116 27
Department of Health,CT Revenue Funds,07/07/2016,Refuse Collection,14 Deercote Hollinswood Premises,BIFFA WASTE SERVICES LTD,612T17602,63.04,537 9116 27
Department of Health,CT Revenue Funds,07/07/2016,Refuse Collection,Madeley GP Premises,BIFFA WASTE SERVICES LTD,612T17603,67.44,537 9116 27
Department of Health,CT Revenue Funds,07/07/2016,Refuse Collection,Newport Cottage Hospital,BIFFA WASTE SERVICES LTD,612T17604,128.68,537 9116 27
Department of Health,CT Revenue Funds,07/07/2016,Refuse Collection,Wem Professional Centre,PG SKIPS LTD,86259,50.14,
Department of Health,CT Revenue Funds,07/07/2016,Rent,Sutton Hill GP Premises,BRITISH GAS BUSINESS,959115991,1675,684 9667 62
Department of Health,CT Revenue Funds,07/07/2016,Rent,Sutton Hill GP Premises,BRITISH GAS BUSINESS,959115991,-1675,684 9667 62
Department of Health,CT Revenue Funds,07/07/2016,Rent,Charlesworth Court Unit B,RYMINSTER LTD,CWC/0169,500,
Department of Health,CT Revenue Funds,07/07/2016,Rent,Sutton Hill GP Premises,SUTTON HILL MEDICAL PRACTICE,INVOICE/RENT69,1675,
Department of Health,CT Revenue Funds,07/07/2016,Rent,Madeley GP Premises,MADELEY MEDICAL PRACTICE,RENT/INSURANCE JUN16,4042.5,
Department of Health,CT Revenue Funds,07/07/2016,Rent,The Gateway,TOTAL RESPONSE,TR6848,1591.974337,
Department of Health,CT Revenue Funds,07/07/2016,Rent,The Gateway,TOTAL RESPONSE,TR6848,7959.855663,
Department of Health,CT Revenue Funds,07/07/2016,Retirement Gifts,Telford LAC Nurses,RETIREMENT GIFT,RETIREMENT GIFT/ZIHNI,180,
Department of Health,CT Revenue Funds,07/07/2016,SOS Equipment,Wheelchair Services,SPECIALISED ORTHOTIC SERVICES LTD,0000703760,120.69,616 9753 09
Department of Health,CT Revenue Funds,07/07/2016,SOS Equipment,Wheelchair Services,SPECIALISED ORTHOTIC SERVICES LTD,0000703760,1068.64,616 9753 09
Department of Health,CT Revenue Funds,07/07/2016,SOS Equipment,Wheelchair Services,SPECIALISED ORTHOTIC SERVICES LTD,0000703760,67.79,616 9753 09
Department of Health,CT Revenue Funds,07/07/2016,SOS Equipment,Wheelchair Services,SPECIALISED ORTHOTIC SERVICES LTD,0000703760,92.62,616 9753 09
Department of Health,CT Revenue Funds,07/07/2016,SOS Equipment,Wheelchair Services,SPECIALISED ORTHOTIC SERVICES LTD,0000703760,213.73,616 9753 09
Department of Health,CT Revenue Funds,07/07/2016,SOS Equipment,Wheelchair Services,SPECIALISED ORTHOTIC SERVICES LTD,0000703760,15.46,616 9753 09
Department of Health,CT Revenue Funds,07/07/2016,SOS Equipment,Wheelchair Services,SPECIALISED ORTHOTIC SERVICES LTD,0000703760,33.08,616 9753 09
Department of Health,CT Revenue Funds,07/07/2016,SOS Equipment,Wheelchair Services,SPECIALISED ORTHOTIC SERVICES LTD,0000703760,-0.02,616 9753 09
Department of Health,CT Revenue Funds,07/07/2016,SOS Equipment,Wheelchair Services,SPECIALISED ORTHOTIC SERVICES LTD,0000703760,24.14,616 9753 09
Department of Health,CT Revenue Funds,07/07/2016,SOS Equipment,Wheelchair Services,SPECIALISED ORTHOTIC SERVICES LTD,0000703760,545.18,616 9753 09
Department of Health,CT Revenue Funds,07/07/2016,SOS Equipment,Wheelchair Services,SPECIALISED ORTHOTIC SERVICES LTD,0000703760,6.62,616 9753 09
Department of Health,CT Revenue Funds,07/07/2016,SOS Equipment,Wheelchair Services,SPECIALISED ORTHOTIC SERVICES LTD,0000703760,18.52,616 9753 09
Department of Health,CT Revenue Funds,07/07/2016,SOS Equipment,Wheelchair Services,SPECIALISED ORTHOTIC SERVICES LTD,0000703760,69.98,616 9753 09
Department of Health,CT Revenue Funds,07/07/2016,SOS Equipment,Wheelchair Services,SPECIALISED ORTHOTIC SERVICES LTD,0000703760,-24.14,616 9753 09
Department of Health,CT Revenue Funds,07/07/2016,SOS Equipment,Wheelchair Services,SPECIALISED ORTHOTIC SERVICES LTD,0000703760,42.7,616 9753 09
Department of Health,CT Revenue Funds,07/07/2016,SOS Equipment,Wheelchair Services,SPECIALISED ORTHOTIC SERVICES LTD,0000703760,109.04,616 9753 09
Department of Health,CT Revenue Funds,07/07/2016,SOS Equipment,Wheelchair Services,SPECIALISED ORTHOTIC SERVICES LTD,0000703760,13.56,616 9753 09
Department of Health,CT Revenue Funds,07/07/2016,SOS Equipment,Wheelchair Services,SPECIALISED ORTHOTIC SERVICES LTD,0000703760,14,616 9753 09
Department of Health,CT Revenue Funds,07/07/2016,SOS Equipment,Wheelchair Services,SPECIALISED ORTHOTIC SERVICES LTD,0000703760,24.14,616 9753 09
Department of Health,CT Revenue Funds,07/07/2016,SOS Equipment,Wheelchair Services,SPECIALISED ORTHOTIC SERVICES LTD,0000703760,77.28,616 9753 09
Department of Health,CT Revenue Funds,07/07/2016,SOS Equipment,Wheelchair Services,SPECIALISED ORTHOTIC SERVICES LTD,0000703760,213.5,616 9753 09
Department of Health,CT Revenue Funds,07/07/2016,SOS Equipment,Wheelchair Services,SPECIALISED ORTHOTIC SERVICES LTD,0000703761,18.74,616 9753 09
Department of Health,CT Revenue Funds,07/07/2016,SOS Equipment,Wheelchair Services,SPECIALISED ORTHOTIC SERVICES LTD,0000703761,10.45,616 9753 09
Department of Health,CT Revenue Funds,07/07/2016,SOS Equipment,Wheelchair Services,SPECIALISED ORTHOTIC SERVICES LTD,0000703761,93.7,616 9753 09
Department of Health,CT Revenue Funds,07/07/2016,SOS Equipment,Wheelchair Services,SPECIALISED ORTHOTIC SERVICES LTD,0000703761,52.27,616 9753 09
Department of Health,CT Revenue Funds,07/07/2016,SOS Equipment,Wheelchair Services,SPECIALISED ORTHOTIC SERVICES LTD,0000703761,29.72,616 9753 09
Department of Health,CT Revenue Funds,07/07/2016,SOS Equipment,Wheelchair Services,SPECIALISED ORTHOTIC SERVICES LTD,0000703761,148.58,616 9753 09
Department of Health,CT Revenue Funds,07/07/2016,SOS Equipment,Wheelchair Services,SPECIALISED ORTHOTIC SERVICES LTD,0000703854,11.58,616 9753 09
Department of Health,CT Revenue Funds,07/07/2016,SOS Equipment,Wheelchair Services,SPECIALISED ORTHOTIC SERVICES LTD,0000703854,57.88,616 9753 09
Department of Health,CT Revenue Funds,07/07/2016,Special Loan Equipment,Ludlow Hospital Inpatient Wards,PREMIERE HEALTHCARE,47481,46.41,
Department of Health,CT Revenue Funds,07/07/2016,Special Loan Equipment,Ludlow Hospital Inpatient Wards,PREMIERE HEALTHCARE,47481,232.05,
Department of Health,CT Revenue Funds,07/07/2016,Special Loan Equipment,Ludlow Hospital Inpatient Wards,PREMIERE HEALTHCARE,47482,4.55,
Department of Health,CT Revenue Funds,07/07/2016,Special Loan Equipment,Ludlow Hospital Inpatient Wards,PREMIERE HEALTHCARE,47482,22.75,
Department of Health,CT Revenue Funds,07/07/2016,Special Loan Equipment,Ludlow Hospital Inpatient Wards,PREMIERE HEALTHCARE,47483,218.4,
Department of Health,CT Revenue Funds,07/07/2016,Special Loan Equipment,Ludlow Hospital Inpatient Wards,PREMIERE HEALTHCARE,47483,43.68,
Department of Health,CT Revenue Funds,07/07/2016,Special Loan Equipment,Ludlow Hospital Inpatient Wards,PREMIERE HEALTHCARE,47484,3.64,
Department of Health,CT Revenue Funds,07/07/2016,Special Loan Equipment,Ludlow Hospital Inpatient Wards,PREMIERE HEALTHCARE,47484,18.2,
Department of Health,CT Revenue Funds,07/07/2016,Special Seating,Community Equipment Stores,HARVEST HEALTHCARE,0008975862,263.44,
Department of Health,CT Revenue Funds,07/07/2016,Special Seating,Community Equipment Stores,HARVEST HEALTHCARE,0008975862,1317.2,
Department of Health,CT Revenue Funds,07/07/2016,Special Seating,Wheelchair Services,OTTO BOCK HEALTHCARE PLC,212011429,84,228 4212 81
Department of Health,CT Revenue Funds,07/07/2016,Special Seating,Wheelchair Services,OTTO BOCK HEALTHCARE PLC,212011429,159,228 4212 81
Department of Health,CT Revenue Funds,07/07/2016,Special Seating,Wheelchair Services,OTTO BOCK HEALTHCARE PLC,212011429,26,228 4212 81
Department of Health,CT Revenue Funds,07/07/2016,Special Seating,Wheelchair Services,OTTO BOCK HEALTHCARE PLC,212011429,166,228 4212 81
Department of Health,CT Revenue Funds,07/07/2016,Special Seating,Wheelchair Services,OTTO BOCK HEALTHCARE PLC,212011429,11.2,228 4212 81
Department of Health,CT Revenue Funds,07/07/2016,Special Seating,Wheelchair Services,OTTO BOCK HEALTHCARE PLC,212011429,56,228 4212 81
Department of Health,CT Revenue Funds,07/07/2016,Special Seating,Wheelchair Services,OTTO BOCK HEALTHCARE PLC,212011429,5.2,228 4212 81
Department of Health,CT Revenue Funds,07/07/2016,Special Seating,Wheelchair Services,OTTO BOCK HEALTHCARE PLC,212011429,33.2,228 4212 81
Department of Health,CT Revenue Funds,07/07/2016,Special Seating,Wheelchair Services,OTTO BOCK HEALTHCARE PLC,212011429,16.8,228 4212 81
Department of Health,CT Revenue Funds,07/07/2016,Special Seating,Wheelchair Services,OTTO BOCK HEALTHCARE PLC,212011429,795,228 4212 81
Department of Health,CT Revenue Funds,07/07/2016,Special Seating,Wheelchair Services,OTTO BOCK HEALTHCARE PLC,212011824,58,228 4212 81
Department of Health,CT Revenue Funds,07/07/2016,Special Seating,Wheelchair Services,OTTO BOCK HEALTHCARE PLC,212011824,11.6,228 4212 81
Department of Health,CT Revenue Funds,07/07/2016,Special Seating,Wheelchair Services,OTTO BOCK HEALTHCARE PLC,212011846,17.4,228 4212 81
Department of Health,CT Revenue Funds,07/07/2016,Special Seating,Wheelchair Services,OTTO BOCK HEALTHCARE PLC,212011846,5.4,228 4212 81
Department of Health,CT Revenue Funds,07/07/2016,Special Seating,Wheelchair Services,OTTO BOCK HEALTHCARE PLC,212011846,795,228 4212 81
Department of Health,CT Revenue Funds,07/07/2016,Special Seating,Wheelchair Services,OTTO BOCK HEALTHCARE PLC,212011846,159,228 4212 81
Department of Health,CT Revenue Funds,07/07/2016,Special Seating,Wheelchair Services,OTTO BOCK HEALTHCARE PLC,212011846,87,228 4212 81
Department of Health,CT Revenue Funds,07/07/2016,Special Seating,Wheelchair Services,OTTO BOCK HEALTHCARE PLC,212011846,27,228 4212 81
Department of Health,CT Revenue Funds,07/07/2016,Special Seating,Wheelchair Services,OTTO BOCK HEALTHCARE PLC,212011846,11.6,228 4212 81
Department of Health,CT Revenue Funds,07/07/2016,Special Seating,Wheelchair Services,OTTO BOCK HEALTHCARE PLC,212011846,58,228 4212 81
Department of Health,CT Revenue Funds,07/07/2016,Special Seating,Community Equipment Stores,FRONTIER THERAPEUTICS,426706,3729.5,700 8536 57
Department of Health,CT Revenue Funds,07/07/2016,Special Seating,Community Equipment Stores,FRONTIER THERAPEUTICS,426706,745.9,700 8536 57
Department of Health,CT Revenue Funds,07/07/2016,Staff Recruitment Advertising,Whitchurch Hospital Administration,NWN MEDIA LTD,1326541,412.55,158907037
Department of Health,CT Revenue Funds,07/07/2016,Staff Recruitment Advertising,Bishops Castle Hospital Management,NWN MEDIA LTD,1326541,412.54,158907037
Department of Health,CT Revenue Funds,07/07/2016,Staff Recruitment Advertising,Bridgnorth Hospital Administration,NWN MEDIA LTD,1326541,412.55,158907037
Department of Health,CT Revenue Funds,07/07/2016,Staff Recruitment Advertising,Ludlow Hospital Management,NWN MEDIA LTD,1326541,412.54,158907037
Department of Health,CT Revenue Funds,07/07/2016,Staff Uniforms & Clothing,Whitchurch Hospital Inpatient Ward,SIMON JERSEY LTD,7952835,-5.26,732 3615 53
Department of Health,CT Revenue Funds,07/07/2016,Staff Uniforms & Clothing,Whitchurch Hospital Inpatient Ward,SIMON JERSEY LTD,7952835,3.98,732 3615 53
Department of Health,CT Revenue Funds,07/07/2016,Staff Uniforms & Clothing,Whitchurch Hospital Inpatient Ward,SIMON JERSEY LTD,7952835,19.9,732 3615 53
Department of Health,CT Revenue Funds,07/07/2016,Staff Uniforms & Clothing,Whitchurch Hospital Inpatient Ward,SIMON JERSEY LTD,7952835,-1.05,732 3615 53
Department of Health,CT Revenue Funds,07/07/2016,Staff Uniforms & Clothing,North West Shropshire Interdisciplinary Teams,SIMON JERSEY LTD,7952909,19.35,732 3615 53
Department of Health,CT Revenue Funds,07/07/2016,Staff Uniforms & Clothing,North West Shropshire Interdisciplinary Teams,SIMON JERSEY LTD,7952909,11.4,732 3615 53
Department of Health,CT Revenue Funds,07/07/2016,Staff Uniforms & Clothing,North West Shropshire Interdisciplinary Teams,SIMON JERSEY LTD,7952909,3.87,732 3615 53
Department of Health,CT Revenue Funds,07/07/2016,Staff Uniforms & Clothing,North West Shropshire Interdisciplinary Teams,SIMON JERSEY LTD,7952909,2.28,732 3615 53
Department of Health,CT Revenue Funds,07/07/2016,Staff Uniforms & Clothing,Telford North Community Nursing,SIMON JERSEY LTD,7953547,23.9,732 3615 53
Department of Health,CT Revenue Funds,07/07/2016,Staff Uniforms & Clothing,Telford North Community Nursing,SIMON JERSEY LTD,7953547,4.4,732 3615 53
Department of Health,CT Revenue Funds,07/07/2016,Staff Uniforms & Clothing,Telford North Community Nursing,SIMON JERSEY LTD,7953547,0.88,732 3615 53
Department of Health,CT Revenue Funds,07/07/2016,Staff Uniforms & Clothing,Telford North Community Nursing,SIMON JERSEY LTD,7953547,15.2,732 3615 53
Department of Health,CT Revenue Funds,07/07/2016,Staff Uniforms & Clothing,Telford North Community Nursing,SIMON JERSEY LTD,7953547,4.78,732 3615 53
Department of Health,CT Revenue Funds,07/07/2016,Staff Uniforms & Clothing,Telford North Community Nursing,SIMON JERSEY LTD,7953547,6.36,732 3615 53
Department of Health,CT Revenue Funds,07/07/2016,Staff Uniforms & Clothing,Telford North Community Nursing,SIMON JERSEY LTD,7953547,31.8,732 3615 53
Department of Health,CT Revenue Funds,07/07/2016,Staff Uniforms & Clothing,Telford North Community Nursing,SIMON JERSEY LTD,7953547,3.04,732 3615 53
Department of Health,CT Revenue Funds,07/07/2016,Staff Uniforms & Clothing,Whitchurch Hospital Inpatient Ward,SIMON JERSEY LTD,7953551,2.58,732 3615 53
Department of Health,CT Revenue Funds,07/07/2016,Staff Uniforms & Clothing,Whitchurch Hospital Inpatient Ward,SIMON JERSEY LTD,7953551,-0.44,732 3615 53
Department of Health,CT Revenue Funds,07/07/2016,Staff Uniforms & Clothing,Whitchurch Hospital Inpatient Ward,SIMON JERSEY LTD,7953551,1.52,732 3615 53
Department of Health,CT Revenue Funds,07/07/2016,Staff Uniforms & Clothing,Whitchurch Hospital Inpatient Ward,SIMON JERSEY LTD,7953551,-2.2,732 3615 53
Department of Health,CT Revenue Funds,07/07/2016,Staff Uniforms & Clothing,Whitchurch Hospital Inpatient Ward,SIMON JERSEY LTD,7953551,12.9,732 3615 53
Department of Health,CT Revenue Funds,07/07/2016,Staff Uniforms & Clothing,Whitchurch Hospital Inpatient Ward,SIMON JERSEY LTD,7953551,7.6,732 3615 53
Department of Health,CT Revenue Funds,07/07/2016,Staff Uniforms & Clothing,Whitchurch Hospital Inpatient Ward,SIMON JERSEY LTD,7953551,19.9,732 3615 53
Department of Health,CT Revenue Funds,07/07/2016,Staff Uniforms & Clothing,Whitchurch Hospital Inpatient Ward,SIMON JERSEY LTD,7953551,3.98,732 3615 53
Department of Health,CT Revenue Funds,07/07/2016,Staff Uniforms & Clothing,Bridgnorth Hospital Inpatient Ward,SIMON JERSEY LTD,7954846,-2.93,732 3615 53
Department of Health,CT Revenue Funds,07/07/2016,Staff Uniforms & Clothing,Bridgnorth Hospital Inpatient Ward,SIMON JERSEY LTD,7954846,-14.64,732 3615 53
Department of Health,CT Revenue Funds,07/07/2016,Staff Uniforms & Clothing,Shrewsbury and Atcham North Interdisciplinary Teams,SIMON JERSEY LTD,7963439,1.52,732 3615 53
Department of Health,CT Revenue Funds,07/07/2016,Staff Uniforms & Clothing,Shrewsbury and Atcham North Interdisciplinary Teams,SIMON JERSEY LTD,7963439,0.44,732 3615 53
Department of Health,CT Revenue Funds,07/07/2016,Staff Uniforms & Clothing,Shrewsbury and Atcham North Interdisciplinary Teams,SIMON JERSEY LTD,7963439,2.2,732 3615 53
Department of Health,CT Revenue Funds,07/07/2016,Staff Uniforms & Clothing,Shrewsbury and Atcham North Interdisciplinary Teams,SIMON JERSEY LTD,7963439,5.22,732 3615 53
Department of Health,CT Revenue Funds,07/07/2016,Staff Uniforms & Clothing,Shrewsbury and Atcham North Interdisciplinary Teams,SIMON JERSEY LTD,7963439,26.12,732 3615 53
Department of Health,CT Revenue Funds,07/07/2016,Staff Uniforms & Clothing,Shrewsbury and Atcham North Interdisciplinary Teams,SIMON JERSEY LTD,7963439,7.6,732 3615 53
Department of Health,CT Revenue Funds,07/07/2016,Staff Uniforms & Clothing,Ludlow Hospital Inpatient Wards,SIMON JERSEY LTD,7963442,-0.66,732 3615 53
Department of Health,CT Revenue Funds,07/07/2016,Staff Uniforms & Clothing,Ludlow Hospital Inpatient Wards,SIMON JERSEY LTD,7963442,21.96,732 3615 53
Department of Health,CT Revenue Funds,07/07/2016,Staff Uniforms & Clothing,Ludlow Hospital Inpatient Wards,SIMON JERSEY LTD,7963442,4.39,732 3615 53
Department of Health,CT Revenue Funds,07/07/2016,Staff Uniforms & Clothing,Ludlow Hospital Inpatient Wards,SIMON JERSEY LTD,7963442,-3.3,732 3615 53
Department of Health,CT Revenue Funds,07/07/2016,Staff Uniforms & Clothing,Ludlow Hospital Inpatient Wards,SIMON JERSEY LTD,7963442,11.4,732 3615 53
Department of Health,CT Revenue Funds,07/07/2016,Staff Uniforms & Clothing,Ludlow Hospital Inpatient Wards,SIMON JERSEY LTD,7963442,2.28,732 3615 53
Department of Health,CT Revenue Funds,07/07/2016,Staff Uniforms & Clothing,Ludlow Hospital Inpatient Wards,SIMON JERSEY LTD,7963442,19.35,732 3615 53
Department of Health,CT Revenue Funds,07/07/2016,Staff Uniforms & Clothing,Ludlow Hospital Inpatient Wards,SIMON JERSEY LTD,7963442,3.87,732 3615 53
Department of Health,CT Revenue Funds,07/07/2016,Staff Uniforms & Clothing,Single Point of Referral,SIMON JERSEY LTD,7963444,3.04,732 3615 53
Department of Health,CT Revenue Funds,07/07/2016,Staff Uniforms & Clothing,Single Point of Referral,SIMON JERSEY LTD,7963444,1.59,732 3615 53
Department of Health,CT Revenue Funds,07/07/2016,Staff Uniforms & Clothing,Single Point of Referral,SIMON JERSEY LTD,7963444,3.87,732 3615 53
Department of Health,CT Revenue Funds,07/07/2016,Staff Uniforms & Clothing,Single Point of Referral,SIMON JERSEY LTD,7963444,19.35,732 3615 53
Department of Health,CT Revenue Funds,07/07/2016,Staff Uniforms & Clothing,Single Point of Referral,SIMON JERSEY LTD,7963444,4.4,732 3615 53
Department of Health,CT Revenue Funds,07/07/2016,Staff Uniforms & Clothing,Single Point of Referral,SIMON JERSEY LTD,7963444,0.88,732 3615 53
Department of Health,CT Revenue Funds,07/07/2016,Staff Uniforms & Clothing,Single Point of Referral,SIMON JERSEY LTD,7963444,-8.8,732 3615 53
Department of Health,CT Revenue Funds,07/07/2016,Staff Uniforms & Clothing,Single Point of Referral,SIMON JERSEY LTD,7963444,15.2,732 3615 53
Department of Health,CT Revenue Funds,07/07/2016,Staff Uniforms & Clothing,Single Point of Referral,SIMON JERSEY LTD,7963444,7.95,732 3615 53
Department of Health,CT Revenue Funds,07/07/2016,Staff Uniforms & Clothing,Single Point of Referral,SIMON JERSEY LTD,7963444,-1.76,732 3615 53
Department of Health,CT Revenue Funds,07/07/2016,Staff Uniforms & Clothing,Ludlow Hospital Physiotherapy,SIMON JERSEY LTD,7963675,38.49,732 3615 53
Department of Health,CT Revenue Funds,07/07/2016,Staff Uniforms & Clothing,Ludlow Hospital Physiotherapy,SIMON JERSEY LTD,7963675,7.7,732 3615 53
Department of Health,CT Revenue Funds,07/07/2016,Staff Uniforms & Clothing,Ludlow Hospital Physiotherapy,SIMON JERSEY LTD,7963675,2.28,732 3615 53
Department of Health,CT Revenue Funds,07/07/2016,Staff Uniforms & Clothing,Ludlow Hospital Physiotherapy,SIMON JERSEY LTD,7963675,11.4,732 3615 53
Department of Health,CT Revenue Funds,07/07/2016,Staff Uniforms & Clothing,Telford North Community Nursing,SIMON JERSEY LTD,7965592,7.5,732 3615 53
Department of Health,CT Revenue Funds,07/07/2016,Staff Uniforms & Clothing,Telford North Community Nursing,SIMON JERSEY LTD,7965592,1.5,732 3615 53
Department of Health,CT Revenue Funds,07/07/2016,Staff Uniforms & Clothing,South East Interdisciplinary Teams,SIMON JERSEY LTD,7966480,14.64,732 3615 53
Department of Health,CT Revenue Funds,07/07/2016,Staff Uniforms & Clothing,South East Interdisciplinary Teams,SIMON JERSEY LTD,7966480,2.93,732 3615 53
Department of Health,CT Revenue Funds,07/07/2016,Staff Uniforms & Clothing,Shrewsbury and Atcham North Interdisciplinary Teams,SIMON JERSEY LTD,7966979,14.64,732 3615 53
Department of Health,CT Revenue Funds,07/07/2016,Staff Uniforms & Clothing,Shrewsbury and Atcham North Interdisciplinary Teams,SIMON JERSEY LTD,7966979,2.93,732 3615 53
Department of Health,CT Revenue Funds,07/07/2016,Staff Uniforms & Clothing,Nurse Liaison Intermediate Care (T&W),SIMON JERSEY LTD,7967744,2.22,732 3615 53
Department of Health,CT Revenue Funds,07/07/2016,Staff Uniforms & Clothing,Nurse Liaison Intermediate Care (T&W),SIMON JERSEY LTD,7967744,8.95,732 3615 53
Department of Health,CT Revenue Funds,07/07/2016,Staff Uniforms & Clothing,Nurse Liaison Intermediate Care (T&W),SIMON JERSEY LTD,7967744,11.09,732 3615 53
Department of Health,CT Revenue Funds,07/07/2016,Staff Uniforms & Clothing,Nurse Liaison Intermediate Care (T&W),SIMON JERSEY LTD,7967744,1.79,732 3615 53
Department of Health,CT Revenue Funds,07/07/2016,Staff Uniforms & Clothing,Whitchurch Hospital Inpatient Ward,SIMON JERSEY LTD,7968753,2.58,732 3615 53
Department of Health,CT Revenue Funds,07/07/2016,Staff Uniforms & Clothing,Whitchurch Hospital Inpatient Ward,SIMON JERSEY LTD,7968753,12.9,732 3615 53
Department of Health,CT Revenue Funds,07/07/2016,Staff Uniforms & Clothing,Shrewsbury and Atcham North Interdisciplinary Teams,SIMON JERSEY LTD,7970617,11,732 3615 53
Department of Health,CT Revenue Funds,07/07/2016,Staff Uniforms & Clothing,Shrewsbury and Atcham North Interdisciplinary Teams,SIMON JERSEY LTD,7970617,3.8,732 3615 53
Department of Health,CT Revenue Funds,07/07/2016,Staff Uniforms & Clothing,Shrewsbury and Atcham North Interdisciplinary Teams,SIMON JERSEY LTD,7970617,-11,732 3615 53
Department of Health,CT Revenue Funds,07/07/2016,Staff Uniforms & Clothing,Shrewsbury and Atcham North Interdisciplinary Teams,SIMON JERSEY LTD,7970617,19,732 3615 53
Department of Health,CT Revenue Funds,07/07/2016,Staff Uniforms & Clothing,Shrewsbury and Atcham North Interdisciplinary Teams,SIMON JERSEY LTD,7970617,2.2,732 3615 53
Department of Health,CT Revenue Funds,07/07/2016,Staff Uniforms & Clothing,Shrewsbury and Atcham North Interdisciplinary Teams,SIMON JERSEY LTD,7970617,6.45,732 3615 53
Department of Health,CT Revenue Funds,07/07/2016,Staff Uniforms & Clothing,Shrewsbury and Atcham North Interdisciplinary Teams,SIMON JERSEY LTD,7970617,32.25,732 3615 53
Department of Health,CT Revenue Funds,07/07/2016,Staff Uniforms & Clothing,Shrewsbury and Atcham North Interdisciplinary Teams,SIMON JERSEY LTD,7970617,-2.2,732 3615 53
Department of Health,CT Revenue Funds,07/07/2016,Staff Uniforms & Clothing,South West Interdisciplinary Teams,SIMON JERSEY LTD,7970651,19,732 3615 53
Department of Health,CT Revenue Funds,07/07/2016,Staff Uniforms & Clothing,South West Interdisciplinary Teams,SIMON JERSEY LTD,7970651,3.8,732 3615 53
Department of Health,CT Revenue Funds,07/07/2016,Staff Uniforms & Clothing,South West Interdisciplinary Teams,SIMON JERSEY LTD,7970651,6.45,732 3615 53
Department of Health,CT Revenue Funds,07/07/2016,Staff Uniforms & Clothing,South West Interdisciplinary Teams,SIMON JERSEY LTD,7970651,32.25,732 3615 53
Department of Health,CT Revenue Funds,07/07/2016,Staff Uniforms & Clothing,South West Interdisciplinary Teams,SIMON JERSEY LTD,7970740,11.4,732 3615 53
Department of Health,CT Revenue Funds,07/07/2016,Staff Uniforms & Clothing,South West Interdisciplinary Teams,SIMON JERSEY LTD,7970740,2.28,732 3615 53
Department of Health,CT Revenue Funds,07/07/2016,Staff Uniforms & Clothing,South West Interdisciplinary Teams,SIMON JERSEY LTD,7970740,19.35,732 3615 53
Department of Health,CT Revenue Funds,07/07/2016,Staff Uniforms & Clothing,South West Interdisciplinary Teams,SIMON JERSEY LTD,7970740,3.87,732 3615 53
Department of Health,CT Revenue Funds,07/07/2016,Staff Uniforms & Clothing,Ludlow Hospital Physiotherapy,SIMON JERSEY LTD,7970744,2.58,732 3615 53
Department of Health,CT Revenue Funds,07/07/2016,Staff Uniforms & Clothing,Ludlow Hospital Physiotherapy,SIMON JERSEY LTD,7970744,1.52,732 3615 53
Department of Health,CT Revenue Funds,07/07/2016,Staff Uniforms & Clothing,Ludlow Hospital Physiotherapy,SIMON JERSEY LTD,7970744,12.9,732 3615 53
Department of Health,CT Revenue Funds,07/07/2016,Staff Uniforms & Clothing,Ludlow Hospital Physiotherapy,SIMON JERSEY LTD,7970744,7.6,732 3615 53
Department of Health,CT Revenue Funds,07/07/2016,Staff Uniforms & Clothing,North West Shropshire Interdisciplinary Teams,SIMON JERSEY LTD,7970757,6.45,732 3615 53
Department of Health,CT Revenue Funds,07/07/2016,Staff Uniforms & Clothing,North West Shropshire Interdisciplinary Teams,SIMON JERSEY LTD,7970757,1.52,732 3615 53
Department of Health,CT Revenue Funds,07/07/2016,Staff Uniforms & Clothing,North West Shropshire Interdisciplinary Teams,SIMON JERSEY LTD,7970757,7.95,732 3615 53
Department of Health,CT Revenue Funds,07/07/2016,Staff Uniforms & Clothing,North West Shropshire Interdisciplinary Teams,SIMON JERSEY LTD,7970757,2.39,732 3615 53
Department of Health,CT Revenue Funds,07/07/2016,Staff Uniforms & Clothing,North West Shropshire Interdisciplinary Teams,SIMON JERSEY LTD,7970757,7.6,732 3615 53
Department of Health,CT Revenue Funds,07/07/2016,Staff Uniforms & Clothing,North West Shropshire Interdisciplinary Teams,SIMON JERSEY LTD,7970757,1.29,732 3615 53
Department of Health,CT Revenue Funds,07/07/2016,Staff Uniforms & Clothing,North West Shropshire Interdisciplinary Teams,SIMON JERSEY LTD,7970757,11.95,732 3615 53
Department of Health,CT Revenue Funds,07/07/2016,Staff Uniforms & Clothing,North West Shropshire Interdisciplinary Teams,SIMON JERSEY LTD,7970757,1.59,732 3615 53
Department of Health,CT Revenue Funds,07/07/2016,Staff Uniforms & Clothing,ICS South West,SIMON JERSEY LTD,7970859,11.4,732 3615 53
Department of Health,CT Revenue Funds,07/07/2016,Staff Uniforms & Clothing,ICS South West,SIMON JERSEY LTD,7970859,19.35,732 3615 53
Department of Health,CT Revenue Funds,07/07/2016,Staff Uniforms & Clothing,ICS South West,SIMON JERSEY LTD,7970859,2.28,732 3615 53
Department of Health,CT Revenue Funds,07/07/2016,Staff Uniforms & Clothing,ICS South West,SIMON JERSEY LTD,7970859,3.87,732 3615 53
Department of Health,CT Revenue Funds,07/07/2016,Staff Uniforms & Clothing,Shrewsbury and Atcham North Interdisciplinary Teams,SIMON JERSEY LTD,7970861,1.76,732 3615 53
Department of Health,CT Revenue Funds,07/07/2016,Staff Uniforms & Clothing,Shrewsbury and Atcham North Interdisciplinary Teams,SIMON JERSEY LTD,7970861,8.8,732 3615 53
Department of Health,CT Revenue Funds,07/07/2016,Staff Uniforms & Clothing,Shrewsbury and Atcham North Interdisciplinary Teams,SIMON JERSEY LTD,7970861,15.2,732 3615 53
Department of Health,CT Revenue Funds,07/07/2016,Staff Uniforms & Clothing,Shrewsbury and Atcham North Interdisciplinary Teams,SIMON JERSEY LTD,7970861,15.2,732 3615 53
Department of Health,CT Revenue Funds,07/07/2016,Staff Uniforms & Clothing,Shrewsbury and Atcham North Interdisciplinary Teams,SIMON JERSEY LTD,7970861,3.18,732 3615 53
Department of Health,CT Revenue Funds,07/07/2016,Staff Uniforms & Clothing,Shrewsbury and Atcham North Interdisciplinary Teams,SIMON JERSEY LTD,7970861,12.9,732 3615 53
Department of Health,CT Revenue Funds,07/07/2016,Staff Uniforms & Clothing,Shrewsbury and Atcham North Interdisciplinary Teams,SIMON JERSEY LTD,7970861,-15.2,732 3615 53
Department of Health,CT Revenue Funds,07/07/2016,Staff Uniforms & Clothing,Shrewsbury and Atcham North Interdisciplinary Teams,SIMON JERSEY LTD,7970861,-8.8,732 3615 53
Department of Health,CT Revenue Funds,07/07/2016,Staff Uniforms & Clothing,Shrewsbury and Atcham North Interdisciplinary Teams,SIMON JERSEY LTD,7970861,2.58,732 3615 53
Department of Health,CT Revenue Funds,07/07/2016,Staff Uniforms & Clothing,Shrewsbury and Atcham North Interdisciplinary Teams,SIMON JERSEY LTD,7970861,-1.76,732 3615 53
Department of Health,CT Revenue Funds,07/07/2016,Staff Uniforms & Clothing,Shrewsbury and Atcham North Interdisciplinary Teams,SIMON JERSEY LTD,7970861,3.04,732 3615 53
Department of Health,CT Revenue Funds,07/07/2016,Staff Uniforms & Clothing,Shrewsbury and Atcham North Interdisciplinary Teams,SIMON JERSEY LTD,7970861,15.9,732 3615 53
Department of Health,CT Revenue Funds,07/07/2016,Staff Uniforms & Clothing,North West Shropshire Interdisciplinary Teams,SIMON JERSEY LTD,7971152,3.23,732 3615 53
Department of Health,CT Revenue Funds,07/07/2016,Staff Uniforms & Clothing,North West Shropshire Interdisciplinary Teams,SIMON JERSEY LTD,7971152,3.23,732 3615 53
Department of Health,CT Revenue Funds,07/07/2016,Staff Uniforms & Clothing,North West Shropshire Interdisciplinary Teams,SIMON JERSEY LTD,7971152,16.14,732 3615 53
Department of Health,CT Revenue Funds,07/07/2016,Staff Uniforms & Clothing,North West Shropshire Interdisciplinary Teams,SIMON JERSEY LTD,7971152,16.14,732 3615 53
Department of Health,CT Revenue Funds,07/07/2016,Staff Uniforms & Clothing,Whitchurch Hospital Physiotherapy,MELTEMI COMPANY CLOTHING LTD,INV/1654296,1.25,198 0705 37
Department of Health,CT Revenue Funds,07/07/2016,Staff Uniforms & Clothing,Whitchurch Hospital Physiotherapy,MELTEMI COMPANY CLOTHING LTD,INV/1654296,0.25,198 0705 37
Department of Health,CT Revenue Funds,07/07/2016,Staff Uniforms & Clothing,Whitchurch Hospital Physiotherapy,MELTEMI COMPANY CLOTHING LTD,INV/1654296,8.5,198 0705 37
Department of Health,CT Revenue Funds,07/07/2016,Staff Uniforms & Clothing,Whitchurch Hospital Physiotherapy,MELTEMI COMPANY CLOTHING LTD,INV/1654296,1.25,198 0705 37
Department of Health,CT Revenue Funds,07/07/2016,Staff Uniforms & Clothing,Whitchurch Hospital Physiotherapy,MELTEMI COMPANY CLOTHING LTD,INV/1654296,6.25,198 0705 37
Department of Health,CT Revenue Funds,07/07/2016,Staff Uniforms & Clothing,Whitchurch Hospital Physiotherapy,MELTEMI COMPANY CLOTHING LTD,INV/1654296,-42.5,198 0705 37
Department of Health,CT Revenue Funds,07/07/2016,Staff Uniforms & Clothing,Whitchurch Hospital Physiotherapy,MELTEMI COMPANY CLOTHING LTD,INV/1654296,-0.1,198 0705 37
Department of Health,CT Revenue Funds,07/07/2016,Staff Uniforms & Clothing,Whitchurch Hospital Physiotherapy,MELTEMI COMPANY CLOTHING LTD,INV/1654296,-0.5,198 0705 37
Department of Health,CT Revenue Funds,07/07/2016,Staff Uniforms & Clothing,Whitchurch Hospital Physiotherapy,MELTEMI COMPANY CLOTHING LTD,INV/1654296,42.5,198 0705 37
Department of Health,CT Revenue Funds,07/07/2016,Staff Uniforms & Clothing,Whitchurch Hospital Physiotherapy,MELTEMI COMPANY CLOTHING LTD,INV/1654296,42.5,198 0705 37
Department of Health,CT Revenue Funds,07/07/2016,Standard Life AVC's,Payables,STANDARD LIFE ASSURANCE COMPANY,JUN16,50,
Department of Health,CT Revenue Funds,07/07/2016,Stationery,Shrewsbury and Atcham North Interdisciplinary Teams,HELLIFIELD OFFICE SUPPLIES UK LTD,16773,73.98,109 4644 13
Department of Health,CT Revenue Funds,07/07/2016,Stationery,Shrewsbury and Atcham North Interdisciplinary Teams,HELLIFIELD OFFICE SUPPLIES UK LTD,16773,70.2,109 4644 13
Department of Health,CT Revenue Funds,07/07/2016,Stationery,Shrewsbury and Atcham North Interdisciplinary Teams,HELLIFIELD OFFICE SUPPLIES UK LTD,16773,70.2,109 4644 13
Department of Health,CT Revenue Funds,07/07/2016,Stationery,Shrewsbury and Atcham North Interdisciplinary Teams,HELLIFIELD OFFICE SUPPLIES UK LTD,16773,14.04,109 4644 13
Department of Health,CT Revenue Funds,07/07/2016,Stationery,Shrewsbury and Atcham North Interdisciplinary Teams,HELLIFIELD OFFICE SUPPLIES UK LTD,16773,70.2,109 4644 13
Department of Health,CT Revenue Funds,07/07/2016,Stationery,Shrewsbury and Atcham North Interdisciplinary Teams,HELLIFIELD OFFICE SUPPLIES UK LTD,16773,14.04,109 4644 13
Department of Health,CT Revenue Funds,07/07/2016,Stationery,Shrewsbury and Atcham North Interdisciplinary Teams,HELLIFIELD OFFICE SUPPLIES UK LTD,16773,14.8,109 4644 13
Department of Health,CT Revenue Funds,07/07/2016,Stationery,Shrewsbury and Atcham North Interdisciplinary Teams,HELLIFIELD OFFICE SUPPLIES UK LTD,16773,14.04,109 4644 13
Department of Health,CT Revenue Funds,07/07/2016,Stationery,Shropshire School Nurses,STAMPS DIRECT LTD,LN249350,1.02,283 5042 63
Department of Health,CT Revenue Funds,07/07/2016,Stationery,Shropshire School Nurses,STAMPS DIRECT LTD,LN249350,1.02,283 5042 63
Department of Health,CT Revenue Funds,07/07/2016,Stationery,Shropshire School Nurses,STAMPS DIRECT LTD,LN249350,1.02,283 5042 63
Department of Health,CT Revenue Funds,07/07/2016,Stationery,Shropshire School Nurses,STAMPS DIRECT LTD,LN249350,5.1,283 5042 63
Department of Health,CT Revenue Funds,07/07/2016,Stationery,Shropshire School Nurses,STAMPS DIRECT LTD,LN249350,5.1,283 5042 63
Department of Health,CT Revenue Funds,07/07/2016,Stationery,Shropshire School Nurses,STAMPS DIRECT LTD,LN249350,5.1,283 5042 63
Department of Health,CT Revenue Funds,07/07/2016,Stationery,Shropshire School Nurses,STAMPS DIRECT LTD,LN249350,5.1,283 5042 63
Department of Health,CT Revenue Funds,07/07/2016,Stationery,Shropshire School Nurses,STAMPS DIRECT LTD,LN249350,1.02,283 5042 63
Department of Health,CT Revenue Funds,07/07/2016,Stationery,Shropshire School Nurses,STAMPS DIRECT LTD,LN249350,1.02,283 5042 63
Department of Health,CT Revenue Funds,07/07/2016,Stationery,Shropshire School Nurses,STAMPS DIRECT LTD,LN249350,5.1,283 5042 63
Department of Health,CT Revenue Funds,07/07/2016,Stationery,APCS - Management - Telford and Wrekin,SYNERTEC LTD,QS121672,371.53,
Department of Health,CT Revenue Funds,07/07/2016,Stationery,APCS - Management - Telford and Wrekin,SYNERTEC LTD,QS121672,74.31,
Department of Health,CT Revenue Funds,07/07/2016,Stationery,APCS - Management - Telford and Wrekin,SYNERTEC LTD,QS121672,-74.31,
Department of Health,CT Revenue Funds,07/07/2016,Stationery,Organisational Development,CLARES BUSINESS SOLUTIONS LTD,SINV00315175,15.92,
Department of Health,CT Revenue Funds,07/07/2016,Stationery,Organisational Development,CLARES BUSINESS SOLUTIONS LTD,SINV00315175,79.6,
Department of Health,CT Revenue Funds,07/07/2016,Surgical Instruments : General,Ludlow Hospital Minor Injuries Unit,WILLIAMS MEDICAL SUPPLIES,WSI-1211710,48.77,902 9947 03
Department of Health,CT Revenue Funds,07/07/2016,Surgical Instruments : General,Ludlow Hospital Minor Injuries Unit,WILLIAMS MEDICAL SUPPLIES,WSI-1211710,9.75,902 9947 03
Department of Health,CT Revenue Funds,07/07/2016,Telephone Rental & Call Charges,CAMHS Team (T&W),TELFORD & WREKIN COUNCIL,4274846,161.05,162 3321 00
Department of Health,CT Revenue Funds,07/07/2016,Telephone Rental & Call Charges,CAMHS Team (T&W),TELFORD & WREKIN COUNCIL,4274846,32.21,162 3321 00
Department of Health,CT Revenue Funds,07/07/2016,Telephone Rental & Call Charges,Child Speech and Language Therapy,TELFORD & WREKIN COUNCIL,4274846,1.59,162 3321 00
Department of Health,CT Revenue Funds,07/07/2016,Telephone Rental & Call Charges,Child Speech and Language Therapy,TELFORD & WREKIN COUNCIL,4274846,7.93,162 3321 00
Department of Health,CT Revenue Funds,07/07/2016,Telephone Rental & Call Charges,South West Interdisciplinary Teams,MAINSTREAM DIGITAL LTD,747192,1004.74,618 0562 49
Department of Health,CT Revenue Funds,07/07/2016,Telephone Rental & Call Charges,South West Interdisciplinary Teams,MAINSTREAM DIGITAL LTD,747192,200.95,618 0562 49
Department of Health,CT Revenue Funds,07/07/2016,Telephone Rental & Call Charges,South West Interdisciplinary Teams,MAINSTREAM DIGITAL LTD,748060,0.04,618 0562 49
Department of Health,CT Revenue Funds,07/07/2016,Telephone Rental & Call Charges,South West Interdisciplinary Teams,MAINSTREAM DIGITAL LTD,748060,0.01,618 0562 49
Department of Health,CT Revenue Funds,07/07/2016,Telephone Rental & Call Charges,Diabetes Specialist Nursing,MAINSTREAM DIGITAL LTD,748852,5.05,618 0562 49
Department of Health,CT Revenue Funds,07/07/2016,Telephone Rental & Call Charges,Diabetes Specialist Nursing,MAINSTREAM DIGITAL LTD,748852,1.01,618 0562 49
Department of Health,CT Revenue Funds,07/07/2016,Telephone Rental & Call Charges,Diabetes Specialist Nursing,MAINSTREAM DIGITAL LTD,749342,7.43,618 0562 49
Department of Health,CT Revenue Funds,07/07/2016,Telephone Rental & Call Charges,Diabetes Specialist Nursing,MAINSTREAM DIGITAL LTD,749342,37.13,618 0562 49
Department of Health,CT Revenue Funds,07/07/2016,Telephone Rental & Call Charges,IM&T Support,VODAFONE PAGING LTD,VR1457041,6.42,569 9532 77
Department of Health,CT Revenue Funds,07/07/2016,Telephone Rental & Call Charges,IM&T Support,VODAFONE PAGING LTD,VR1457041,1.28,569 9532 77
Department of Health,CT Revenue Funds,07/07/2016,Therapy Equipment & Materials,Respiratory Liaison Nurses (T&W),AS KITCHING (OAKENGATES) LTD,407,15.53,158 9315 33
Department of Health,CT Revenue Funds,07/07/2016,Therapy Equipment & Materials,Respiratory Liaison Nurses (T&W),AS KITCHING (OAKENGATES) LTD,407,77.67,158 9315 33
Department of Health,CT Revenue Funds,07/07/2016,Therapy Equipment & Materials,Shropshire Child Comm Physiotherapy,NOTTINGHAM REHAB SUPPLIES,97334283,-6.04,125 6886 44
Department of Health,CT Revenue Funds,07/07/2016,Therapy Equipment & Materials,Shropshire Child Comm Physiotherapy,NOTTINGHAM REHAB SUPPLIES,97334283,-1.21,125 6886 44
Department of Health,CT Revenue Funds,07/07/2016,Therapy Equipment & Materials,Shropshire Child Comm Physiotherapy,NOTTINGHAM REHAB SUPPLIES,97334283,119.99,125 6886 44
Department of Health,CT Revenue Funds,07/07/2016,Therapy Equipment & Materials,Shropshire Child Comm Physiotherapy,NOTTINGHAM REHAB SUPPLIES,97334283,24,125 6886 44
Department of Health,CT Revenue Funds,07/07/2016,Training Expenses,Governance,ICSA BOARDROOM APPS LTD,4722,311.47,
Department of Health,CT Revenue Funds,07/07/2016,Training Materials,Family Nurse Programme,TRACEY RUSSELL,5328,1.49,
Department of Health,CT Revenue Funds,07/07/2016,Training Materials,Family Nurse Programme,TRACEY RUSSELL,5328,7.44,
Department of Health,CT Revenue Funds,07/07/2016,Training Materials,Family Nurse Programme,TRACEY RUSSELL,5328,1.49,
Department of Health,CT Revenue Funds,07/07/2016,Training Materials,Family Nurse Programme,TRACEY RUSSELL,5328,7.44,
Department of Health,CT Revenue Funds,07/07/2016,Training Materials,Family Nurse Programme,TRACEY RUSSELL,5328,1.49,
Department of Health,CT Revenue Funds,07/07/2016,Training Materials,Family Nurse Programme,TRACEY RUSSELL,5328,7.44,
Department of Health,CT Revenue Funds,07/07/2016,Training Materials,Family Nurse Programme,TRACEY RUSSELL,5328,1.49,
Department of Health,CT Revenue Funds,07/07/2016,Training Materials,Family Nurse Programme,TRACEY RUSSELL,5328,1.49,
Department of Health,CT Revenue Funds,07/07/2016,Training Materials,Family Nurse Programme,TRACEY RUSSELL,5328,14.88,
Department of Health,CT Revenue Funds,07/07/2016,Training Materials,Family Nurse Programme,TRACEY RUSSELL,5328,7.44,
Department of Health,CT Revenue Funds,07/07/2016,Training Materials,Family Nurse Programme,TRACEY RUSSELL,5328,2.98,
Department of Health,CT Revenue Funds,07/07/2016,Training Materials,Family Nurse Programme,TRACEY RUSSELL,5328,7.44,
Department of Health,CT Revenue Funds,07/07/2016,Training Materials,Family Nurse Programme,MOTHERCARE,SINVCO8553,-17.47,
Department of Health,CT Revenue Funds,07/07/2016,Training Materials,Family Nurse Programme,MOTHERCARE,SINVCO8553,-3.49,
Department of Health,CT Revenue Funds,07/07/2016,Training Materials,Family Nurse Programme,MOTHERCARE,SINVCO8553,79.8,
Department of Health,CT Revenue Funds,07/07/2016,Training Materials,Family Nurse Programme,MOTHERCARE,SINVCO8553,15.96,
Department of Health,CT Revenue Funds,07/07/2016,Travel & Subsistence,Library & Knowledge Service,MRS MAIR MOTHERSHAW,9/6/16 TRAVEL,10.8,
Department of Health,CT Revenue Funds,07/07/2016,Travel & Subsistence,ICS Central,YOUR WORLD RECRUITMENT LTD,PIN-2073917,66.12,
Department of Health,CT Revenue Funds,07/07/2016,Travel & Subsistence,ICS Central,YOUR WORLD RECRUITMENT LTD,PIN-2073917,13.22,
Department of Health,CT Revenue Funds,07/07/2016,Travel & Subsistence,ICS North West,YOUR WORLD RECRUITMENT LTD,PIN-2074131,157.37,
Department of Health,CT Revenue Funds,07/07/2016,Travel & Subsistence,ICS North West,YOUR WORLD RECRUITMENT LTD,PIN-2074131,31.47,
Department of Health,CT Revenue Funds,07/07/2016,Travel & Subsistence,ICS South West,YOUR WORLD RECRUITMENT LTD,PIN-2074222,175.5,
Department of Health,CT Revenue Funds,07/07/2016,Travel & Subsistence,ICS South West,YOUR WORLD RECRUITMENT LTD,PIN-2074222,35.1,
Department of Health,CT Revenue Funds,07/07/2016,UNISON,Payables,UNISON,QTR END JUN16,2502.05,
Department of Health,CT Revenue Funds,07/07/2016,User Agreements/Running Costs,Charlesworth Court Unit B,RYMINSTER LTD,CWC/0169,128.26,
Department of Health,CT Revenue Funds,07/07/2016,User Agreements/Running Costs,The Gateway,TOTAL RESPONSE,TR6847,8900,
Department of Health,CT Revenue Funds,07/07/2016,VAT Contracted Out Services Input Tax,Receivables,BIFFA WASTE SERVICES LTD,018T11965,5.91,537 9116 27
Department of Health,CT Revenue Funds,07/07/2016,VAT Contracted Out Services Input Tax,Receivables,LG DAVIS (STATIONERS) LTD,086268,13.8,110 6445 14
Department of Health,CT Revenue Funds,07/07/2016,VAT Contracted Out Services Input Tax,Receivables,LG DAVIS (STATIONERS) LTD,086915,55.8,110 6445 14
Department of Health,CT Revenue Funds,07/07/2016,VAT Contracted Out Services Input Tax,Receivables,LG DAVIS (STATIONERS) LTD,086916,31.92,110 6445 14
Department of Health,CT Revenue Funds,07/07/2016,VAT Contracted Out Services Input Tax,Receivables,LG DAVIS (STATIONERS) LTD,087461,483.4,110 6445 14
Department of Health,CT Revenue Funds,07/07/2016,VAT Contracted Out Services Input Tax,Receivables,KONICA BUSINESS MACHINES (UK) LTD,1124376342,12.49,974 9607 63
Department of Health,CT Revenue Funds,07/07/2016,VAT Contracted Out Services Input Tax,Receivables,KONICA BUSINESS MACHINES (UK) LTD,1124387936,26.6,974 9607 63
Department of Health,CT Revenue Funds,07/07/2016,VAT Contracted Out Services Input Tax,Receivables,ABSOLUTE INTERPRETING AND TRANSLATIONS LTD,114219,7.7,
Department of Health,CT Revenue Funds,07/07/2016,VAT Contracted Out Services Input Tax,Receivables,AUTOCRAFT,11463,219.65,988 5486 38
Department of Health,CT Revenue Funds,07/07/2016,VAT Contracted Out Services Input Tax,Receivables,ABSOLUTE INTERPRETING AND TRANSLATIONS LTD,118403,6.2,
Department of Health,CT Revenue Funds,07/07/2016,VAT Contracted Out Services Input Tax,Receivables,ABSOLUTE INTERPRETING AND TRANSLATIONS LTD,118525,7.7,
Department of Health,CT Revenue Funds,07/07/2016,VAT Contracted Out Services Input Tax,Receivables,ABSOLUTE INTERPRETING AND TRANSLATIONS LTD,118525,7.7,
Department of Health,CT Revenue Funds,07/07/2016,VAT Contracted Out Services Input Tax,Receivables,ABSOLUTE INTERPRETING AND TRANSLATIONS LTD,118525,7.7,
Department of Health,CT Revenue Funds,07/07/2016,VAT Contracted Out Services Input Tax,Receivables,ABSOLUTE INTERPRETING AND TRANSLATIONS LTD,118525,-7.7,
Department of Health,CT Revenue Funds,07/07/2016,VAT Contracted Out Services Input Tax,Receivables,ABSOLUTE INTERPRETING AND TRANSLATIONS LTD,118525,-7.7,
Department of Health,CT Revenue Funds,07/07/2016,VAT Contracted Out Services Input Tax,Receivables,ABSOLUTE INTERPRETING AND TRANSLATIONS LTD,118526,7.7,
Department of Health,CT Revenue Funds,07/07/2016,VAT Contracted Out Services Input Tax,Receivables,ABSOLUTE INTERPRETING AND TRANSLATIONS LTD,118527,15.4,
Department of Health,CT Revenue Funds,07/07/2016,VAT Contracted Out Services Input Tax,Receivables,ABSOLUTE INTERPRETING AND TRANSLATIONS LTD,118528,7.7,
Department of Health,CT Revenue Funds,07/07/2016,VAT Contracted Out Services Input Tax,Receivables,ABSOLUTE INTERPRETING AND TRANSLATIONS LTD,118529,7.7,
Department of Health,CT Revenue Funds,07/07/2016,VAT Contracted Out Services Input Tax,Receivables,ABSOLUTE INTERPRETING AND TRANSLATIONS LTD,118530,7.7,
Department of Health,CT Revenue Funds,07/07/2016,VAT Contracted Out Services Input Tax,Receivables,ABSOLUTE INTERPRETING AND TRANSLATIONS LTD,118531,7.7,
Department of Health,CT Revenue Funds,07/07/2016,VAT Contracted Out Services Input Tax,Receivables,ABSOLUTE INTERPRETING AND TRANSLATIONS LTD,118829,26.95,
Department of Health,CT Revenue Funds,07/07/2016,VAT Contracted Out Services Input Tax,Receivables,ABSOLUTE INTERPRETING AND TRANSLATIONS LTD,118830,19.25,
Department of Health,CT Revenue Funds,07/07/2016,VAT Contracted Out Services Input Tax,Receivables,ABSOLUTE INTERPRETING AND TRANSLATIONS LTD,119206,7.7,
Department of Health,CT Revenue Funds,07/07/2016,VAT Contracted Out Services Input Tax,Receivables,ABSOLUTE INTERPRETING AND TRANSLATIONS LTD,119211,7.7,
Department of Health,CT Revenue Funds,07/07/2016,VAT Contracted Out Services Input Tax,Receivables,AUTOCRAFT,11962,132.64,988 5486 38
Department of Health,CT Revenue Funds,07/07/2016,VAT Contracted Out Services Input Tax,Receivables,ABSOLUTE INTERPRETING AND TRANSLATIONS LTD,119691,19.25,
Department of Health,CT Revenue Funds,07/07/2016,VAT Contracted Out Services Input Tax,Receivables,ABSOLUTE INTERPRETING AND TRANSLATIONS LTD,119692,19.25,
Department of Health,CT Revenue Funds,07/07/2016,VAT Contracted Out Services Input Tax,Receivables,ABSOLUTE INTERPRETING AND TRANSLATIONS LTD,120042,11.55,
Department of Health,CT Revenue Funds,07/07/2016,VAT Contracted Out Services Input Tax,Receivables,ABSOLUTE INTERPRETING AND TRANSLATIONS LTD,120043,7.7,
Department of Health,CT Revenue Funds,07/07/2016,VAT Contracted Out Services Input Tax,Receivables,ABSOLUTE INTERPRETING AND TRANSLATIONS LTD,120044,7.7,
Department of Health,CT Revenue Funds,07/07/2016,VAT Contracted Out Services Input Tax,Receivables,AUTOCRAFT,12210,332.42,988 5486 38
Department of Health,CT Revenue Funds,07/07/2016,VAT Contracted Out Services Input Tax,Receivables,SECURITY WISE LTD,124742,13,434 0423 89
Department of Health,CT Revenue Funds,07/07/2016,VAT Contracted Out Services Input Tax,Receivables,NWN MEDIA LTD,1326541,82.51,158907037
Department of Health,CT Revenue Funds,07/07/2016,VAT Contracted Out Services Input Tax,Receivables,NWN MEDIA LTD,1326541,82.51,158907037
Department of Health,CT Revenue Funds,07/07/2016,VAT Contracted Out Services Input Tax,Receivables,NWN MEDIA LTD,1326541,82.51,158907037
Department of Health,CT Revenue Funds,07/07/2016,VAT Contracted Out Services Input Tax,Receivables,NWN MEDIA LTD,1326541,82.51,158907037
Department of Health,CT Revenue Funds,07/07/2016,VAT Contracted Out Services Input Tax,Receivables,CARESTREAM HEALTH UK LIMITED,138055260,1145.2,
Department of Health,CT Revenue Funds,07/07/2016,VAT Contracted Out Services Input Tax,Receivables,XEROX UK,1605751965,18.61,232 3646 82
Department of Health,CT Revenue Funds,07/07/2016,VAT Contracted Out Services Input Tax,Receivables,XEROX UK,1605751966,21.14,232 3646 82
Department of Health,CT Revenue Funds,07/07/2016,VAT Contracted Out Services Input Tax,Receivables,INCHCAPE FLEET SOLUTIONS,1872940,747.73,
Department of Health,CT Revenue Funds,07/07/2016,VAT Contracted Out Services Input Tax,Receivables,INCHCAPE FLEET SOLUTIONS,1874046,617.31,
Department of Health,CT Revenue Funds,07/07/2016,VAT Contracted Out Services Input Tax,Receivables,INCHCAPE FLEET SOLUTIONS,1874047,52.07,
Department of Health,CT Revenue Funds,07/07/2016,VAT Contracted Out Services Input Tax,Receivables,TCH LEASING,201605003794,360.17,
Department of Health,CT Revenue Funds,07/07/2016,VAT Contracted Out Services Input Tax,Receivables,TCH LEASING,201605003794,546.84,
Department of Health,CT Revenue Funds,07/07/2016,VAT Contracted Out Services Input Tax,Receivables,TCH LEASING,201605003794,626.68,
Department of Health,CT Revenue Funds,07/07/2016,VAT Contracted Out Services Input Tax,Receivables,TCH LEASING,201606001176,121.56,
Department of Health,CT Revenue Funds,07/07/2016,VAT Contracted Out Services Input Tax,Receivables,TCH LEASING,201606001177,-73.94,
Department of Health,CT Revenue Funds,07/07/2016,VAT Contracted Out Services Input Tax,Receivables,TOPS TYPEWRITER SERVICES,2016171,9,
Department of Health,CT Revenue Funds,07/07/2016,VAT Contracted Out Services Input Tax,Receivables,GREENHOUS GROUP LTD,21519919,1.24,713 2418 68
Department of Health,CT Revenue Funds,07/07/2016,VAT Contracted Out Services Input Tax,Receivables,GREENHOUS GROUP LTD,21725446,155.04,713 2418 68
Department of Health,CT Revenue Funds,07/07/2016,VAT Contracted Out Services Input Tax,Receivables,GREENHOUS GROUP LTD,21725479,109.8,713 2418 68
Department of Health,CT Revenue Funds,07/07/2016,VAT Contracted Out Services Input Tax,Receivables,GREENHOUS GROUP LTD,21725480,2.82,713 2418 68
Department of Health,CT Revenue Funds,07/07/2016,VAT Contracted Out Services Input Tax,Receivables,GREENHOUS GROUP LTD,21725611,157.89,713 2418 68
Department of Health,CT Revenue Funds,07/07/2016,VAT Contracted Out Services Input Tax,Receivables,GREENHOUS GROUP LTD,21725639,199.29,713 2418 68
Department of Health,CT Revenue Funds,07/07/2016,VAT Contracted Out Services Input Tax,Receivables,XEROX UK,2528559,0.68,232 3646 82
Department of Health,CT Revenue Funds,07/07/2016,VAT Contracted Out Services Input Tax,Receivables,UNIVERSITY COLLEGE LONDON,3268,120,
Department of Health,CT Revenue Funds,07/07/2016,VAT Contracted Out Services Input Tax,Receivables,ADT FIRE & SECURITY,32809719-02,14.8,
Department of Health,CT Revenue Funds,07/07/2016,VAT Contracted Out Services Input Tax,Receivables,ENTERPRISE FLEX E RENT,352150,170.41,
Department of Health,CT Revenue Funds,07/07/2016,VAT Contracted Out Services Input Tax,Receivables,ALTODIGITAL,4403187387,31,
Department of Health,CT Revenue Funds,07/07/2016,VAT Contracted Out Services Input Tax,Receivables,ID MEDICAL,442013,131.04,733 7385 18
Department of Health,CT Revenue Funds,07/07/2016,VAT Contracted Out Services Input Tax,Receivables,ID MEDICAL,442014,230.33,733 7385 18
Department of Health,CT Revenue Funds,07/07/2016,VAT Contracted Out Services Input Tax,Receivables,BIFFA WASTE SERVICES LTD,471T56671,6.9,537 9116 27
Department of Health,CT Revenue Funds,07/07/2016,VAT Contracted Out Services Input Tax,Receivables,BIFFA WASTE SERVICES LTD,471T56672,12.61,537 9116 27
Department of Health,CT Revenue Funds,07/07/2016,VAT Contracted Out Services Input Tax,Receivables,BIFFA WASTE SERVICES LTD,471T56673,5.91,537 9116 27
Department of Health,CT Revenue Funds,07/07/2016,VAT Contracted Out Services Input Tax,Receivables,BIFFA WASTE SERVICES LTD,471T56674,12.61,537 9116 27
Department of Health,CT Revenue Funds,07/07/2016,VAT Contracted Out Services Input Tax,Receivables,BIFFA WASTE SERVICES LTD,471T56675,7.15,537 9116 27
Department of Health,CT Revenue Funds,07/07/2016,VAT Contracted Out Services Input Tax,Receivables,BIFFA WASTE SERVICES LTD,471T56676,8.92,537 9116 27
Department of Health,CT Revenue Funds,07/07/2016,VAT Contracted Out Services Input Tax,Receivables,ICSA BOARDROOM APPS LTD,4722,62.29,
Department of Health,CT Revenue Funds,07/07/2016,VAT Contracted Out Services Input Tax,Receivables,HIRE THIS LIMITED,48977,10.56,
Department of Health,CT Revenue Funds,07/07/2016,VAT Contracted Out Services Input Tax,Receivables,AUTOMOTIVE LEASING LTD,501475144,23.7,442 5587 39
Department of Health,CT Revenue Funds,07/07/2016,VAT Contracted Out Services Input Tax,Receivables,AUTOMOTIVE LEASING LTD,501475145,38.34,442 5587 39
Department of Health,CT Revenue Funds,07/07/2016,VAT Contracted Out Services Input Tax,Receivables,AUTOMOTIVE LEASING LTD,501475146,28.88,442 5587 39
Department of Health,CT Revenue Funds,07/07/2016,VAT Contracted Out Services Input Tax,Receivables,AUTOMOTIVE LEASING LTD,501475147,34.72,442 5587 39
Department of Health,CT Revenue Funds,07/07/2016,VAT Contracted Out Services Input Tax,Receivables,AUTOMOTIVE LEASING LTD,501475148,29.13,442 5587 39
Department of Health,CT Revenue Funds,07/07/2016,VAT Contracted Out Services Input Tax,Receivables,AUTOMOTIVE LEASING LTD,501475149,449.27,442 5587 39
Department of Health,CT Revenue Funds,07/07/2016,VAT Contracted Out Services Input Tax,Receivables,AUTOMOTIVE LEASING LTD,501475150,332.02,442 5587 39
Department of Health,CT Revenue Funds,07/07/2016,VAT Contracted Out Services Input Tax,Receivables,VISS SIGN LANGUAGE INTERPRETING SERVICE,5770,23.75,875 9280 71
Department of Health,CT Revenue Funds,07/07/2016,VAT Contracted Out Services Input Tax,Receivables,VISS SIGN LANGUAGE INTERPRETING SERVICE,5771,23.75,875 9280 71
Department of Health,CT Revenue Funds,07/07/2016,VAT Contracted Out Services Input Tax,Receivables,VISS SIGN LANGUAGE INTERPRETING SERVICE,5772,23.75,875 9280 71
Department of Health,CT Revenue Funds,07/07/2016,VAT Contracted Out Services Input Tax,Receivables,VISS SIGN LANGUAGE INTERPRETING SERVICE,5773,23.75,875 9280 71
Department of Health,CT Revenue Funds,07/07/2016,VAT Contracted Out Services Input Tax,Receivables,VISS SIGN LANGUAGE INTERPRETING SERVICE,5774,23.75,875 9280 71
Department of Health,CT Revenue Funds,07/07/2016,VAT Contracted Out Services Input Tax,Receivables,MEDACS HEALTHCARE SERVICES PLC,604-898843,60.66,745 7310 30
Department of Health,CT Revenue Funds,07/07/2016,VAT Contracted Out Services Input Tax,Receivables,BIFFA WASTE SERVICES LTD,612C50853,42.11,537 9116 27
Department of Health,CT Revenue Funds,07/07/2016,VAT Contracted Out Services Input Tax,Receivables,BIFFA WASTE SERVICES LTD,612C50854,1.3,537 9116 27
Department of Health,CT Revenue Funds,07/07/2016,VAT Contracted Out Services Input Tax,Receivables,BIFFA WASTE SERVICES LTD,612C50855,2.73,537 9116 27
Department of Health,CT Revenue Funds,07/07/2016,VAT Contracted Out Services Input Tax,Receivables,BIFFA WASTE SERVICES LTD,612T17597,25.74,537 9116 27
Department of Health,CT Revenue Funds,07/07/2016,VAT Contracted Out Services Input Tax,Receivables,BIFFA WASTE SERVICES LTD,612T17598,23.86,537 9116 27
Department of Health,CT Revenue Funds,07/07/2016,VAT Contracted Out Services Input Tax,Receivables,BIFFA WASTE SERVICES LTD,612T17599,12.61,537 9116 27
Department of Health,CT Revenue Funds,07/07/2016,VAT Contracted Out Services Input Tax,Receivables,BIFFA WASTE SERVICES LTD,612T17600,12.55,537 9116 27
Department of Health,CT Revenue Funds,07/07/2016,VAT Contracted Out Services Input Tax,Receivables,BIFFA WASTE SERVICES LTD,612T17601,12.61,537 9116 27
Department of Health,CT Revenue Funds,07/07/2016,VAT Contracted Out Services Input Tax,Receivables,BIFFA WASTE SERVICES LTD,612T17602,12.61,537 9116 27
Department of Health,CT Revenue Funds,07/07/2016,VAT Contracted Out Services Input Tax,Receivables,BIFFA WASTE SERVICES LTD,612T17603,13.49,537 9116 27
Department of Health,CT Revenue Funds,07/07/2016,VAT Contracted Out Services Input Tax,Receivables,BIFFA WASTE SERVICES LTD,612T17604,25.74,537 9116 27
Department of Health,CT Revenue Funds,07/07/2016,VAT Contracted Out Services Input Tax,Receivables,AFRESH CLEANING SERVICE,619,106.8,
Department of Health,CT Revenue Funds,07/07/2016,VAT Contracted Out Services Input Tax,Receivables,PHS GROUP LTD,63868922,11.02,542 9514 38
Department of Health,CT Revenue Funds,07/07/2016,VAT Contracted Out Services Input Tax,Receivables,PHS GROUP LTD,63899030,7.03,542 9514 38
Department of Health,CT Revenue Funds,07/07/2016,VAT Contracted Out Services Input Tax,Receivables,PHS GROUP LTD,63904642,1.68,542 9514 38
Department of Health,CT Revenue Funds,07/07/2016,VAT Contracted Out Services Input Tax,Receivables,PHS GROUP LTD,63913672,11.67,542 9514 38
Department of Health,CT Revenue Funds,07/07/2016,VAT Contracted Out Services Input Tax,Receivables,PHS GROUP LTD,63928023,47.31,542 9514 38
Department of Health,CT Revenue Funds,07/07/2016,VAT Contracted Out Services Input Tax,Receivables,HEALTHCARE MATTERS,68398,28,862 9754 77
Department of Health,CT Revenue Funds,07/07/2016,VAT Contracted Out Services Input Tax,Receivables,HEALTHCARE MATTERS,68399,14,862 9754 77
Department of Health,CT Revenue Funds,07/07/2016,VAT Contracted Out Services Input Tax,Receivables,HEALTHCARE MATTERS,68400,11.5,862 9754 77
Department of Health,CT Revenue Funds,07/07/2016,VAT Contracted Out Services Input Tax,Receivables,HEALTHCARE MATTERS,68401,13.25,862 9754 77
Department of Health,CT Revenue Funds,07/07/2016,VAT Contracted Out Services Input Tax,Receivables,HEALTHCARE MATTERS,68402,53.07,862 9754 77
Department of Health,CT Revenue Funds,07/07/2016,VAT Contracted Out Services Input Tax,Receivables,HEALTHCARE MATTERS,68403,8.38,862 9754 77
Department of Health,CT Revenue Funds,07/07/2016,VAT Contracted Out Services Input Tax,Receivables,HEALTHCARE MATTERS,68404,11.5,862 9754 77
Department of Health,CT Revenue Funds,07/07/2016,VAT Contracted Out Services Input Tax,Receivables,HEALTHCARE MATTERS,68405,29.28,862 9754 77
Department of Health,CT Revenue Funds,07/07/2016,VAT Contracted Out Services Input Tax,Receivables,HEALTHCARE MATTERS,68431,46.81,862 9754 77
Department of Health,CT Revenue Funds,07/07/2016,VAT Contracted Out Services Input Tax,Receivables,HEALTHCARE MATTERS,68432,18.5,862 9754 77
Department of Health,CT Revenue Funds,07/07/2016,VAT Contracted Out Services Input Tax,Receivables,HEALTHCARE MATTERS,68435,23.5,862 9754 77
Department of Health,CT Revenue Funds,07/07/2016,VAT Contracted Out Services Input Tax,Receivables,HEALTHCARE MATTERS,68437,11.5,862 9754 77
Department of Health,CT Revenue Funds,07/07/2016,VAT Contracted Out Services Input Tax,Receivables,HEALTHCARE MATTERS,68440,23.75,862 9754 77
Department of Health,CT Revenue Funds,07/07/2016,VAT Contracted Out Services Input Tax,Receivables,HEALTHCARE MATTERS,68448,31.22,862 9754 77
Department of Health,CT Revenue Funds,07/07/2016,VAT Contracted Out Services Input Tax,Receivables,HEALTHCARE MATTERS,68450,22.46,862 9754 77
Department of Health,CT Revenue Funds,07/07/2016,VAT Contracted Out Services Input Tax,Receivables,HEALTHCARE MATTERS,68502,27,862 9754 77
Department of Health,CT Revenue Funds,07/07/2016,VAT Contracted Out Services Input Tax,Receivables,HEALTHCARE MATTERS,68503,43.56,862 9754 77
Department of Health,CT Revenue Funds,07/07/2016,VAT Contracted Out Services Input Tax,Receivables,HEALTHCARE MATTERS,68504,20.36,862 9754 77
Department of Health,CT Revenue Funds,07/07/2016,VAT Contracted Out Services Input Tax,Receivables,HEALTHCARE MATTERS,68524,33.86,862 9754 77
Department of Health,CT Revenue Funds,07/07/2016,VAT Contracted Out Services Input Tax,Receivables,HEALTHCARE MATTERS,68529,33.06,862 9754 77
Department of Health,CT Revenue Funds,07/07/2016,VAT Contracted Out Services Input Tax,Receivables,HEALTHCARE MATTERS,68631,38.16,862 9754 77
Department of Health,CT Revenue Funds,07/07/2016,VAT Contracted Out Services Input Tax,Receivables,HEALTHCARE MATTERS,68645,11.5,862 9754 77
Department of Health,CT Revenue Funds,07/07/2016,VAT Contracted Out Services Input Tax,Receivables,HEALTHCARE MATTERS,68649,18.5,862 9754 77
Department of Health,CT Revenue Funds,07/07/2016,VAT Contracted Out Services Input Tax,Receivables,HEALTHCARE MATTERS,68651,17.5,862 9754 77
Department of Health,CT Revenue Funds,07/07/2016,VAT Contracted Out Services Input Tax,Receivables,HEALTHCARE MATTERS,68656,18.5,862 9754 77
Department of Health,CT Revenue Funds,07/07/2016,VAT Contracted Out Services Input Tax,Receivables,HEALTHCARE MATTERS,68660,29.3,862 9754 77
Department of Health,CT Revenue Funds,07/07/2016,VAT Contracted Out Services Input Tax,Receivables,HEALTHCARE MATTERS,68667,37.5,862 9754 77
Department of Health,CT Revenue Funds,07/07/2016,VAT Contracted Out Services Input Tax,Receivables,HEALTHCARE MATTERS,68668,11.5,862 9754 77
Department of Health,CT Revenue Funds,07/07/2016,VAT Contracted Out Services Input Tax,Receivables,HEALTHCARE MATTERS,68669,73.7,862 9754 77
Department of Health,CT Revenue Funds,07/07/2016,VAT Contracted Out Services Input Tax,Receivables,HEALTHCARE MATTERS,68670,24.95,862 9754 77
Department of Health,CT Revenue Funds,07/07/2016,VAT Contracted Out Services Input Tax,Receivables,HEALTHCARE MATTERS,68671,53.7,862 9754 77
Department of Health,CT Revenue Funds,07/07/2016,VAT Contracted Out Services Input Tax,Receivables,HEALTHCARE MATTERS,68672,11.5,862 9754 77
Department of Health,CT Revenue Funds,07/07/2016,VAT Contracted Out Services Input Tax,Receivables,HEALTHCARE MATTERS,68673,26.95,862 9754 77
Department of Health,CT Revenue Funds,07/07/2016,VAT Contracted Out Services Input Tax,Receivables,COLLISION REPAIR SPECIALISTS LTD,716315,379.83,
Department of Health,CT Revenue Funds,07/07/2016,VAT Contracted Out Services Input Tax,Receivables,DISABLED AIDS (CANNOCK),78601,18,
Department of Health,CT Revenue Funds,07/07/2016,VAT Contracted Out Services Input Tax,Receivables,DISABLED AIDS (CANNOCK),78602,12,
Department of Health,CT Revenue Funds,07/07/2016,VAT Contracted Out Services Input Tax,Receivables,ALPHABET (UK) FLEET MANAGEMENT LTD,80076305,8.12,572 4172 44
Department of Health,CT Revenue Funds,07/07/2016,VAT Contracted Out Services Input Tax,Receivables,ALPHABET (UK) FLEET MANAGEMENT LTD,80076306,14.02,572 4172 44
Department of Health,CT Revenue Funds,07/07/2016,VAT Contracted Out Services Input Tax,Receivables,ALPHABET (UK) FLEET MANAGEMENT LTD,80078048,458.91,572 4172 44
Department of Health,CT Revenue Funds,07/07/2016,VAT Contracted Out Services Input Tax,Receivables,PG SKIPS LTD,86259,10.03,
Department of Health,CT Revenue Funds,07/07/2016,VAT Contracted Out Services Input Tax,Receivables,ALPHABET (UK) FLEET MANAGEMENT LTD,89011336/A,30.15,572 4172 44
Department of Health,CT Revenue Funds,07/07/2016,VAT Contracted Out Services Input Tax,Receivables,ALPHABET (UK) FLEET MANAGEMENT LTD,89011336/B,-120.61,572 4172 44
Department of Health,CT Revenue Funds,07/07/2016,VAT Contracted Out Services Input Tax,Receivables,ALPHABET (UK) FLEET MANAGEMENT LTD,89011337,-12.57,572 4172 44
Department of Health,CT Revenue Funds,07/07/2016,VAT Contracted Out Services Input Tax,Receivables,WRIGHT COTTRELL,92251505,30,
Department of Health,CT Revenue Funds,07/07/2016,VAT Contracted Out Services Input Tax,Receivables,WRIGHT COTTRELL,92261364,24.8,
Department of Health,CT Revenue Funds,07/07/2016,VAT Contracted Out Services Input Tax,Receivables,WRIGHT COTTRELL,92269374,24.8,
Department of Health,CT Revenue Funds,07/07/2016,VAT Contracted Out Services Input Tax,Receivables,ENTERPRISE RENT A CAR,950014098406,10.26,
Department of Health,CT Revenue Funds,07/07/2016,VAT Contracted Out Services Input Tax,Receivables,ENTERPRISE RENT A CAR,950014175275,9.8,
Department of Health,CT Revenue Funds,07/07/2016,VAT Contracted Out Services Input Tax,Receivables,XEROX FINANCE LTD,97041871,31.36,232 3646 82
Department of Health,CT Revenue Funds,07/07/2016,VAT Contracted Out Services Input Tax,Receivables,SHROPSHIRE COUNCIL,CBX002063,102.8,162 3474 72
Department of Health,CT Revenue Funds,07/07/2016,VAT Contracted Out Services Input Tax,Receivables,LEX AUTOLEASE LTD,EXIN974049,65.53,
Department of Health,CT Revenue Funds,07/07/2016,VAT Contracted Out Services Input Tax,Receivables,LEX AUTOLEASE LTD,EXIN978224,22.33,
Department of Health,CT Revenue Funds,07/07/2016,VAT Contracted Out Services Input Tax,Receivables,ARNOLD CLARK LTD,H00069243,68.4,334 3318 79
Department of Health,CT Revenue Funds,07/07/2016,VAT Contracted Out Services Input Tax,Receivables,HCL SOCIAL CARE,HSOC5584932,283.8,
Department of Health,CT Revenue Funds,07/07/2016,VAT Contracted Out Services Input Tax,Receivables,ARNOLD CLARK LTD,I00231447,443.78,334 3318 79
Department of Health,CT Revenue Funds,07/07/2016,VAT Contracted Out Services Input Tax,Receivables,ARNOLD CLARK LTD,I00231739,350.74,334 3318 79
Department of Health,CT Revenue Funds,07/07/2016,VAT Contracted Out Services Input Tax,Receivables,VOLKSWAGEN GROUP LEASING,IN01625779,402.08,
Department of Health,CT Revenue Funds,07/07/2016,VAT Contracted Out Services Input Tax,Receivables,VOLKSWAGEN GROUP LEASING,IN01625780,367.34,
Department of Health,CT Revenue Funds,07/07/2016,VAT Contracted Out Services Input Tax,Receivables,IKA MOBILITY,IN0901,25,971 5578 82
Department of Health,CT Revenue Funds,07/07/2016,VAT Contracted Out Services Input Tax,Receivables,IKA MOBILITY,IN0902,37.12,971 5578 82
Department of Health,CT Revenue Funds,07/07/2016,VAT Contracted Out Services Input Tax,Receivables,IKA MOBILITY,IN0904,25,971 5578 82
Department of Health,CT Revenue Funds,07/07/2016,VAT Contracted Out Services Input Tax,Receivables,IKA MOBILITY,IN0906,46.82,971 5578 82
Department of Health,CT Revenue Funds,07/07/2016,VAT Contracted Out Services Input Tax,Receivables,ARNOLD CLARK LTD,K00080956,-101.35,334 3318 79
Department of Health,CT Revenue Funds,07/07/2016,VAT Contracted Out Services Input Tax,Receivables,ARNOLD CLARK LTD,K00080972,-12.94,334 3318 79
Department of Health,CT Revenue Funds,07/07/2016,VAT Contracted Out Services Input Tax,Receivables,ARNOLD CLARK LTD,K00081421,-129.04,334 3318 79
Department of Health,CT Revenue Funds,07/07/2016,VAT Contracted Out Services Input Tax,Receivables,ARNOLD CLARK LTD,L01207159,537.6,334 3318 79
Department of Health,CT Revenue Funds,07/07/2016,VAT Contracted Out Services Input Tax,Receivables,ARNOLD CLARK LTD,L01211061,391.2,334 3318 79
Department of Health,CT Revenue Funds,07/07/2016,VAT Contracted Out Services Input Tax,Receivables,ARNOLD CLARK LTD,L01211062,552,334 3318 79
Department of Health,CT Revenue Funds,07/07/2016,VAT Contracted Out Services Input Tax,Receivables,ARNOLD CLARK LTD,L01211063,387.79,334 3318 79
Department of Health,CT Revenue Funds,07/07/2016,VAT Contracted Out Services Input Tax,Receivables,ARNOLD CLARK LTD,L01211064,415.2,334 3318 79
Department of Health,CT Revenue Funds,07/07/2016,VAT Contracted Out Services Input Tax,Receivables,ARNOLD CLARK LTD,L01211065,468,334 3318 79
Department of Health,CT Revenue Funds,07/07/2016,VAT Contracted Out Services Input Tax,Receivables,ARNOLD CLARK LTD,L01211066,376.8,334 3318 79
Department of Health,CT Revenue Funds,07/07/2016,VAT Contracted Out Services Input Tax,Receivables,ARNOLD CLARK LTD,L01211067,360,334 3318 79
Department of Health,CT Revenue Funds,07/07/2016,VAT Contracted Out Services Input Tax,Receivables,ARNOLD CLARK LTD,L01211068,363.14,334 3318 79
Department of Health,CT Revenue Funds,07/07/2016,VAT Contracted Out Services Input Tax,Receivables,ARNOLD CLARK LTD,L01211069,388.8,334 3318 79
Department of Health,CT Revenue Funds,07/07/2016,VAT Contracted Out Services Input Tax,Receivables,ARNOLD CLARK LTD,M00163912,44.4,334 3318 79
Department of Health,CT Revenue Funds,07/07/2016,VAT Contracted Out Services Input Tax,Receivables,MARSH ASSOCIATES HEALTHCARE LTD,MAH19608,150,
Department of Health,CT Revenue Funds,07/07/2016,VAT Contracted Out Services Input Tax,Receivables,MARSH ASSOCIATES HEALTHCARE LTD,MAH19609,100,
Department of Health,CT Revenue Funds,07/07/2016,VAT Contracted Out Services Input Tax,Receivables,LEX AUTOLEASE LTD,MRI4282455,401.86,
Department of Health,CT Revenue Funds,07/07/2016,VAT Contracted Out Services Input Tax,Receivables,COVERAGE CARE LTD,PSI104417,594.35,
Department of Health,CT Revenue Funds,07/07/2016,VAT Contracted Out Services Input Tax,Receivables,SYNERTEC LTD,QS120735,90.1,
Department of Health,CT Revenue Funds,07/07/2016,VAT Contracted Out Services Input Tax,Receivables,SYNERTEC LTD,QS121672,74.31,
Department of Health,CT Revenue Funds,07/07/2016,VAT Contracted Out Services Input Tax,Receivables,SYNERTEC LTD,QS121673,24.36,
Department of Health,CT Revenue Funds,07/07/2016,VAT Contracted Out Services Input Tax,Receivables,SYNERTEC LTD,QS121674,0.43,
Department of Health,CT Revenue Funds,07/07/2016,VAT Contracted Out Services Input Tax,Receivables,SYNERTEC LTD,QS121675,197.56,
Department of Health,CT Revenue Funds,07/07/2016,VAT Contracted Out Services Input Tax,Receivables,SYNERTEC LTD,QS121676,21.99,
Department of Health,CT Revenue Funds,07/07/2016,VAT Contracted Out Services Input Tax,Receivables,SYNERTEC LTD,QS121677,12.24,
